{"text_format":"1","workbook":"xlsx","n_sheets":4,"sheets":["Escolas com transporte","FORM2 - ALUNOS NOVOS","DADOS","BAIRROS CADASTRADOS"],"not_rendered":{"charts":0,"images":2,"macros":1,"external_links":1,"defined_names":6,"comments":0,"pivot_tables":0},"unopened":[],"bounds":{"document_bytes":16777216,"sheet_cells":100000,"rows_first":2000,"rows_last":500,"rows_between":2000,"halvings":0,"cell_chars":16384,"cell_head_chars":4096},"cells_cut":0,"cells_raw":0,"read":"whole","date_system":"1900"}

{"sheet":"Escolas com transporte","index":0,"n_rows":205,"n_cols":18,"rows_kept":205,"cut":false,"hidden":true,"merged":[]}
["Nº","Tipo","EMEF - Escola Municipal de Ensino Fundamental",null,"EMEF - Escola Municipal de Ensino Fundamental","Região","Logradouro","Bairro","Cep","Tel Secretaria","Tel Diretoria","Tel Fax","Tel Orelhão","Atendimento","Func","E-mail institucional","Nome Skype","Código CIE"]
[1,"EE","ADÉLIA CHUCRI NEME",{"$f":"B2 & \" \" &C2","v":"EE ADÉLIA CHUCRI NEME"},"ADÉLIA CHUCRI NEME","Leste","Av. JK, 6701 - Cjto Integração","Vila Industrial",12220000,39293816,39293509,null,null,"EF 1º ao 5º ano",null,"e046826a@see.sp.gov.br",null,"046826"]
[2,"EE","ALCEU MAYNARD ARAÚJO","EE ALCEU MAYNARD ARAÚJO","ALCEU MAYNARD ARAÚJO, PROF","Leste","Rua dos Miosotis, 75","Jd. Motorama",12224100,39295576,39295394,null,null,"EF 6º ano e 6ª a 8ª série / Ens. Médio / EJA EM",null,"e013481a@see.sp.gov.br",null,"013481"]
[3,"EE","AMINTAS ROCHA BRITO","EE AMINTAS ROCHA BRITO","AMINTAS ROCHA BRITO, PROF","Leste","Rua Anibal Ferri, 193","Jd. Castanheiras",12225290,39072011,"39071375 - caseiro",null,null,"EF 1º ao 5º ano",null,"e917597p@see.sp.gov.br",null,"917597"]
[4,"EE","ANA CÂNDIDA DE BARROS MOLINA","EE ANA CÂNDIDA DE BARROS MOLINA","ANA CÂNDIDA DE BARROS MOLINA, PROFª","Leste","Rua Saigiro Nakamura, 300","Vila Industrial",12220280,39027356,39292434,null,null,"EF 6º ano e 6ª a 8ª série / Ens. Médio / EJA Ens. Médio",null,"e013572p@see.sp.gov.br",null,"013572"]
[5,"EE","ANA HERONDINA SOARES SCHYCHOF","EE ANA HERONDINA SOARES SCHYCHOF","ANA HERONDINA SOARES SCHYCHOF, PROFª","Leste","Rua Cidade de Washington, 163","Vista Verde",12223600,39293693,39294402,null,null,"EF 1º ao 6º ano e 6ª a 8ª série",null,"e917448a@see.sp.gov.br",null,"917448"]
[6,"EE","ARLETE ELOÍZA FERREIRA TEIXEIRA","EE ARLETE ELOÍZA FERREIRA TEIXEIRA","ARLETE ELOÍZA FERREIRA TEIXEIRA, PROFª","Leste","Rua Orlando Silva, 35","Jd. Nova Detroit",12224580,39295568,39120262,null,null,"EF 1º ao 5º ano",null,"e905112p@see.sp.gov.br",null,"905112"]
[7,"EE","ARMANDO D´OLIVEIRA COBRA","EE ARMANDO D´OLIVEIRA COBRA","ARMANDO D´OLIVEIRA COBRA","Norte","Rua 13 de Maio, 295","Centro - SFX",12249000,39261154,39261250,null,null,"Ens. Médio",null,"e013730p@see.sp.gov.br",null,"013730"]
[8,"EE","AYR PICANÇO BARBOSA DE ALMEIDA","EE AYR PICANÇO BARBOSA DE ALMEIDA","AYR PICANÇO BARBOSA DE ALMEIDA, PROFª","Sul","Rua Galiléia, 365","Bosque dos Eucaliptos",12233250,39164222,39361956,null,null,"EF 1º ao 6º ano e 6ª a 8ª série / Ens. Médio",null,"e047958p@see.sp.gov.br",null,"047958"]
[73,"EE","BAIRRO DO TURVO","EE BAIRRO DO TURVO","TURVO DE BAIXO, BAIRRO ","Norte","RURAL",null,null,null,null,null,null,"EF 1º ao 5º ano",null,null,null,"542787"]
[9,"EE","BENEDITO MATARAZZO","EE BENEDITO MATARAZZO","BENEDITO MATARAZZO, DEP","Sul","Rua Mindanau, 111","Jd. Paraíso",12235430,39347767,39331066,null,null,"EF 6º ano e 6ª a 8ª série / Ens. Médio ",null,"e001557p@see.sp.gov.br",null,"001557"]
[10,"EE","BENGALAR ","EE BENGALAR ","BENGALAR, BAIRRO ","Norte","RURAL",null,null,null,null,null,null,"EF 1º ao 5º ano",null,null,null,"315114"]
[11,"EE","BOM SUCESSO ","EE BOM SUCESSO ","BOM SUCESSO, BAIRRO ","Norte","RURAL",null,null,null,null,null,null,"EF 1º ao 5º ano",null,null,null,"315102"]
[12,"EE","CENTRO ESTADUAL DE EDUCAÇÃO SUPLETIVA  - CEEJA","EE CENTRO ESTADUAL DE EDUCAÇÃO SUPLETIVA  - CEEJA","CENTRO ESTADUAL DE EDUCAÇÃO SUPLETIVA  - CEEJA","Norte","Trv. Claudino Prisco, 343","Vila Cristina",12211460,39218470,39226807,null,null,"EJA DISTÂNCIA - 6º ano e 6ª a 8ª série e Ens. Médio",null,"e980195p@see.sp.gov.br",null,"980195"]
[13,"EE","DAS PERNAMBUCANAS","EE DAS PERNAMBUCANAS","PERNAMBUCANAS, BAIRRO DAS ","Sudeste","RURAL",null,null,null,null,null,null,"EF 1º ao 5º ano",null,null,null,"314729"]
[14,"EE","DIACONO HAMILTON BONTORIM DE SOUZA","EE DIACONO HAMILTON BONTORIM DE SOUZA","DIACONO HAMILTON B.DE SOUZA","Norte","Rua Rio do Peixe, 351","Altos da Vila Paiva","12213-078","3907-2004",null,null,null," 6ª a 8ª série / Ens. Médio",null,"e497095a@see.sp.gov.br",null,"497095"]
[15,"EE","DINORÁ PEREIRA RAMOS DE BRITO","EE DINORÁ PEREIRA RAMOS DE BRITO","DINORÁ PEREIRA RAMOS DE BRITO, PROFª","Sudeste","Rua João Rodolfo Castelli, 157","Putim",12228000,39441135,39441144,null,null,"EF 1º ao 6º ano e 6ª a 8ª série / Ens. Médio ",null,"e901532p@see.sp.gov.br",null,"901532"]
[16,"EE","DIRCE ELIAS","EE DIRCE ELIAS","DIRCE ELIAS, PROFª","Norte","Estr. Municipal dos Freitas, s/nº","Bairro dos Freitas",12214431,39481303,39481048,null,null,"EF 1º ao 6º ano e 6ª a 8ª série / Ens. Médio ",null,"e905124p@see.sp.gov.br",null,"905124"]
[17,"EE","DOMINGOS DE MACEDO CUSTÓDIO","EE DOMINGOS DE MACEDO CUSTÓDIO","DOMINGOS DE MACEDO CUSTÓDIO, PROF","Sudeste","Pça. Benedito Ugolino Silva Guerra, 311","Vila São Benedito",12227060,39222419,39222004,null,null,"EF 1º ao 6º ano e 6ª a 8ª série ",null,"e042336p@see.sp.gov.br",null,"042336"]
[18,"EE","DORIVAL MONTEIRO DE OLIVEIRA","EE DORIVAL MONTEIRO DE OLIVEIRA","DORIVAL MONTEIRO DE OLIVEIRA, PROF","Leste","Rua dos Pedreiros, 367","Pq. Novo Horizonte",12225660,39071570,39072009,null,null,"Ens. Médio / EJA Ens. Médio",null,"e042304p@see.sp.gov.br",null,"042304"]
[19,"EE","ÉDERA IRENE PEREIRA DE OLIVEIRA CARDOSO","EE ÉDERA IRENE PEREIRA DE OLIVEIRA CARDOSO","ÉDERA IRENE PEREIRA DE OLIVEIRA CARDOSO, PROFª","Sudeste","Rua São Januário, 81","São Judas Tadeu",12228450,39441675,39445190,null,null,"EF 6º ano e 6ª a 8ª série / Ens. Médio / EJA Ens. Médio",null,"e925925p@see.sp.gov.br",null,"925925"]
[20,"EE","EDEWALDO FREITAS GAIA SANT´ANA","EE EDEWALDO FREITAS GAIA SANT´ANA","EDEWALDO FREITAS GAIA SANT´ANA, PROF","Sul","Rua do Rosário, 540","Jd. América",12235420,39314667,39317118,null,null,"EF 1º ao 5º ano",null,"e013493p@see.sp.gov.br",null,"013493"]
[21,"EE","EDGAR DE MELLO MATTOS DE CASTRO, ENG","EE EDGAR DE MELLO MATTOS DE CASTRO, ENG","EDGAR DE MELLO MATTOS DE CASTRO, ENG","Sul","Av. do Imperador, 701","Campo dos Alemães",12234800,39661272,39661799,null,null,"EF 6º ano e 6ª a 8ª série / Ens. Médio / EJA Ens. Médio",null,"e917254p@see.sp.gov.br",null,"917254"]
[22,"EE","ELÍDIA TEDESCO DE OLIVEIRA","EE ELÍDIA TEDESCO DE OLIVEIRA","ELÍDIA TEDESCO DE OLIVEIRA, PROFª","Leste","Rua Juvenal dos Santos, 4","Bairro Galo Branco",12247430,39052196,null,null,39051735,"EF 1º ao 6º ano e 6ª a 8ª série / Ens. Médio / EJA Ens. Médio",null,"e920459p@see.sp.gov.br",null,"920459"]
[23,"EE","ELMANO FERREIRA VELOSO","EE ELMANO FERREIRA VELOSO","ELMANO FERREIRA VELOSO","Sul","Rua Monte Azul, 795","Chácaras Reunidas",12238350,39314646,39319884,null,null,"EF 1º ao 6º ano e 6ª a 8ª série / Ens. Médio",null,"e035385p@see.sp.gov.br",null,"035385"]
[24,"EE","ESTEVAM FERRI ","EE ESTEVAM FERRI ","ESTEVAM FERRI, PROF ","Central","Rua Cantídio Miragaia, 100","Monte Castelo",12215110,39419795,39411766,null,null,"Ens. Médio / CEL ",null,"e023462p@see.sp.gov.br",null,"023462"]
[25,"EE","EUCLIDES BUENO MIRAGAIA","EE EUCLIDES BUENO MIRAGAIA","EUCLIDES BUENO MIRAGAIA","Sul","Rod. dos Tamoios, 470","Vila Nair",12231590,39210167,39234800,null,null,"EF 1º ao 6º ano e 6ª a 8ª série / Ens. Médio ",null,"e013602p@see.sp.gov.br",null,"013602"]
[26,"EE","EUNICE CORDEIRO DOS SANTOS RODRIGUES","EE EUNICE CORDEIRO DOS SANTOS RODRIGUES","EUNICE CORDEIRO DOS SANTOS RODRIGUES, PROFª","Norte","Rua Maj. Manoel F. Neto, 370","Vila São Geraldo",12213270,39234955,39214606,null,null,"EF 1º ao 5º ano",null,"e013511p@see.sp.gov.br",null,"013511"]
[27,"EE","FELÍCIO SAVASTANO","EE FELÍCIO SAVASTANO","FELÍCIO SAVASTANO, PROF","Central","Rua Cap. Raul Fagundes, 341","Monte Castelo",12215030,39234700,39227034,null,null,"EF 1º ao 5º ano",null,"e013547p@see.sp.gov.br",null,"013547"]
[28,"EE","FRANCISCO JOÃO LEME","EE FRANCISCO JOÃO LEME","FRANCISCO JOÃO LEME, PROF","Norte","Rua da Constituinte, 37","Alto da Ponte",12212380,39216015,39210615,null,null,"EF 1º ao 6º ano e 6ª a 8ª série ",null,"e013638p@see.sp.gov.br",null,"013638"]
[29,"EE","FRANCISCO LOPES DE AZEVEDO","EE FRANCISCO LOPES DE AZEVEDO","FRANCISCO LOPES DE AZEVEDO, PROF","Sul","Rua Antares, 330","Jd. Satélite",12230250,39311723,39314788,null,null,"EF 1º ao 6º ano e 6ª a 8ª série / Ens. Médio",null,"e039640p@see.sp.gov.br",null,"039640"]
[30,"EE","FRANCISCO PEREIRA DA SILVA","EE FRANCISCO PEREIRA DA SILVA","FRANCISCO PEREIRA DA SILVA, PROF","Leste","Pça. Uirapuru, 131","Vila Tatetuba",12220190,39295572,39122418,null,null,"Ens. Médio",null,"e013936p@see.sp.gov.br",null,"013936"]
[31,"EE","GERALDINA COELHO MONTEIRO","EE GERALDINA COELHO MONTEIRO","GERALDINA COELHO MONTEIRO, PROFª","Leste","Rua Profª Maria Helena M. de Queiroz, 186","Jd. Nova Michigan",12225440,39071606,39072001,null,null,"EF 6º ano e 6ª a 8ª série / Ens. Médio",null,"e901581p@see.sp.gov.br",null,"901581"]
[32,"EE","HENRIQUETA COSTA PORTO","EE HENRIQUETA COSTA PORTO","HENRIQUETA COSTA PORTO, PROFª","Sul","Rua Santarém, 970","Pq. Industrial",12235550,39312300,39318553,null,null,"EF 1º ao 5º ano",null,"e047946p@see.sp.gov.br",null,"047946"]
[33,"EE","ILZA IRMA MOELLER COPPIO","EE ILZA IRMA MOELLER COPPIO","ILZA IRMA MOELLER COPPIO, PROFª","Norte","Rua Jaguari, 362","Vila Sinhá",12214500,39217820,39213121,null,null,"Ens. Médio ",null,"e013523p@see.sp.gov.br",null,"013523"]
[34,"EE","IRACEMA RIBEIRO DE FREITAS","EE IRACEMA RIBEIRO DE FREITAS","IRACEMA RIBEIRO DE FREITAS, PROFª","Sudeste","Pça. Muriaé, 7","Vila Iracema",12228150,39441593,39441447,null,null,"EF 1º ao 5º ano",null,"e047961p@see.sp.gov.br",null,"047961"]
[35,"EE","JARDIM REPÚBLICA","EE JARDIM REPÚBLICA","JARDIM REPÚBLICA","Sul","Rua Oscar Ferreira da Silva, 155 ","Jardim República","12.234-837","3944-1447",null,null,null,"Ens. Médio / EJA Anos Finais / EJA Ens. Médio",null,"e495529a@see.sp.gov.br",null,"495529"]
[36,"EE","JENI DAVI BACHA","EE JENI DAVI BACHA","JENI DAVI BACHA, PROFª","Norte","Rua Antonio de Oliveira Pinto, 83","Buquirinha",12213831,39481188,39481033,null,null,"EF 1º ao 6º ano e 6ª a 8ª série / Ens. Médio ",null,"e037849p@see.sp.gov.br",null,"037849"]
[37,"EE","JOÃO CURSINO","EE JOÃO CURSINO","JOÃO CURSINO","Central","Av. Eng. Francisco José Longo, 782","Jd. São Dimas",12245001,39214550,39215804,null,null,"EF 6º ano e 6ª a 8ª série / Ens. Médio / EJA Ens. Médio",null,"e013948p@see.sp.gov.br",null,"013948"]
[38,"EE","JOÃO FERREIRA DOS SANTOS","EE JOÃO FERREIRA DOS SANTOS","JOÃO FERREIRA DOS SANTOS, PROF","Leste","Rua 15 de Outubro, 80","Jd. Cerejeiras",12225500,39071033,39072007,null,null,"EF 1º ao 6º ano e 6ª a 8ª série",null,"e916304p@see.sp.gov.br",null,"916304"]
[39,"EE","JOÃO MOROTTI FILHO","EE JOÃO MOROTTI FILHO","JOÃO MOROTTI FILHO","Leste","Rua Irene Toledo de Souza Gomes, s/nº ","Bom Retiro",12226820,39071388,39070478,null,null,"EF 1º ao 6º ano e 6ª a 8ª série",null,"e915026p@see.sp.gov.br",null,"915026"]
[40,"EE","JOAQUIM ANDRADE MEIRELLES","EE JOAQUIM ANDRADE MEIRELLES","JOAQUIM ANDRADE MEIRELLES, PROF","Sul","Rua Maranduba, s/nº ","Jd. Satélite",12230680,39330993,39313664,null,null,"EF 6º ano e 6ª a 8ª série / Ens. Médio / EJA Ens. Médio",null,"e035373p@see.sp.gov.br",null,"035373"]
[41,"EE","JOAQUIM DE MOURA CANDELÁRIA","EE JOAQUIM DE MOURA CANDELÁRIA","JOAQUIM DE MOURA CANDELÁRIA, PROF","Sul","Rua Josefa A. dos Santos, 831","Jd. Morumbi",12236670,39311908,39316128,null,null,"EF 6º ano e 6ª a 8ª série / Ens. Médio / EJA Ens. Médio",null,"e911392p@see.sp.gov.br",null,"911392"]
[42,"EE","JORGE BARBOSA MOREIRA","EE JORGE BARBOSA MOREIRA","JORGE BARBOSA MOREIRA, PROF","Norte","Av. Maria Cândida Delgado, 10","Vila Cândida",12213330,39234689,39223856,null,null,"EF 1º ao 6º ano e 6ª a 8ª série / Ens. Médio",null,"e013559p@see.sp.gov.br",null,"013559"]
[43,"EE","JOSÉ ANTONIO COUTINHO CONDINO","EE JOSÉ ANTONIO COUTINHO CONDINO","JOSÉ ANTONIO COUTINHO CONDINO, PROF","Leste","Rua A, 1477","Jd. Santa Hermínia",12226838,39071806,39070004,null,null,"EF 1º ao 5º ano",null,"e912712p@see.sp.gov.br",null,"912712"]
[44,"EE","JOSÉ FREDERICO MARQUES","EE JOSÉ FREDERICO MARQUES","JOSÉ FREDERICO MARQUES, PROF","Sul","Rua Nelson José de Carvalho Ferreira, 91","Campo dos Alemães",12239170,39661221,39661664,null,null,"EF 1º ao 5º ano",null,"e919755p@see.sp.gov.br",null,"919755"]
[45,"EE","JOSÉ MARIOTTO FERREIRA, MAJ AV","EE JOSÉ MARIOTTO FERREIRA, MAJ AV","JOSÉ MARIOTTO FERREIRA, MAJ AV","Sudeste","Pça. Mal. do Ar Eduardo Gomes, 50","CTA / Vl. das Acácias",12228530,39210342,39473173,null,null,"EF 1º ao 6º ano e 6ª a 8ª série / Ens. Médio",null,"e013869p@see.sp.gov.br",null,"013869"]
[46,"EE","JOSÉ VIEIRA MACEDO","EE JOSÉ VIEIRA MACEDO","JOSÉ VIEIRA MACEDO, PROF","Sul","Rua Ipiau, 162","Jd. Satélite",12230750,39315911,39317541,null,null,"Ens. Médio / CEL ",null,"e013560p@see.sp.gov.br",null,"013560"]
[47,"EE","JÚLIA BERNARDES RODRIGUES","EE JÚLIA BERNARDES RODRIGUES","JÚLIA BERNARDES RODRIGUES, PROFª","Sudeste","Av. São Cristóvão, 843","São Judas Tadeu",12228260,39441424,39441815,null,null,"EF 1º ao 5º ano",null,"e901568p@see.sp.gov.br",null,"901568"]
[48,"EE","JUVENAL MACHADO DE ARAÚJO","EE JUVENAL MACHADO DE ARAÚJO","JUVENAL MACHADO DE ARAÚJO, PROF","Leste","Rua Vicente Celestino, 150","Vila Tesouro",12221540,39295573,39296447,null,null,"EF 1º ao 6º ano e 6ª a 8ª série / Ens. Médio",null,"e035397p@see.sp.gov.br",null,"035397"]
[49,"EE","LOURDES MARIA DE CAMARGO","EE LOURDES MARIA DE CAMARGO","LOURDES MARIA DE CAMARGO, PROFª","Sul","Av. Dom Pedro I, 341","Jd. Imperial",12234010,39661344,39661117,null,null,"EF 1º ao 6º ano e 6ª a 8ª série / Ens. Médio",null,"e037837p@see.sp.gov.br",null,"037837"]
[50,"EE","MALBA TEREZA FERRAZ CAMPANER","EE MALBA TEREZA FERRAZ CAMPANER","MALBA TEREZA FERRAZ CAMPANER, PROFª","Sul","Pça. Mikado, 142","Jd. Oriente",12236160,39316322,39318415,null,null,"EF 1º ao 6º ano e 6ª a 8ª série / Ens. Médio",null,"e042316p@see.sp.gov.br",null,"042316"]
[51,"EE","MÁRCIA HELENA BARBOSA LINO","EE MÁRCIA HELENA BARBOSA LINO","MÁRCIA HELENA BARBOSA LINO, PROFª","Sul","Rua José Rodrigues Salgado, 150","Campo dos Alemães",12239670,39661699,39661357,null,null,"Ens. Médio",null,"e922018p@see.sp.gov.br",null,"922018"]
[52,"EE","MARIA APARECIDA VERÍSSIMO MADUREIRA RAMOS","EE MARIA APARECIDA VERÍSSIMO MADUREIRA RAMOS","MARIA APARECIDA VERÍSSIMO MADUREIRA RAMOS, PROFª","Oeste","Rua dos Carvalhos, 30","Jd. das Indústrias",12241260,"3931-8798",39318798,null,null,"EF 1º ao 6º ano e 6ª a 8ª série  / Ens. Médio",null,"e905100p@see.sp.gov.br",null,"905100"]
[53,"EE","MARIA DOLORES VERÍSSIMO MADUREIRA","EE MARIA DOLORES VERÍSSIMO MADUREIRA","MARIA DOLORES VERÍSSIMO MADUREIRA, PROFª","Sul","Rua Serra do Roncador, 310","Jd. Anhembi",12235240,39314645,39312849,null,null,"EF 6º ano e 6ª a 8ª série / Ens. Médio / EJA Ens. Médio",null,"e035361p@see.sp.gov.br",null,"035361"]
[54,"EE","MARIA GOMIDE SANTOS DE SOUZA","EE MARIA GOMIDE SANTOS DE SOUZA","MARIA GOMIDE SANTOS DE SOUZA, PROFª","Sul","Rua Zélia Albuquerque dos Santos, 452","Jd. Morumbi",12236680,39310377,39316089,null,null,"EF 1º ao 5º ano",null,"e919731p@see.sp.gov.br",null,"919731"]
[55,"EE","MARIA LUIZA DE GUIMARÃES MEDEIROS","EE MARIA LUIZA DE GUIMARÃES MEDEIROS","MARIA LUIZA DE GUIMARÃES MEDEIROS, PROFª","Norte","Rua São Luiz Gonzaga, 89","Santana",12212200,39221606,39226016,null,null,"Ens. Médio",null,"e013754p@see.sp.gov.br",null,"013754"]
[56,"EE","MARILDA FERREIRA DE BRITO BARROS PEREIRA","EE MARILDA FERREIRA DE BRITO BARROS PEREIRA","MARILDA FERREIRA DE BRITO BARROS PEREIRA","Central","Rua Manoel Saldanha, 401","Vale dos Pinheiros",12242330,39222543,39226020,null,null,"EF 1º ao 6º ano e 6ª a 8ª série / Ens. Médio",null,"e045470p@see.sp.gov.br",null,"045470"]
[57,"EE","MAURÍCIO ANISSE CURY, DR","EE MAURÍCIO ANISSE CURY, DR","MAURÍCIO ANISSE CURY, DR","Central","Av. Eng. Francisco José Longo, 832","Jd. São Dimas",12245001,39212777,39227834,null,null,"EF 1º ao 5º ano",null,"e013791a@educacao.sp.gov.br",null,"013791"]
[58,"EE","MIGUEL NAKED, MAJ","EE MIGUEL NAKED, MAJ","MIGUEL NAKED, MAJ","Sul","Av. Benedito Bento, 195","Jd. Morumbi",12236580,39316244,39312922,null,null,"EF 6º ano e 6ª a 8ª série / Ens. Médio / EJA Ens. Médio",null,"e045469p@see.sp.gov.br",null,"045469"]
[59,"EE","MOABE CURY","EE MOABE CURY","MOABE CURY, PROF","Sul","Rua Avelino Alves da Silva, 101","Cjto. EMHA",12234701,39661439,39661988,null,null,"EF 6º ano e 6ª a 8ª série / Ens. Médio / EJA Ens. Médio",null,"e047934p@see.sp.gov.br",null,"047934"]
[60,"EE","NAJLA JAMILE SANTOS MACHADO ARAÚJO","EE NAJLA JAMILE SANTOS MACHADO ARAÚJO","NAJLA JAMILE SANTOS MACHADO ARAÚJO, PROFª","Sul","Rua Oswaldo Orlando Costa, 352","Cjto. Res. Dom Pedro I",12232842,39661770,39661548,null,null,"EF 1º ao 5º ano",null,"e921282p@see.sp.gov.br",null,"921282"]
[61,"EE","NELSON DO NASCIMENTO MONTEIRO","EE NELSON DO NASCIMENTO MONTEIRO","NELSON DO NASCIMENTO MONTEIRO, PROF","Sul","Rua Hermenegildo Scarenci, 91","Cjto. Res. 31 de Março",12237750,39314660,39315844,null,null,"Ens. Médio",null,"e042328p@see.sp.gov.br",null,"042328"]
[62,"EE","NELSON FERREIRA DA SILVA","EE NELSON FERREIRA DA SILVA","NELSON FERREIRA DA SILVA, PROF","Sul","Rua Wladimir Herzog, 400","Bosque dos Eucaliptos",12233610,39361900,39361140,null,null,"EF 1º ao 5º ano",null,"e901556p@see.sp.gov.br",null,"901556"]
[63,"EE","NILCE CONCEIÇÃO LIMA","EE NILCE CONCEIÇÃO LIMA","NILCE CONCEIÇÃO LIMA","Sudeste","Rua Natalino Angelo Stabeli, 84","Jd. São Leopoldo",12228190,39441582,39441355,null,null,"EF 6º ano e 6ª a 8ª série / Ens. Médio",null,"e922857p@see.sp.gov.br",null,"922857"]
[64,"EE","OLÍMPIO CATÃO",{"$f":"B66 & \" \" &C66","v":"EE OLÍMPIO CATÃO"},"OLÍMPIO CATÃO","Central","Pça. Afonso Pena, s/nº","Centro",12210090,39220729,39215604,null,null,"EF 6º ano e 6ª a 8ª série  / Ens. Médio",null,"e013626p@see.sp.gov.br",null,"013626"]
[65,"EE","PEDRO MASCARENHAS, DR","EE PEDRO MASCARENHAS, DR","PEDRO MASCARENHAS, DR","Leste","Av. Ambrosio Molina, 306","Eugênio de Melo",12247000,39051361,39051862,null,null,"EF 1º ao 6º ano e 6ª a 8ª série / Ens. Médio / EJA Ens. Médio",null,"e013596p@see.sp.gov.br",null,"013596"]
[66,"EE","PEDRO MAZZA","EE PEDRO MAZZA","PEDRO MAZZA, PROF","Sudeste","Rua Odete Mimessi, 160","Jd. da Granja",12227200,39234623,39227990,null,null,"EF 6º ano e 6ª a 8ª série / Ens. Médio / EJA Ens. Médio",null,"e013584p@see.sp.gov.br",null,"013584"]
[67,"EE","RONDON, MAL","EE RONDON, MAL","RONDON, MAL","Central","Pça. Francisco Escobar, 165","Monte Castelo",12215170,39218626,39225778,null,null,"EF 6º ano e 6ª a 8ª série / Ens. Médio / EJA Ens. Médio",null,"e013912p@see.sp.gov.br",null,"013912"]
[68,"EE","RUI RODRIGUES DÓRIA, DR","EE RUI RODRIGUES DÓRIA, DR","RUI RODRIGUES DÓRIA, DR","Norte","Rua Olivo Gomes, 329","Santana",12211120,39215766,39220438,null,null,"EF 6º ano e 6ª a 8ª série / Ens. Médio",null,"e013924p@see.sp.gov.br",null,"013924"]
[69,"EE","RUTH COUTINHO SOBREIRO","EE RUTH COUTINHO SOBREIRO","RUTH COUTINHO SOBREIRO, PROFª","Leste","Rua José Alves de Paiva, 530","Jd. Santa Inês II",12248800,39126477,39295433,null,null,"EF 1º ao 6º ano e 6ª a 8ª série / Ens. Médio",null,"e902548p@see.sp.gov.br",null,"902548"]
[70,"EE","SANT´ANA DO PARAÍBA","EE SANT´ANA DO PARAÍBA","SANT´ANA DO PARAÍBA","Norte","Rua Guarani, 130","Santana",12211740,39217261,39216870,null,null,"EF 1º ao 5º ano",null,"e013651p@see.sp.gov.br",null,"013651"]
[71,"EE","SÔNIA MARIA ALEXANDRE PEREIRA","EE SÔNIA MARIA ALEXANDRE PEREIRA","SÔNIA MARIA ALEXANDRE PEREIRA, PROFª","Sul","Rua Waldemar Teixeira, 1000","Pq. Interlagos",12229010,39445447,null,null,null,"EF 6ª a 8ª série / Ens. Médio",null,"e351064p@see.sp.gov.br",null,"351064"]
[72,"EE","SUELY ANTUNES DE MELLO","EE SUELY ANTUNES DE MELLO","SUELY ANTUNES DE MELLO, PROFª","Central","Rua Siqueira Campos, 845","Vila Maria",12210250,39213944,39229848,null,null,"EF 1º ao 5º ano",null,"e013894p@see.sp.gov.br",null,"013894"]
[74,"EE","UBIRAJARA BERNA DE CHIARA","EE UBIRAJARA BERNA DE CHIARA","UBIRAJARA BERNA DE CHIARA","Leste","Rua Flor de Liz, 113","Jd. das Flores",12247650,39051511,39051011,null,null,"EF 1º ao 6º ano e 6ª a 8ª série",null,"e901573p@see.sp.gov.br",null,"901573"]
[75,"EE","VALMAR LOURENÇO SANTIAGO","EE VALMAR LOURENÇO SANTIAGO","VALMAR LOURENÇO SANTIAGO, PROF","Leste","Rua Dantas Luis do Prado, 345","Campos de São José",12226570,39022460,39022440,null,null,"Ens. Médio",null,"e020874p@see.sp.gov.br",null,"020874"]
[76,"EE","WILMA RAGAZZI BOCCARDO","EE WILMA RAGAZZI BOCCARDO","WILMA RAGAZZI BOCCARDO, PROFª","Sul","Rua Bacabal, 3550","Vale do Sol",12237001,39319553,39314670,null,null,"EF 1º ao 6º ano e 6ª a 8ª série",null,"e013778p@see.sp.gov.br",null,"013778"]
[77,"EE","XENOFONTE STRABÃO DE CASTRO","EE XENOFONTE STRABÃO DE CASTRO","XENOFONTE STRABÃO DE CASTRO, PROF","Leste","Rua Abelardo Alves de Paiva, 53","Jd. Santa Inês I",12248490,39293031,39296344,null,null,"EF 1º ao 6º ano e 6ª a 8ª série / Ens. Médio",null,"e917266p@see.sp.gov.br",null,"917266"]
[78,"EE","YOSHIYA TAKAOKA","EE YOSHIYA TAKAOKA","YOSHIYA TAKAOKA","Norte","Rua José Bonifácio de Arantes, 272","Vila Paiva",12213350,39234743,39223330,null,null,"EF 6º ano e 6ª a 8ª série / Ens. Médio",null,"e013648p@see.sp.gov.br",null,"013648"]
[79,"EE","ZILAH FERREIRA VIAGI PASSARELLI DE CAMPOS","EE ZILAH FERREIRA VIAGI PASSARELLI DE CAMPOS","ZILAH FERREIRA VIAGI PASSARELLI DE CAMPOS, PROFª","Sul","Rua Votuporanga, 326","Bosque dos Eucaliptos",12233490,39361320,39361080,null,null,"EF 6º ano e 6ª a 8ª série / Ens. Médio",null,"e919724p@see.sp.gov.br",null,"919724"]
[80,"EE","ZILDA ALTIMIRA SOCI","EE ZILDA ALTIMIRA SOCI","ZILDA ALTIMIRA SOCI, PROFª","Norte","Largo Boa Vista, 480","Jd. Boa Vista",12213690,39225090,39234690,39481033,null,"EF 1º ao 5º ano",null,"e013500p@see.sp.gov.br",null,"013500"]
[81,"EEIEF","MADRE TEREZA","EEIEF MADRE TEREZA"]
[82,"EMEF","ÁLVARO GONÇALVES","EMEF ÁLVARO GONÇALVES","ÁLVARO GONÇALVES, PROF","Sul","Rua Albertina Pereira Lima, 151","Campo dos Alemães","12.239-740","3966-2298",null,"3966-1278","3966-0324","EF AI e AF","M - T / Int. ","emefalvarogoncalves@sjc.sp.gov.br","emefalvarogoncalves","241982"]
[83,"EMEF","ANA BERLING MACEDO","EMEF ANA BERLING MACEDO","ANA BERLING MACEDO, PROFª","Norte","Rua Alziro Lebrão, 318","Alto da Ponte","12.212-500","3921-6839","3942-8470","3942-8470","3941-0897","EF AI e AF / EJA AI e AF","M - T - N","emefanaberling@sjc.sp.gov.br","emefanaberlingmacedo / emefanaberling","056790"]
[84,"EMEF","ANTÔNIO PALMA SOBRINHO","EMEF ANTÔNIO PALMA SOBRINHO","ANTÔNIO PALMA SOBRINHO, PROF","Leste","Rua Angelo Scarpel, 163","Pq Nova Esperança","12.226-170","3907-1124","3907-3939","3907-1124","3907-0360","EF AI e AF / EJA AI e AF","M - T - N","emefantoniopalma@sjc.sp.gov.br","emefantoniopalma ","078153"]
[85,"EMEF","ÁUREA CANTINHO RODRIGUES","EMEF ÁUREA CANTINHO RODRIGUES","ÁUREA CANTINHO RODRIGUES, PROFª","Centro","Rua Iran, 135","Jd Oswaldo Cruz","12.216-600","3921-8765","3942-8011","3942-8011","3941-0328","EF AI e AF / EJA AI e AF","M - T - N","emefaureacantinho@sjc.sp.gov.br","emefaureacantinho / emefaureacantinho568","056820"]
[117,"EMEF","DOM PEDRO DE ALCÂNTARA","EMEF DOM PEDRO DE ALCÂNTARA","PEDRO DE ALCÂNTARA, DOM","Sul","Av Adilson José da Cruz, 7581","Conj Hab Dom Pedro I","12.232-750","3966-1964","3966-1244","3966-1601","3966-0270","EF AI e AF / EJA AI e AF","M - T - N","emefdompedro@sjc.sp.gov.br","emefdompedro","062492"]
[86,"EMEF","DOSULINA CHENQUE CHAVES DE ANDRADE","EMEF DOSULINA CHENQUE CHAVES DE ANDRADE","DOSULINA CHENQUE CHAVES DE ANDRADE, PROFª","Norte","Av Pico das Agulhas Negras, 1594","Jd Altos de Santana","12.214-000","3921-6448","3942-5904","3921-6448","3941-0958","EF AI e AF","M - T","emefdosulina@sjc.sp.gov.br","emefdosulina / emefdosulinachenque","227900"]
[87,"EMEF","ELIZABETE DE PAULA HONORATO","EMEF ELIZABETE DE PAULA HONORATO","ELIZABETE DE PAULA HONORATO, PROFª","Leste","Rua Aurélio Portilho Castellanos, 124","Jd Mariana I","12.226-854","3912-9467",null,"3912-8666","3912-0910","EF AI e AF","M - T","emefelizabetepaula@sjc.sp.gov.br","emefelizabetepaula / emef.elizabete.de.paula","281670"]
[88,"EMEF","ELZA REGINA FERREIRA BEVILACQUA","EMEF ELZA REGINA FERREIRA BEVILACQUA","ELZA REGINA FERREIRA BEVILACQUA, PROFª","Sul","Rua Breno de Moura, s/nº","Jd Estoril","12.232-040","3916-7020","3916-6420","3916-7020","3917-0277 / 3916-0306","EF AI e AF","M - T","emefelzaregina@sjc.sp.gov.br","emef_elza_regina / emefelzaregina","090050"]
[89,"EMEF","EMMANUEL ANTONIO DOS SANTOS","EMEF EMMANUEL ANTONIO DOS SANTOS","EMMANUEL ANTONIO DOS SANTOS","Leste","Rua das Cerejas, 150","Residencial Frei Galvão","12.248-701","3912-1932","3929-8970",null,null,"EF AI e AF","M - T","emefemmanuelantonio@sjc.sp.gov.br"]
[90,"EMEF","FLÁVIO BERLING MACEDO ","EMEF FLÁVIO BERLING MACEDO ","FLÁVIO BERLING MACEDO, PROF ","Centro","Rua Parana, 111","Vila Maria","12.209-250","3909-1070","3909-1077",null,null,"PIQ - EJA AI e AF","-","emefflavioberling@sjc.sp.gov.br",null,"091558"]
[91,"EMEF","GERALDO DE ALMEIDA","EMEF GERALDO DE ALMEIDA","GERALDO DE ALMEIDA, PROF","Leste","Rua Camomila, 100","Chác Pousada do Vale","12.226-763","3929-2545","3929-4566","3929-2545","3912-0666","EF AI e AF","M - T","emefgeraldoalmeida@sjc.sp.gov.br","emefgeraldoalmeida","227912"]
[92,"EMEF","HÉLIO AUGUSTO DE SOUZA","EMEF HÉLIO AUGUSTO DE SOUZA","HÉLIO AUGUSTO DE SOUZA, PROF","Leste","Pça dos Músicos, s/nº","Jd Valparaíba","12.221-371","3929-5996","3912-5436","3912-5436","3912-0514","EF AI e AF","M - T","emefhelioaugusto@sjc.sp.gov.br","emefhelioaugusto / emefhas","096672"]
[93,"EMEF","HÉLIO WALTER BEVILACQUA","EMEF HÉLIO WALTER BEVILACQUA","HÉLIO WALTER BEVILACQUA, PROF","Sul","Rua Oscar Ferreira da Silva, 155 / Rua José Marinho do Nascimento, s/nº ","Jardim República","12.234-837","3939-2310",null,null,null,"EF AI e AF","M - T","emefheliobevilacqua@sjc.sp.gov.br",null,"495300"]
[94,"EMEF","HOMERA DA SILVA BRAGA","EMEF HOMERA DA SILVA BRAGA","HOMERA DA SILVA BRAGA, PROFª","Sul","Rua Joaquim de Paula, 670","Cidade Morumbi","12.236-450","3937-9166","3937-9329","3937-9329","3934-0445","EF AI e AF","M - T","emefhomera@sjc.sp.gov.br","emef.homera.da.silva.braga / emefhomera1 / emefhomera","359981"]
[95,"EMEF","IGNÊZ SAGULA FOSSÁ","EMEF IGNÊZ SAGULA FOSSÁ","IGNÊZ SAGULA FOSSÁ, PROFª","Oeste","Rua Pedro Luiz de Oliveira Costa, 1050","Limoeiro","12.241-430","3937-2065","3933-0408 ",null,"3934-0932","EF AI","Integral ","emefignezsagula@sjc.sp.gov.br","emefignezsagula","664911"]
[96,"EMEF","ILDETE MENDONÇA BARBOSA","EMEF ILDETE MENDONÇA BARBOSA","ILDETE MENDONÇA BARBOSA, PROFª","Sul","Rua Dr Miguel Jansen Filho, 80","Pq Residencial União","12.239-024","3966-1688","3966-1026","3966-1688","3966-0457","EF AI e AF","M - T","emefildetemendonca@sjc.sp.gov.br","emefildetemendonca","241994"]
[97,"EMEF","ILGA PUSPLATAIS","EMEF ILGA PUSPLATAIS","ILGA PUSPLATAIS, PROFª","Leste","Rua Uberlândia, 465","Jd. Ismênia","12.220-690","3902-3695","3902-3034 - orelhão?",null,"3912-0557","EF AI e AF","M - T","emefilga@sjc.sp.gov.br","emefilgapusplatais","436999"]
[98,"EMEF","JACYRA VIEIRA BARACHO","EMEF JACYRA VIEIRA BARACHO","JACYRA VIEIRA BARACHO, PROFª","Sul","Rua Florença, 100","Jd Veneza","12.237-060","3933-0650","3934-5407","3933-0650","3934-0456","EF AI e AF","M - T / Int. ","emefjacyrabaracho@sjc.sp.gov.br","emefjacyravieira / emefjacyravieira1 / emefjacyra","090136"]
[99,"EMEF","LEONOR PEREIRA NUNES GALVÃO","EMEF LEONOR PEREIRA NUNES GALVÃO","LEONOR PEREIRA NUNES GALVÃO, PROFª","Leste","Rua José Molina, 150","Vl Industrial","12.220-300","3929-1714","3912-1750","3912-1750","3912-0574","EF AI e AF","M - T","emefleonorgalvao@sjc.sp.gov.br","emefleonorpereira / emefleonor","069085"]
[100,"EMEF","LÚCIA PEREIRA RODRIGUES","EMEF LÚCIA PEREIRA RODRIGUES","LÚCIA PEREIRA RODRIGUES, PROFª","Sudeste","Pça IV Centenário, 401","Jd Santa Fé","12.228-120","3944-1769","3944-1769","3944-1850","3944-0248","EF AI e AF","M - T","emefluciapereira@sjc.sp.gov.br","emefluciapereira","092265"]
[101,"EMEF","LUIZ LEITE","EMEF LUIZ LEITE","LUIZ LEITE, PROF","Leste","Rua Benedito Andrade, 5","Res Galo Branco","12.247-540","3905-2510","3905-1139","3905-2510","3905-0407","EF AI e AF","M - T","emefluizleite@sjc.sp.gov.br","emefluizleite","271287"]
[102,"EMEF","LUZIA LEVINA APARECIDA BORGES","EMEF LUZIA LEVINA APARECIDA BORGES","LUZIA LEVINA APARECIDA BORGES, PROFª","Sul","Rua Honorato Gonçalves Teixeira, 205","Jd Cruzeiro do Sul","12.234-813","3966-1569","3966-1187","3966-1187","3966-0326","EF AI e AF","M - T","emefluzialevina@sjc.sp.gov.br","emefluzialevina","242007"]
[103,"EMEF","MARIA AMÉLIA WAKAMATSU","EMEF MARIA AMÉLIA WAKAMATSU","MARIA AMÉLIA WAKAMATSU, PROFª","Leste","Rua Virgílio Fernandes de Oliveira, 31","Campos de São José","12.226-690","3929-7535","3912-4775","3912-4775","3912-0859","EF AI e AF / EJA AI","M - T - N","emefmariaamelia@sjc.sp.gov.br","emefmariaamelia / emefmariaamelia1 / emefmaw","074925"]
[104,"EMEF","MARIA APARECIDA SANTOS RONCONI","EMEF MARIA APARECIDA SANTOS RONCONI","MARIA APARECIDA SANTOS RONCONI, PROFª","Centro","Rua Ana Gonçalves da Cunha, 400","Jd. Jussara","12.215-390",39114549,39116663,"3911-4549",39410441,"EF AI e AF","M - T","emefmariaronconi@sjc.sp.gov.br","emefmariaaparecida / ronconi-2010 ","436987"]
[105,"EMEF","MARIA AUGUSTA MOREIRA DA COSTA","EMEF MARIA AUGUSTA MOREIRA DA COSTA","MARIA AUGUSTA MOREIRA DA COSTA, PROFª","Sudeste","Rua dos Canindés, s/nº ","Jd. Uirá",12227621,39118948,null,39118702,null,"EF AI","M - T","emefmariaaugusta@sjc.sp.gov.br",null,"447535"]
[106,"EMEF","MARIA DE MELO","EMEF MARIA DE MELO","MARIA DE MELO, PROFª","Sul","Rua Ingá, 40","Pq Industrial","12.235-741","3931-3593","3934-8030","3931-3593","3934-0802","EF AI e AF","M - T","emefmariamelo@sjc.sp.gov.br","emefmariademelo / emefmariamelo","056844"]
[107,"EMEF","MARIA NAZARETH DE MOURA VERONESE","EMEF MARIA NAZARETH DE MOURA VERONESE","MARIA NAZARETH DE MOURA VERONESE, PROFª","Sudeste","Pça Columba, 45","Jd da Granja","12.227-510","3921-3424","3942-4341","3921-3424","3941-0362","EF AI e AF","M - T","emefmariaveronese@sjc.sp.gov.br","emefmariaveronese / emefnazarethmoura","056807"]
[108,"EMEF","MARIA OFÉLIA VENEZIANI PEDROSA","EMEF MARIA OFÉLIA VENEZIANI PEDROSA","MARIA OFÉLIA VENEZIANI PEDROSA, PROFª","Oeste","Rua Sérgio Gonzaga Azevedo, 130","Jd Por do Sol","12.241-340","3933-0408","3934-9019","3934-9019","3937-0451","EF AI e AF","M - T","emefmariaofelia@sjc.sp.gov.br","emefmariaofelia","062480"]
[109,"EMEF","MARIANA TEIXEIRA CORNÉLIO","EMEF MARIANA TEIXEIRA CORNÉLIO","MARIANA TEIXEIRA CORNÉLIO, PROFª","Norte","Rua Benedito Pereira Lima, 200","Jd Telespark","12.212-700","3913-3600","3913-3601","3913-3601","3913-0398","EF AI e AF","M - T","emefmarianateixeira@sjc.sp.gov.br ","emefmarianateixeira / emefmarianateixeira1 / emefmarianateixeira2 / emefmarianateixeira3 /emefmarianateixeiracornelio","271457"]
[110,"EMEF","MARTHA ABIB CASTANHO","EMEF MARTHA ABIB CASTANHO","MARTHA ABIB CASTANHO, PROFª","Sul","Rua Leblon, 60","Jd. Satélite",12230021,"3933-3008",39336355,39336355,null,"EF AI","Integral ","emefmarthaabib@sjc.sp.gov.br",null,"463814"]
[111,"EMEF","MERCEDES CARNEVALLI KLEIN","EMEF MERCEDES CARNEVALLI KLEIN","MERCEDES CARNEVALLI KLEIN, PROFª","Sul","Rua Itapoã, 350","Jd Satélite","12230-810","3931-1404","3933-5673 / 3934-9082","3931-1404","3934-0846","EF AI e AF / EJA AI e AF","M - T - N","emefmercedescarnevalli@sjc.sp.gov.br","emefmercedescarnevalli","056832"]
[112,"EMEF","MERCEDES RACHID EDWARDS","EMEF MERCEDES RACHID EDWARDS","MERCEDES RACHID EDWARDS","Norte","Est Mun Ver Pedro David, 19251","São Francisco Xavier","12.249-000","3926-1634","3926-1874","3926-1874","3926-0228","EF AI e AF / EJA AI","M - T - N / Int. ","emefmercedesrachid@sjc.sp.gov.br","emefmercedesrachid / emefmercedesrachidsfx","281700"]
[113,"EMEF","MOACYR BENEDICTO DE SOUZA","EMEF MOACYR BENEDICTO DE SOUZA","MOACYR BENEDICTO DE SOUZA, PROF","Sul","Rua Maria Martins Ottoboni, 100","Campo dos Alemães","12.239-420","3966-1829","3966-1000","3966-1000","3966-0323","EF AI e AF","M - T - N / Int. ","emefmoacyrbenedicto@sjc.sp.gov.br","emefmoacyrbenedicto / emef_moacyr / emef.moacyr","092241"]
[114,"EMEF","NORMA DE CONTI SIMÃO","EMEF NORMA DE CONTI SIMÃO","NORMA DE CONTI SIMÃO, PROFª","Sul","Est Arcílio Moreira da Silva, 349","Bosque dos Ipês","12.236-852","3937-1818","3937-2828","3937-2828",null,"EF AI e AF","M - T","emefnormaconti@sjc.sp.gov.br","emefnormaconti","281694"]
[115,"EMEF","OTACÍLIA MADUREIRA DE MOURA","EMEF OTACÍLIA MADUREIRA DE MOURA","OTACÍLIA MADUREIRA DE MOURA, PROFª","Sul","Pça Quiririm, 101","Vl Nova Conceição","12.231-270","3921-5655","3942-4780","3921-5655","3941-0548","EF AI e AF","M - T","emefotaciliamoura@sjc.sp.gov.br","emefotaciliamadureira","056789"]
[116,"EMEF","PALMYRA SANT'ANNA","EMEF PALMYRA SANT'ANNA","PALMYRA SANT'ANNA, PROFª","Leste","Av Pres Juscelino Kubitschek de Oliveira, 6907","Vl Industrial","12.220-000","3929-2089","3912-5510","3929-2089","3912-0455","EF AI e AF / EJA AI e AF","M - T - N","emefpalmyrasantanna@sjc.sp.gov.br","emefpalmyrasantanna / emefpalmyrasantanna8 / palmyra.santanna / aninha.finatti","056777"]
[118,"EMEF","POSSIDÔNIO JOSÉ DE FREITAS","EMEF POSSIDÔNIO JOSÉ DE FREITAS","POSSIDÔNIO JOSÉ DE FREITAS","Leste","Rua Felício Jabbur Nasser, 935","Res Galo Branco","12.247-530","3905-1911 / 3905-3030","3905-1911 ","3905-1911","3905-0203","EF AI e AF / EJA AI e AF","M - T - N","emefpossidoniofreitas@sjc.sp.gov.br","emefpossidoniojose ","069097"]
[119,"EMEF","POSSIDÔNIO SALLES","EMEF POSSIDÔNIO SALLES","POSSIDÔNIO SALLES, PROF","Leste","Rua Benedito Eras, s/nº ","Jd. Americano",12225070,39027392,"3902-7397",null,null,"EF AI","M - T","emefpossidoniosalles@sjc.sp.gov.br",null,"463826"]
[120,"EMEF","RIO COMPRIDO","EMEF RIO COMPRIDO","RIO COMPRIDO","Sul","Rua São Francisco, 181","Rio Comprido",12238000,39311428,null,39316421,null,"EF AI","M - T","emefriocomprido@sjc.sp.gov.br",null,"447547"]
[121,"EMEF","ROSA TOMITA","EMEF ROSA TOMITA","ROSA TOMITA, PROFª","Leste","Rua Ayrton Senna da Silva, 90","Jd São José II","12.248-678","3929-2995","3929-2995","3929-3442","3912-0390","EF AI e AF / EJA AI","Integral  - N","emefrosatomita@sjc.sp.gov.br","emefrosatomita / rosa.tomita","084621"]
[122,"EMEF","RUTH NUNES DA TRINDADE","EMEF RUTH NUNES DA TRINDADE","RUTH NUNES DA TRINDADE, PROFª","Sul","Rua Waldemar Teixeira, 900","Pq Interlagos","12.229-010","3944-1030","3944-1670","3944-1670","3944-0370","EF AI e AF / EJA AI","M - T - N","emefruthnunes@sjc.sp.gov.br","emefruthnunes","271299"]
[123,"EMEF","SEBASTIANA COBRA","EMEF SEBASTIANA COBRA","SEBASTIANA COBRA, PROFª","Oeste","Rua dos Amores-Perfeitos, 95","Jd das Indústrias","12.240-150","3931-1814","3937-7629","3934-5393",null,"EF AI e AF","M - T","emefsebastianacobra@sjc.sp.gov.br","emefsebastianacobra / emef.sebastianacobra","056819"]
[124,"EMEF","SILVANA MARIA RIBEIRO DE ALMEIDA","EMEF SILVANA MARIA RIBEIRO DE ALMEIDA","SILVANA MARIA RIBEIRO DE ALMEIDA, PROFª","Leste","Rua Quatro de Março, 10","Jd Cerejeiras","12.225-570","3907-5772","3907-7494","3907-7494","3907-0397","EF AI e AF","M - T","emefsilvanamaria@sjc.sp.gov.br","emefsilvana / emefsilvanamariaribeirodealmeida / emefsilvanamaria","281682"]
[125,"EMEF","SÔNIA MARIA PEREIRA DA SILVA","EMEF SÔNIA MARIA PEREIRA DA SILVA","SÔNIA MARIA PEREIRA DA SILVA, PROFª","Leste","Rua dos Alfaiates, 321","Pq Novo Horizonte","12.225-740","3907-4020","3907-3355","3907-4020","3907-0427 / 3907-0422 ","EF AI e AF","M - T","emefsoniamaria@sjc.sp.gov.br","emefsoniamaria / emef.sonia.maria","271305"]
[126,"EMEF","THEREZINHA DO MENINO JESUS SOARES DO NASCIMENTO","EMEF THEREZINHA DO MENINO JESUS SOARES DO NASCIMENTO","THEREZINHA DO MENINO JESUS SOARES DO NASCIMENTO, PROFª","Sul","Rua Francisco Carlos Barbosa, 200","Conj Hab Dom Pedro I","12.232-841","3966-1582","3966-1028","3966-1028","3966-0273","EF AI e AF","M - T","emeftherezinhajesus@sjc.sp.gov.br","emeftherezinhamenino / therezinha.menino","070476"]
[127,"EMEF","VERA BABO DE OLIVEIRA","EMEF VERA BABO DE OLIVEIRA","VERA BABO DE OLIVEIRA, PROFª","Norte","Av Alto do Rio Doce, 801","Jd Altos de Santana","12.214-010","3921-5748","3942-4478","3921-5748","3941-0536","EF AI e AF","M - T / Int. ","emefverababo@sjc.sp.gov.br","emefverababo ","069048"]
[128,"EMEF","VERA LÚCIA CARNEVALLI BARRETO","EMEF VERA LÚCIA CARNEVALLI BARRETO","VERA LÚCIA CARNEVALLI BARRETO, PROFª","Norte","Av Olivo Gomes, 520","Santana","12.211-115","3921-6258 / 3942-2780","3921-6258 ","3921-6258","3941-0352","EF AI e AF","M - T","emefveralucia@sjc.sp.gov.br","emefveralucia","086022"]
[129,"EMEF","WALDEMAR RAMOS",{"$f":"B130 & \" \" &C130","v":"EMEF WALDEMAR RAMOS"},"WALDEMAR RAMOS, PROF","Leste","Rua México, 84","Vista Verde","12.223-410","3929-6319 / 3912-5840","3902-8454 ","3929-6319","3912-0318","EF AI e AF","M - T","emefwaldemarramos@sjc.sp.gov.br","emefwaldemarramos / waldemarramos","056765"]
[130,"EMEI","ANA LÚCIA DE CASTRO MICHELETO","EMEI ANA LÚCIA DE CASTRO MICHELETO","ANA LÚCIA DE CASTRO MICHELETO, PROFª","Leste","Rua Patativa, 200","Vl Tatetuba","12.220-140","3929-6843","3929-3054","3929-6843","3912-0662","Infantil I, II e III","M - T"," emeianalucia@sjc.sp.gov.br","emeianalucia / emei.micheleto","089624"]
[131,"EMEI","ÂNGELA DE CASTRO FERNANDES LOPES","EMEI ÂNGELA DE CASTRO FERNANDES LOPES","ÂNGELA DE CASTRO FERNANDES LOPES, PROFª","Sul","Rua Turiaçu, 792","Pq Industrial","12.235-650","3931-8518","3933-4594",null,"3934-0381","Infantil I, II e III","M - T","emeiangeladecastro@sjc.sp.gov.br","emeiangelacastro / emeiangelacastro1 / emei.angela.de.castro","085170"]
[132,"EMEI","ARLINDO CAETANO FILHO ","EMEI ARLINDO CAETANO FILHO ","ARLINDO CAETANO FILHO, PROF ","Sul","Rua Valdemir de Oliveira, 42","Conj Res 31 de março","12.237-200","3931-1684","","3931-1684","3934-0564","Infantil I, II e III","M - T"," emeiarlindocaetano@sjc.sp.gov.br","emeiarlindocf / emeiarlindocaetano","089618"]
[133,"EMEI","ARTUR APARECIDO DA ROSA - R09","EMEI ARTUR APARECIDO DA ROSA - R09","ARTUR APARECIDO DA ROSA - R09","Sudeste","Av São Vicente de Paulo, s/nº","São Judas Tadeu","12.228-370","3944-1765","",null,"3944-0372","Infantil I, II e III","M - T","emeiarturaparecido@sjc.sp.gov.br","neicleanir / emeiarturaparecido / emeiartur","233304"]
[134,"EMEI","CASSIANO RICARDO","EMEI CASSIANO RICARDO","CASSIANO RICARDO","Centro","Rua Eng Prudente Meireles de Morais, 1000","Vl Adyana","12.243-750","3921-1117","3921-1117","3921-1117","","Infantil I, II e III","M - T","emeicassianoricardo@sjc.sp.gov.br","emeicassianoricardo / emei.cassiano.ricardo","082995"]
[135,"EMEI","CHÁCARAS REUNIDASS ","EMEI CHÁCARAS REUNIDASS ","CHÁCARAS REUNIDAS, DAS ","Sul","Rua Miracema, s/nº","Chácaras Reunidas","12.238-360","3934-3836","",null,"3934-0635","Infantil I, II e III","M - T","neichacarasreunidas@sjc.sp.gov.br","neichacarasreunidas","090128"]
[136,"EMEI","CLEANIR SANTOS MALDONADO CAMPOY - R09","EMEI CLEANIR SANTOS MALDONADO CAMPOY - R09","CLEANIR SANTOS MALDONADO CAMPOY, PROFª - R09","Sul","Rua Noruega, 726","Vl Letônia","12.231-140","3922-9394",null,"3922-9394","3913-0845","Infantil I, II e III","M - T"," neicleanirsantos@sjc.sp.gov.br","neicleanir","089606"]
[137,"EMEI","CREMILDA ALVES DE OLIVEIRA AZEVEDO - R11","EMEI CREMILDA ALVES DE OLIVEIRA AZEVEDO - R11","CREMILDA ALVES DE OLIVEIRA AZEVEDO, PROFª - R11","Norte","Rua Durvalina Isaura Conceição dos Santos, 242","Vl Cristina","12.211-600","3942-3139","",null,"","Infantil I, II e III","M - T","emeicremildaalves@sjc.sp.gov.br","emeicremildalves / neivilacesar","089631"]
[138,"EMEI","DOMINGOS DE MACEDO CUSTÓDIO","EMEI DOMINGOS DE MACEDO CUSTÓDIO","DOMINGOS DE MACEDO CUSTÓDIO, PROF","Leste","Rua Dr José de Moura Resende, 372","Vl Tesouro","12.221-470","3929-2325","",null,"3912-0757","Infantil I, II e III","M - T","emeidomingosdemacedo@sjc.sp.gov.br ","emeidomingosmacedo","096600"]
[139,"EMEI","ÉDERA IRENE PEREIRA DE OLIVEIRA CARDOSO ","EMEI ÉDERA IRENE PEREIRA DE OLIVEIRA CARDOSO ","ÉDERA IRENE PEREIRA DE OLIVEIRA CARDOSO, PROFª ","Leste","Rua Prof Luis Antonio Ribeiro de Macedo, 330","Jd Paraiso do Sol","12.225-250","3907-1481","","3907-2133","","Infantil I, II e III","M - T","emeiederairene@sjc.sp.gov.br","emeiedera / emei.prof.edera.irene","347607"]
[140,"EMEI","ELZA FERREIRA RAHAL - R01","EMEI ELZA FERREIRA RAHAL - R01","ELZA FERREIRA RAHAL, PROFª - R01","Centro","Rua Paraná, 111","Vl Maria","12.209-250","3909-1073","3909-1074","3942-2659","","Infantil I, II e III","M - T","emeielzaferreira@sjc.sp.gov.br","emeielzaferreira / neielzaferreira","089597"]
[141,"EMEI","FEBRÔNIO PEREIRA GOMES","EMEI FEBRÔNIO PEREIRA GOMES","FEBRÔNIO PEREIRA GOMES","Leste","Rua dos Carteiros, 50","Pq Novo Horizonte","12.225-700","3907-1439","3907-2672","3907-2672",null,"Infantil I, II e III","M - T","emeifebroniopereira@sjc.sp.gov.br ","emeifebroniopereira / emeifebronio1 / emei.febronio","090049"]
[142,"EMEI","IDELENA MENEZES TREFÍLIO DE CARVALHO","EMEI IDELENA MENEZES TREFÍLIO DE CARVALHO","IDELENA MENEZES TREFÍLIO DE CARVALHO, PROFª","Norte","Av Olivo Gomes, 590","Santana","12.211-115","3921-5770","3921-5770","3921-5770","3913-0384","Infantil I, II e III","M - T"," emeiidelenamenezes@sjc.sp.gov.br","emeiidelenamenezes","089588"]
[143,"EMEI","IRACEMA OLIVEIRA DE MELLO - R07","EMEI IRACEMA OLIVEIRA DE MELLO - R07","IRACEMA OLIVEIRA DE MELLO - R07","Sudeste","Rua Roberto Aparecido Cruz, 60","Jd Santo Onofre","12.228-077","3944-2328","3322-0850","3944-2328","3944-0264","Infantil I, II e III","M - T"," emeiiracemaoliveira@sjc.sp.gov.br","emeijardimsantafe / emei.iracema.oliveira.de.mello","092253"]
[144,"EMEI","JANE PALUMBO","EMEI JANE PALUMBO","JANE PALUMBO, PROFª","Sul","Rua Edilson Sabino dos Santos, s/nº","Conj Hab Dom Pedro I","12.232-610","3966-8339","3966-8339",null,"","Infantil I, II e III","M - T"," emeijanepalumbo@sjc.sp.gov.br","emeijanepalumbo","347590"]
[145,"EMEI","JARDIM MORUMBI, DO - R10","EMEI JARDIM MORUMBI, DO - R10","JARDIM MORUMBI, DO - R10","Sul","Av Elísio Galdino Sobrinho, 40",0,"12.236-740","3931-0002",null,"3931-0002","","Infantil I, II e III","M - T"," emeijardimmorumbi@sjc.sp.gov.br","emeijdmorubi / emeijardimmorumbi","090074"]
[146,"EMEI","JOÃO MARCONDES GUIMARÃES, PADRE","EMEI JOÃO MARCONDES GUIMARÃES, PADRE","JOÃO MARCONDES GUIMARÃES, PADRE","Sul","Rua Tatuí, 27","Bosque dos Eucaliptos","12.233-420","3916-5257","3916-5257","3916-5257",null,"Infantil I, II e III","M - T","emeipadrejoao@sjc.sp.gov.br ","emeipadrejoao","096684"]
[147,"EMEI","JOSÉ ANTERO CURSINO DOS SANTOS - R08 ","EMEI JOSÉ ANTERO CURSINO DOS SANTOS - R08 ","JOSÉ ANTERO CURSINO DOS SANTOS, PROF - R08 ","Sul","Rua Itapoã, 101","Jd Satélite","12.230-810","3931-3718","",null,"3937-0263","Infantil I, II e III","M - T","emeijoseantero@sjc.sp.gov.br","emeijoseantero","090189"]
[148,"EMEI","JOSÉ MADUREIRA LEBRÃO","EMEI JOSÉ MADUREIRA LEBRÃO","JOSÉ MADUREIRA LEBRÃO","Leste","Rua Maurício Maldonado Júnior, 94","Jd Mariana II","12.226-880","3929-2322","3912-9608",null,"","Infantil I, II e III","M - T","emeijosemadureira@sjc.sp.gov.br","emeilebrao / emeijmlebrao","306538"]
[149,"EMEI","JOSÉ PURCINI","EMEI JOSÉ PURCINI","JOSÉ PURCINI","Leste","Rua dos Cirurgiões Dentistas, 480","Jd Santa Inês II","12.248-515","3929-7402","3912-5780","3929-7402","3902-0212","Infantil I, II e III","M - T","emeijosepurcini@sjc.sp.gov.br","emeijosepurcini / emei_josepurcini","094596"]
[150,"EMEI","JOSÉ RUBENS FRANCO BONAFÉ, PADRE - R12","EMEI JOSÉ RUBENS FRANCO BONAFÉ, PADRE - R12","JOSÉ RUBENS FRANCO BONAFÉ, PADRE - R12","Norte","Rua Nossa Senhora da Salete, 34","Vl Cândida","12.213-580","3921-9987","3921-9987","3921-9987","3913-0392","Infantil I, II e III","M - T","emeipadrebonafe@sjc.sp.gov.br","emeipadrejose / emeipadrebonafe","083012"]
[151,"EMEI","JOSÉ SODÉRO BITENCOURT","EMEI JOSÉ SODÉRO BITENCOURT","JOSÉ SODÉRO BITENCOURT, PROF","Sul","Rua José Antonio Monteiro Santos, 15","Bosque dos Ipês","12.236-874","3939-4096","3939-4096","3939-3753","","Infantil I, II e III","M - T","emeijosesodero@sjc.sp.gov.br ","josesodero / josesodero1","347620"]
[152,"EMEI","LADIEL BENEDITO DE CARVALHO ","EMEI LADIEL BENEDITO DE CARVALHO ","LADIEL BENEDITO DE CARVALHO, PROF ","Sul","Rua Ana Benedicta Dias Pedrosa, 75","Parque Interlagos","12.229-829","3944-1828",null,null,"","Infantil I, II e III","M - T","emeiladielbenedito@sjc.sp.gov.br","emeiladiel / emeiladielbenedito","224662"]
[153,"EMEI","LOURDES DE OLIVEIRA MENDES","EMEI LOURDES DE OLIVEIRA MENDES","LOURDES DE OLIVEIRA MENDES, PROFª","Leste","Rua Rio Una, 484/488","Jd Pararangaba","12.224-720","3902-8879",null,"3902-8879",null,"Infantil I, II e III","M - T"," emeilourdesdeoliveira@sjc.sp.gov.br","emeilourdesoliveira","418365"]
[154,"EMEI","LÚCIA MARIA DO AMARAL ","EMEI LÚCIA MARIA DO AMARAL ","LÚCIA MARIA DO AMARAL, PROFª ","Sudeste","Rua José Benedito de Almeida Pena, 140","Jardim Santa Luzia","12.228-858","3912-9819",null,null,null,"Infantil I, II e III","M - T","emeiluciaamaral@sjc.sp.gov.br",null,"497071"]
[155,"EMEI","LUIZ SUNDFELD - R05","EMEI LUIZ SUNDFELD - R05","LUIZ SUNDFELD, PROF - R05","Leste","Rua Felício Jabbur Nasser, 1035","Res Galo Branco","12.247-530","3905-2263","","3905-2263","","Infantil I, II e III","M - T","emeiluizsundfeld@sjc.sp.gov.br","luizsundfeld / luiz.sundfeld / emeiluizsundfeld","225150"]
[156,"EMEI","MARIA ALICE PASQUARELLI","EMEI MARIA ALICE PASQUARELLI","MARIA ALICE PASQUARELLI, PROFª","Leste","Pça Joaquim Figueira de Andrade, 60","Jd Copacabana","12.221-221","3929-1854","",null,"","Infantil I, II e III","M - T"," emeimariaalice@sjc.sp.gov.br","emeipasquarelli / emeimariaalice / emei.pasquarelli / emei.maria.alice.pasquarelli","096647"]
[157,"EMEI","MARIA DA GLÓRIA MARIANO SANTOS","EMEI MARIA DA GLÓRIA MARIANO SANTOS","MARIA DA GLÓRIA MARIANO SANTOS, PROFª","Norte","Pça César Traballi, 80","Jd Telespark","12.212-810","3922-6002","3922-6002","3922-6002","3913-0399","Infantil I, II e III","M - T"," emeimariadagloria@sjc.sp.gov.br","emeimariagloria","092289"]
[158,"EMEI","MARIA EZEQUIEL SANT'ANNA - R08","EMEI MARIA EZEQUIEL SANT'ANNA - R08","MARIA EZEQUIEL SANT'ANNA, PROFª - R08","Sul","Rua Castor, 180","Jd Satélite","12.230-320","3937-4618","",null,"","Infantil I, II e III","M - T","emeimariaezequiel@sjc.sp.gov.br","emeimariaezequiel","085017"]
[159,"EMEI","MARIA JOSÉ GUIDO BROGLIATO FREIRE - R10","EMEI MARIA JOSÉ GUIDO BROGLIATO FREIRE - R10","MARIA JOSÉ GUIDO BROGLIATO FREIRE, PROFª - R10","Sul","Pça Bertolino Cláudio, 56","Jd Colonial","12.234-440","3966-2351",null,"3966-2351","3966-0322","Infantil II e III","M - T","emeimariajoseguido@sjc.sp.gov.br","emeimariajose","078037"]
[160,"EMEI","MARILDA APARECIDA MONTEMÓR","EMEI MARILDA APARECIDA MONTEMÓR","MARILDA APARECIDA MONTEMÓR, PROFª","Sul","Pça Victor Hugo, s/nº","Jd Oriental","12.236-231","3934-1602","3939-3268","3939-3268","3934-7576","Infantil I, II e III","M - T","emeimarildamontemor@sjc.sp.gov.br","emeimarildaaparecida","086009"]
[161,"EMEI","MÁRIO CAMPANER ","EMEI MÁRIO CAMPANER ","MÁRIO CAMPANER, PROF ","Oeste","Pça Flamboyant, 131","Jd das Indústrias","12.241-100","3931-5785",null,null,"3934-0411","Infantil I, II e III","M - T","emeimariocampaner@sjc.sp.gov.br","emeimariocampaner","087497"]
[162,"EMEI","NORMA LÚCIA RODRIGUES DE ALMEIDA - R05","EMEI NORMA LÚCIA RODRIGUES DE ALMEIDA - R05","NORMA LÚCIA RODRIGUES DE ALMEIDA, PROFª - R05","Leste","Rua Flor de Lis, 133","Conj Res Jd das Flores","12.247-650","3905-2099","",null,"3905-0424","Infantil I, II e III","M - T","emeinormalucia@sjc.sp.gov.br","norma.lucia.r.almeida / emeinormalucia","090177"]
[163,"EMEI","OLGA FRANCO CUSTÓDIO","EMEI OLGA FRANCO CUSTÓDIO","OLGA FRANCO CUSTÓDIO, PROFª","Leste","Av das Rosas, 232","Jd Motorama","12.224-000","3929-6823","3929-6823","3929-6823","3912-0762","Infantil I, II e III","M - T"," emeiolgafranco@sjc.sp.gov.br","emeiolga.franco / emeiolgafranco","087476"]
[164,"EMEI","SANDRA REGINA DE ALMEIDA PAULO ","EMEI SANDRA REGINA DE ALMEIDA PAULO ","SANDRA REGINA DE ALMEIDA PAULO, PROFª ","Leste","Pça José Carlos Pace, 220","Jd Americano","12.225-050","3929-6773",null,null,"3912-0768","Infantil I, II e III","M - T","emeisandraregina@sjc.sp.gov.br","emei.prof.edera.irene / emeisandraregina","094584"]
[165,"EMEI","TORATARO TAKITANI","EMEI TORATARO TAKITANI","TORATARO TAKITANI","Sul","Pça Bahia de São Salvador, 142 ","Jd Vale do Sol","12.238-090","3931-3382","3931-3382","3931-3382","3934-0442","Infantil I, II e III","M - T"," emeitoratarotakitani@sjc.sp.gov.br","emei.torataro.takitani / emeitoratarotakitani","086010"]
[166,"EMEI","VALÉRIA APARECIDA DE ALMEIDA VASCONCELOS","EMEI VALÉRIA APARECIDA DE ALMEIDA VASCONCELOS","VALÉRIA APARECIDA DE ALMEIDA VASCONCELOS, PROFª","Sul","Estr Arcílio Moreira da Silva, 191","Res Gazzo","12.236-852","3931-8887","",null,"","Infantil I, II e III","M - T","emeivaleriaaparecida@sjc.sp.gov.br",null,"478350"]
[167,"EMEI","VILA SÃO PEDRO ","EMEI VILA SÃO PEDRO ","VILA SÃO PEDRO, DA ","Centro","Pça Paraíba, 119","Vl São Pedro","12.216-390","3922-9689","",null,"","Infantil I, II e III","M - T","neivilasaopedro@sjc.sp.gov.br","emeizelitoledo / neisaopedro","096660"]
[168,"EMEI","ZELI DE TOLEDO DIAS ","EMEI ZELI DE TOLEDO DIAS ","ZELI DE TOLEDO DIAS, PROFª ","Sudeste","Av das Curruíras, 160","Jd Uirá","12.227-620","3921-4527","",null,"3913-0273","Infantil I, II e III","M - T","emeizelidetoledo@sjc.sp.gov.br","emeizelitoledo","091546"]
[169,"EMEI","ZENAIDE VILALVA DE ARAÚJO ","EMEI ZENAIDE VILALVA DE ARAÚJO ","ZENAIDE VILALVA DE ARAÚJO, PROFª ","Centro","Rua Eng Prudente Meireles de Morais, 1000","Vl Adyana","12.243-750","3921-7439","3921-7439",null,"","Infantil I, II e III","M - T"," emeizenaidevilalva@sjc.sp.gov.br","emeizenaide / emeizenaidevilalva","056753"]
[170,"EMEI","ZILDA COSTA DE OLIVEIRA","EMEI ZILDA COSTA DE OLIVEIRA","ZILDA COSTA DE OLIVEIRA, PROFª","Sudeste","Pça Hélio Dias, 137","Pq Santa Rita","12.227-230","3922-5411","3922-5411","-","3943-0327","Infantil I, II e III","Integ. / M - T"," emeizildacosta@sjc.sp.gov.br","zilcosoli / emeizildacosta","091510"]
[171,"Filantrópica","BEM TI VI","Filantrópica BEM TI VI"]
[172,"Filantrópica","INTEGRA","Filantrópica INTEGRA"]
[173,"IMI","ANJELA MARIA DE SOUZA ALVES","IMI ANJELA MARIA DE SOUZA ALVES","ANJELA MARIA DE SOUZA ALVES, PROFª","Sul","Av Benedito Bento, 80","Cidade Morumbi","12.236-580","3931-5466",null,null,"3937-0248","Berçário I, II e III e Infantil I, II e III","Integral","imianjelamaria@sjc.sp.gov.br","imianjelamaria","225472"]
[174,"IMI","ARMILINDA LOCATELLI DE MACEDO","IMI ARMILINDA LOCATELLI DE MACEDO","ARMILINDA LOCATELLI DE MACEDO","Leste","Rua Vitório Carnevalli, 176","Vl Tesouro","12.221-560","3929-5149",null,"3929-5149","","Berçário I, II e III e Infantil I, II e III","Integral","imiarmilindalocatelli@sjc.sp.gov.br ","imiarmilinda","225125"]
[175,"IMI","BENEDITO CARVALHO DOS SANTOS","IMI BENEDITO CARVALHO DOS SANTOS","BENEDITO CARVALHO DOS SANTOS","Centro","Av Senador Teotônio Vilela, 900","Vl Santa Luzia","12.209-040","3922-5253",null,null,"3941-0777","Berçário I, II e III e Infantil I, II e III","Integral","imibeneditocarvalho@sjc.sp.gov.br","imibeneditocarvalho / imi.benedito","225137"]
[176,"IMI","DIMÉIA MARIA FERREIRA DINIZ ENDO","IMI DIMÉIA MARIA FERREIRA DINIZ ENDO","DIMÉIA MARIA FERREIRA DINIZ ENDO, PROFª","Sul","Rua Nelson José de Carvalho Ferreira, 91","Campo dos Alemães","12.239-170","3966-1605",null,"3966-1605","3966-0313","Berçário I, II e III e Infantil I, II e III","Integral","imidimeiamaria@sjc.sp.gov.br","imidimeia","225484"]
[185,"IMI","DOM PEDRO DE ALCÂNTARA","IMI DOM PEDRO DE ALCÂNTARA","PEDRO DE ALCÂNTARA, DOM","Sul","Rua José Benedito Castilho, s/nº / esq. Av Adilson José da Cruz, 7581","Conj Hab Papa João Paulo II / Dom Pedro I","12.232-750","3966-2525",null,"","3966-0248","Berçário I, II e III e Infantil I, II e III","Integral"," imidompedro@sjc.sp.gov.br","imidompedro","225551"]
[177,"IMI","FERNANDO TAO DE AZEVEDO","IMI FERNANDO TAO DE AZEVEDO","FERNANDO TAO DE AZEVEDO","Sul","Rua Bambuí, 250 - esq com Rua Cigarras","Jd Satélite","12.230-130","3931-8990",null,null,null,"Berçário I, II e III e Infantil I, II e III","Integral","imifernandotao@sjc.sp.gov.br",null,"497435"]
[178,"IMI","FLÁVIO LENZI","IMI FLÁVIO LENZI","FLÁVIO LENZI","Leste","Pça das Gaivotas, 535","Vl Tatetuba","12.220-220","3912-3027",null,null,"3912-0472","Berçário I, II e III e Infantil I, II e III","Integral","imiflaviolenzi@sjc.sp.gov.br","imiflaviolenzi / imi.flavio.lenzi / imi_flaviolenzi / imi_flavio_lenzi / imi_flavio_lenzi1 ","225149"]
[179,"IMI","JESUS DE NAZARÉ","IMI JESUS DE NAZARÉ","JESUS DE NAZARÉ","Sul","Rua Apa, 100","Vl São Bento","12.231-580","3922-2319",null,"","3941-0702","Berçário I, II e III e Infantil I, II e III","Integral","imijesusdenazare@sjc.sp.gov.br","imijesusnazare","225496"]
[180,"IMI","JOANA MATTAR DE OLIVEIRA","IMI JOANA MATTAR DE OLIVEIRA","JOANA MATTAR DE OLIVEIRA","Sul","Rua José Cobra, 95","Pq Industrial","12.237-000","3931-9818",null,"3939-6271","3934-0714","Berçário I, II e III e Infantil I, II e III","Integral"," imijoanamattar@sjc.sp.gov.br","imijoanamattar","225502"]
[181,"IMI","JOÃO LOPES SIMÕES","IMI JOÃO LOPES SIMÕES","JOÃO LOPES SIMÕES","Sul","Pça Alexandre Magno, 166","Jd Oriental","12.236-190","3931-0194",null,"3931-0194","3934-0204","Berçário I, II e III e Infantil I, II e III","Integral","imijoaolopes@sjc.sp.gov.br","imijoaolopes","225514"]
[182,"IMI","MARIA DE LOURDES CONSTANTINO","IMI MARIA DE LOURDES CONSTANTINO","MARIA DE LOURDES CONSTANTINO, PROFª","Leste","Rua dos Eletricistas, 330","Pq Novo Horizonte","12.225-710","3907-2113",null,"3907-5994","3907-0425","Berçário I, II e III e Infantil I, II e III","Integral"," imimariadelourdes@sjc.sp.gov.br","maria.de.lourdes18 / imimarialourdes","225162"]
[183,"IMI","MARILDA FERREIRA DE BRITO BARROS PEREIRA","IMI MARILDA FERREIRA DE BRITO BARROS PEREIRA","MARILDA FERREIRA DE BRITO BARROS PEREIRA","Leste","Pça dos Músicos, 140","Jd Valparaíba","12.221-371","3929-8083",null,"","3912-0298","Berçário I, II e III e Infantil I, II e III","Integral","imimarildaferreira@sjc.sp.gov.br","imimarildapereira / imimarildaferreira","225186"]
[184,"IMI","MAROCA VENEZIANI","IMI MAROCA VENEZIANI","MAROCA VENEZIANI","Norte","Rua Alziro Lebrão s/nº","Alto da Ponte","12.212-500","3922-9937","3923-3762","","3913-0618","Berçário I, II e III e Infantil I, II e III","Integral","imimarocaveneziani@sjc.sp.gov.br ","imimarocaveneziane / imimarocaveneziani","225174"]
[186,"IMI","POUSADA DO VALE","IMI POUSADA DO VALE","POUSADA DO VALE","Leste","Rua Cerejeira, s/nº","Chác Pousada do Vale","12.226-740","3929-3168",null,"3929-3168","3912-0769","Berçário I, II e III e Infantil I, II e III","Integral","imipousadadovale@sjc.sp.gov.br ","imipousadavale / imipousadadovale / imipousadadovale1 / imipousadadovale2 / imipousadadovale3 / imipousadadovale4","074937"]
[187,"NEI","ALADIR MAIA RIBEIRO GOMES - R09","NEI ALADIR MAIA RIBEIRO GOMES - R09","ALADIR MAIA RIBEIRO GOMES - R09","Sul","Rua Porto Novo, 45","Jd Satélite","12.230-060","3931-6902","",null,"","Infantil I, II e III","M - T"," neialadir@sjc.sp.gov.br","neicleanir / neividoca","090025"]
[188,"NEI","ALTO DA PONTE, DO - R12","NEI ALTO DA PONTE, DO - R12","ALTO DA PONTE, DO - R12","Norte","Rua Itararé, 116","Alto da Ponte","12.212-430","3941-6097","",null,"3913-0403","Infantil I, II e III","M - T","neialtodaponte@sjc.sp.gov.br","emeipadrebonafe / neialtoponte","092236"]
[189,"NEI","ANA ISABEL BARBOSA - R13","NEI ANA ISABEL BARBOSA - R13","ANA ISABEL BARBOSA, PROFª - R13","Norte","Rua Benedito de Oliveira e Silva, 115","Buquirinha","12.213-790","3948-1313","",null,"3948-0268","Infantil I, II e III","M - T","neianaisabel@sjc.sp.gov.br","regiao13 / neibuquirinha","062467"]
[190,"NEI","BAIRRO DOS FREITAS - R11","NEI BAIRRO DOS FREITAS - R11","BAIRRO DOS FREITAS - R11","Norte","Estrada José Benedito de Oliveira, 1938","Bairro dos Freitas","12.214-422","3948-2834",null,null,null,"Infantil I, II e III","M - T","neibairrodosfreitas@sjc.sp.gov.br",null,"455301"]
[191,"NEI","DOROTI DA SILVA CUNHA ","NEI DOROTI DA SILVA CUNHA ","DOROTI DA SILVA CUNHA ","Leste","Rua Abelardo Alves de Paiva, 300 ","Jd Santa Ines I","12.248-490","3929-1928","",null,"3902-0271","Infantil I, II e III","M - T","neidorotidasilva@sjc.sp.gov.br","neidorotisilva","090153"]
[192,"NEI","ELZA MARIA DIAS MENDONÇA - R01","NEI ELZA MARIA DIAS MENDONÇA - R01","ELZA MARIA DIAS MENDONÇA, PROFª - R01","Centro","Pça Francisco Escobar, 103","Monte Castelo","12.215-170","3923-5216","",null,"","Infantil I, II e III","M - T","neielzamaria@sjc.sp.gov.br","neielzamaria / emeimontecastelo","096611"]
[193,"NEI","EUGÊNIO DE MELO - R05",{"$f":"B194 & \" \" &C194","v":"NEI EUGÊNIO DE MELO - R05"},"EUGÊNIO DE MELO, DE - R05","Leste","Rua Eloy Porto, 120 ","Eugênio de Melo","12.247-160","3905-2153","",null,"3905-0340","Infantil I, II e III","M - T","neifatimaberthoud@sjc.sp.gov.br","luizsundfeld / nei_eugenio_de_melo / neieugeniomelo","091534"]
[194,"NEI","JOSÉ PAULINO BICUDO ",{"$f":"B195 & \" \" &C195","v":"NEI JOSÉ PAULINO BICUDO "},"JOSÉ PAULINO BICUDO ","Centro","Rua Javaés, s/nº","Vale dos Pinheiros","12.242-370","3941-5895","",null,"","Infantil II e III","T"," neijosepaulinobicudo@sjc.sp.gov.br","emeizenaide / emeizenaidevilalva / neijosepaulino","078025"]
[195,"NEI","MARIANITA DE OLIVEIRA PEREIRA SANTOS ",{"$f":"B196 & \" \" &C196","v":"NEI MARIANITA DE OLIVEIRA PEREIRA SANTOS "},"MARIANITA DE OLIVEIRA PEREIRA SANTOS, PROFª ","Sul","Rua Viçosa, 5","Bosque dos Eucaliptos","12.233-290","3936-1002","3916-3516",null,"","Infantil I, II e III","M - T","emeimarianitadeoliveira@sjc.sp.gov.br","emeimarianita / emeimarianitaoliveira","090104"]
[196,"NEI","RIO COMPRIDO, DO - R10",{"$f":"B197 & \" \" &C197","v":"NEI RIO COMPRIDO, DO - R10"},"RIO COMPRIDO, DO - R10","Sul","Rua São Francisco , 181","Rio Comprido","12.235-000","3939-3224",null,null,"","Infantil I, II e III","M - T","neiriocomprido@sjc.sp.gov.br","emeijardimmorumbi / neiriocomprido / nei.rio.comprido","078013"]
[197,"NEI","SÃO FRANCISCO XAVIER - R13",{"$f":"B198 & \" \" &C198","v":"NEI SÃO FRANCISCO XAVIER - R13"},"SÃO FRANCISCO XAVIER, DE - R13","Norte","Rua Treze de Maio, s/nº","São Francisco Xavier","12.249-000","3926-1665","",null,"3926-0223","Infantil I, II e III","M - T","neisaofranciscoxavier@sjc.sp.gov.br","regiao13 / neisaofrancisco","078049"]
[null,null,"EE JOSÉ FREDERICO MARQUES","EE JOSÉ FREDERICO MARQUES"]
[198,"NEI","VICENTE SIMIÃO LUZ - R07",{"$f":"B200 & \" \" &C200","v":"NEI VICENTE SIMIÃO LUZ - R07"},"VICENTE SIMIÃO LUZ - R07","Sudeste","Rua Natálio Angelo Stabeli, 20","Jd São Leopoldo","12.228-191","3944-1481","",null,"3944-0368","Infantil II e III","M - T","neivicentesimiao@sjc.sp.gov.br","emei.iracema.oliveira.de.mello / neivicentesimiao","066412"]
[199,"NEI","VILA CÉSAR - R11","NEI VILA CÉSAR - R11","VILA CÉSAR, DA - R11","Norte","Rua João José do Nascimento, 77","Vl César","12.211-330","3923-5204","3923-5204",null,"","Infantil I, II e III","M - T"," neivilacesar@sjc.sp.gov.br","neivilacesar","090098"]
[200,"NEI","VILA PAIVA - R13","NEI VILA PAIVA - R13","VILA PAIVA, DA - R13","Norte","Rua Antonio Pedro Perotti, 375","Vl Paiva","12.213-400","3922-8122","",null,"","Infantil I, II e III","M - T","neivilapaiva@sjc.sp.gov.br","regiao13 / neivilapaiva","095936"]
[201,"NEI","VILA SÃO BENEDITO ","NEI VILA SÃO BENEDITO ","VILA SÃO BENEDITO, DA ","Sudeste","Pça Benedito Ugolino da Silva Guerra, 311","Vl São Benedito","12.227-060","3922-2419 - EE Domingos ","",null,"","Infantil I, II e III","M","neivilasaobenedito@sjc.sp.gov.br","emeizelitoledo / neisaobenedito","091595"]
[202,"NEI","VILA SÃO BENTO - R07","NEI VILA SÃO BENTO - R07","VILA SÃO BENTO, DA - R07","Sul","Rua Gurupi, 40","Vl São Bento","12.231-600","3943-4271","",null,"3911-0368","Infantil I, II e III","M","neivilasaobento@sjc.sp.gov.br","emei.iracema.oliveira.de.mello / neisaobento","092228"]
[203,"NEI","VILA SÃO GERALDO - R12","NEI VILA SÃO GERALDO - R12","VILA SÃO GERALDO, DA - R12","Norte","Rua Maj Manoel Fernandes Netto, 320","Vl São Geraldo","12.213-270","3921-2537","",null,"3913-0383","Infantil I, II e III","M - T","neivilasaogeraldo@sjc.sp.gov.br","emeipadrebonafe / neisaogeraldo","091571"]

{"sheet":"FORM2 - ALUNOS NOVOS","index":1,"n_rows":509,"n_cols":29,"rows_kept":509,"cut":false,"hidden":false,"merged":[[0,14,4,15],[5,5,5,7],[7,0,7,15],[6,0,6,15],[5,0,5,2],[5,3,5,4],[5,8,5,13],[5,14,5,15],[4,3,4,13],[0,0,3,2],[3,3,3,13],[2,3,2,13],[1,3,1,13],[0,3,0,13]]}
[]
[null,null,null,"Secretaria de Educação e Cidadania"]
[null,null,null,"Setor de Transporte Escolar"]
[null,null,null,"E-mail: transporte.escolar@sjc.sp.gov.br"]
[null,null,null,"Telefone: (12) 3901-2065 / 2165 / 2234 / 2295",null,null,null,null,null,null,null,null,null,null,null,null,null,null,null,null,null,null,"BAIRRO","LISTA"]
["REDE:",null,null,null,null,"NOME DA ESCOLA:",null,null,null,null,null,null,null,null,"FORMULÁRIO 2 (Alunos Novos)",null,null,null,null,null,null,{"$f":"IF(ISNUMBER(SEARCH($Z$6,Bairros[[#This Row],[BAIRRO]])),MAX($V$5:V5)+1,0)","v":0},"AGUA SOCA",{"$f":"IFERROR(VLOOKUP(ROW(AA5),V6:W453,2,FALSE),\"\")","v":""},null,{"$f":"IF(CELL(\"conteúdo\")<>0,CELL(\"conteúdo\"),\"*\")","v":"Telefone: (12) 3901-2065 / 2165 / 2234 / 2295"}]
["TRANSPORTE PÚBLICO ESCOLAR - MODALIDADE FRETE",null,null,null,null,null,null,null,null,null,null,null,null,null,null,null,null,null,null,null,null,{"$f":"IF(ISNUMBER(SEARCH($Z$6,Bairros[[#This Row],[BAIRRO]])),MAX($V$5:V6)+1,0)","v":0},"AGUAS DA PRATA","",null,null,null,null,{"$f":"OFFSET($X$6,0,0,COUNTIF(Bairros[LISTA],\"?*\"),1)","v":{"$error":"#REF!"}}]
["ALUNOS INDICADOS PARA ATENDIMENTO EM 2019",null,null,null,null,null,null,null,null,null,null,null,null,null,null,null,null,null,null,null,null,{"$f":"IF(ISNUMBER(SEARCH($Z$6,Bairros[[#This Row],[BAIRRO]])),MAX($V$5:V7)+1,0)","v":0},"AGUAS DE CANINDU I",""]
["Nº",null,"NOME COMPLETO DO (A) ALUNO (A)","RA","DATA NASC","IDADE","ANO/SÉRIE","TURMA","Horário Entrada","Horário Saída","KM","TELEFONE P/ CONTATO","ENDEREÇO COMPLETO","BAIRRO","DECALARAÇÕES ENTREGUES","TIPO DE BARREIRA","CONDUTOR 2018","DISTRIBUÍDO (Inserir \"X)",null,null,null,{"$f":"IF(ISNUMBER(SEARCH($Z$6,Bairros[[#This Row],[BAIRRO]])),MAX($V$5:V8)+1,0)","v":0},"AGUAS DE CANINDU II",""]
[1,{"$f":"IF($I$6<>\"\",$I$6,\"\")","v":""},null,null,null,{"$f":"IF(E10=\"\",\"\",INT((NOW()-E10)/365.25))","v":""},null,null,null,null,null,null,null,null,null,null,null,null,null,null,null,{"$f":"IF(ISNUMBER(SEARCH($Z$6,Bairros[[#This Row],[BAIRRO]])),MAX($V$5:V9)+1,0)","v":0},"ALPHAVILLE",""]
[2,{"$f":"IF($I$6<>\"\",$I$6,\"\")","v":""},null,null,null,{"$f":"IF(E11=\"\",\"\",INT((NOW()-E11)/365.25))","v":""},null,null,null,null,null,null,null,null,null,null,null,null,null,null,null,{"$f":"IF(ISNUMBER(SEARCH($Z$6,Bairros[[#This Row],[BAIRRO]])),MAX($V$5:V10)+1,0)","v":0},"ALTOS DA VILA PAIVA",""]
[3,"",null,null,null,"",null,null,null,null,null,null,null,null,null,null,null,null,null,null,null,{"$f":"IF(ISNUMBER(SEARCH($Z$6,Bairros[[#This Row],[BAIRRO]])),MAX($V$5:V11)+1,0)","v":0},"ALTOS DE SAO JOSE",""]
[4,"",null,null,null,"",null,null,null,null,null,null,null,null,null,null,null,null,null,null,null,{"$f":"IF(ISNUMBER(SEARCH($Z$6,Bairros[[#This Row],[BAIRRO]])),MAX($V$5:V12)+1,0)","v":0},"ALTOS DO BOSQUE",""]
[5,"",null,null,null,"",null,null,null,null,null,null,null,null,null,null,null,null,null,null,null,{"$f":"IF(ISNUMBER(SEARCH($Z$6,Bairros[[#This Row],[BAIRRO]])),MAX($V$5:V13)+1,0)","v":0},"ALTOS DO CAETE",""]
[6,"",null,null,null,"",null,null,null,null,null,null,null,null,null,null,null,null,null,null,null,{"$f":"IF(ISNUMBER(SEARCH($Z$6,Bairros[[#This Row],[BAIRRO]])),MAX($V$5:V14)+1,0)","v":0},"BAIRRINHO",""]
[7,"",null,null,null,"",null,null,null,null,null,null,null,null,null,null,null,null,null,null,null,{"$f":"IF(ISNUMBER(SEARCH($Z$6,Bairros[[#This Row],[BAIRRO]])),MAX($V$5:V15)+1,0)","v":0},"BEIRA RIO",""]
[8,"",null,null,null,"",null,null,null,null,null,null,null,null,null,null,null,null,null,null,null,{"$f":"IF(ISNUMBER(SEARCH($Z$6,Bairros[[#This Row],[BAIRRO]])),MAX($V$5:V16)+1,0)","v":0},"BENGALAR",""]
[9,"",null,null,null,"",null,null,null,null,null,null,null,null,null,null,null,null,null,null,null,{"$f":"IF(ISNUMBER(SEARCH($Z$6,Bairros[[#This Row],[BAIRRO]])),MAX($V$5:V17)+1,0)","v":0},"BICA D'AGUA",""]
[10,"",null,null,null,"",null,null,null,null,null,null,null,null,null,null,null,null,null,null,null,{"$f":"IF(ISNUMBER(SEARCH($Z$6,Bairros[[#This Row],[BAIRRO]])),MAX($V$5:V18)+1,0)","v":0},"BOM RETIRO",""]
[11,"",null,null,null,"",null,null,null,null,null,null,null,null,null,null,null,null,null,null,null,{"$f":"IF(ISNUMBER(SEARCH($Z$6,Bairros[[#This Row],[BAIRRO]])),MAX($V$5:V19)+1,0)","v":0},"BOM SUCESSO",""]
[12,"",null,null,null,"",null,null,null,null,null,null,null,null,null,null,null,null,null,null,null,{"$f":"IF(ISNUMBER(SEARCH($Z$6,Bairros[[#This Row],[BAIRRO]])),MAX($V$5:V20)+1,0)","v":0},"BOSQUE DOS EUCALIPTOS",""]
[13,"",null,null,null,"",null,null,null,null,null,null,null,null,null,null,null,null,null,null,null,{"$f":"IF(ISNUMBER(SEARCH($Z$6,Bairros[[#This Row],[BAIRRO]])),MAX($V$5:V21)+1,0)","v":0},"BOSQUE DOS IPES",""]
[14,"",null,null,null,"",null,null,null,null,null,null,null,null,null,null,null,null,null,null,null,{"$f":"IF(ISNUMBER(SEARCH($Z$6,Bairros[[#This Row],[BAIRRO]])),MAX($V$5:V22)+1,0)","v":0},"BOSQUE IMPERIAL",""]
[15,"",null,null,null,"",null,null,null,null,null,null,null,null,null,null,null,null,null,null,null,{"$f":"IF(ISNUMBER(SEARCH($Z$6,Bairros[[#This Row],[BAIRRO]])),MAX($V$5:V23)+1,0)","v":0},"BRASALPES",""]
[16,"",null,null,null,"",null,null,null,null,null,null,null,null,null,null,null,null,null,null,null,{"$f":"IF(ISNUMBER(SEARCH($Z$6,Bairros[[#This Row],[BAIRRO]])),MAX($V$5:V24)+1,0)","v":0},"BUQUIRINHA I",""]
[17,"",null,null,null,"",null,null,null,null,null,null,null,null,null,null,null,null,null,null,null,{"$f":"IF(ISNUMBER(SEARCH($Z$6,Bairros[[#This Row],[BAIRRO]])),MAX($V$5:V25)+1,0)","v":0},"BUQUIRINHA II",""]
[18,"",null,null,null,"",null,null,null,null,null,null,null,null,null,null,null,null,null,null,null,{"$f":"IF(ISNUMBER(SEARCH($Z$6,Bairros[[#This Row],[BAIRRO]])),MAX($V$5:V26)+1,0)","v":0},"CACHOEIRA DO RONCADOR",""]
[19,"",null,null,null,"",null,null,null,null,null,null,null,null,null,null,null,null,null,null,null,{"$f":"IF(ISNUMBER(SEARCH($Z$6,Bairros[[#This Row],[BAIRRO]])),MAX($V$5:V27)+1,0)","v":0},"CAJURU",""]
[20,"",null,null,null,"",null,null,null,null,null,null,null,null,null,null,null,null,null,null,null,{"$f":"IF(ISNUMBER(SEARCH($Z$6,Bairros[[#This Row],[BAIRRO]])),MAX($V$5:V28)+1,0)","v":0},"CAMBUCA",""]
[21,"",null,null,null,"",null,null,null,null,null,null,null,null,null,null,null,null,null,null,null,{"$f":"IF(ISNUMBER(SEARCH($Z$6,Bairros[[#This Row],[BAIRRO]])),MAX($V$5:V29)+1,0)","v":0},"CAMPO DOS ALEMAES",""]
[22,"",null,null,null,"",null,null,null,null,null,null,null,null,null,null,null,null,null,null,null,{"$f":"IF(ISNUMBER(SEARCH($Z$6,Bairros[[#This Row],[BAIRRO]])),MAX($V$5:V30)+1,0)","v":0},"CAMPOS DE SAO JOSE",""]
[23,"",null,null,null,"",null,null,null,null,null,null,null,null,null,null,null,null,null,null,null,{"$f":"IF(ISNUMBER(SEARCH($Z$6,Bairros[[#This Row],[BAIRRO]])),MAX($V$5:V31)+1,0)","v":0},"CAPAO GROSSO I",""]
[24,"",null,null,null,"",null,null,null,null,null,null,null,null,null,null,null,null,null,null,null,{"$f":"IF(ISNUMBER(SEARCH($Z$6,Bairros[[#This Row],[BAIRRO]])),MAX($V$5:V32)+1,0)","v":0},"CAPAO GROSSO II",""]
[25,"",null,null,null,"",null,null,null,null,null,null,null,null,null,null,null,null,null,null,null,{"$f":"IF(ISNUMBER(SEARCH($Z$6,Bairros[[#This Row],[BAIRRO]])),MAX($V$5:V33)+1,0)","v":0},"CENTRO",""]
[26,"",null,null,null,"",null,null,null,null,null,null,null,null,null,null,null,null,null,null,null,{"$f":"IF(ISNUMBER(SEARCH($Z$6,Bairros[[#This Row],[BAIRRO]])),MAX($V$5:V34)+1,0)","v":0},"CENTRO INDUSTRIAL ELDORADO",""]
[27,"",null,null,null,"",null,null,null,null,null,null,null,null,null,null,null,null,null,null,null,{"$f":"IF(ISNUMBER(SEARCH($Z$6,Bairros[[#This Row],[BAIRRO]])),MAX($V$5:V35)+1,0)","v":0},"CHACARAS ARAUJO I",""]
[28,"",null,null,null,"",null,null,null,null,null,null,null,null,null,null,null,null,null,null,null,{"$f":"IF(ISNUMBER(SEARCH($Z$6,Bairros[[#This Row],[BAIRRO]])),MAX($V$5:V36)+1,0)","v":0},"CHACARAS ARAUJO II",""]
[29,"",null,null,null,"",null,null,null,null,null,null,null,null,null,null,null,null,null,null,null,{"$f":"IF(ISNUMBER(SEARCH($Z$6,Bairros[[#This Row],[BAIRRO]])),MAX($V$5:V37)+1,0)","v":0},"CHACARAS BOA ESPERANCA",""]
[30,"",null,null,null,"",null,null,null,null,null,null,null,null,null,null,null,null,null,null,null,{"$f":"IF(ISNUMBER(SEARCH($Z$6,Bairros[[#This Row],[BAIRRO]])),MAX($V$5:V38)+1,0)","v":0},"CHACARAS BOA VISTA",""]
[31,"",null,null,null,"",null,null,null,null,null,null,null,null,null,null,null,null,null,null,null,{"$f":"IF(ISNUMBER(SEARCH($Z$6,Bairros[[#This Row],[BAIRRO]])),MAX($V$5:V39)+1,0)","v":0},"CHACARAS DOS EUCALIPTOS",""]
[32,"",null,null,null,"",null,null,null,null,null,null,null,null,null,null,null,null,null,null,null,{"$f":"IF(ISNUMBER(SEARCH($Z$6,Bairros[[#This Row],[BAIRRO]])),MAX($V$5:V40)+1,0)","v":0},"CHACARAS HAWAI",""]
[33,"",null,null,null,"",null,null,null,null,null,null,null,null,null,null,null,null,null,null,null,{"$f":"IF(ISNUMBER(SEARCH($Z$6,Bairros[[#This Row],[BAIRRO]])),MAX($V$5:V41)+1,0)","v":0},"CHACARAS JARDIM SERIMBURA (SATELITE)",""]
[34,"",null,null,null,"",null,null,null,null,null,null,null,null,null,null,null,null,null,null,null,{"$f":"IF(ISNUMBER(SEARCH($Z$6,Bairros[[#This Row],[BAIRRO]])),MAX($V$5:V42)+1,0)","v":0},"CHACARAS REUNIDAS",""]
[35,"",null,null,null,"",null,null,null,null,null,null,null,null,null,null,null,null,null,null,null,{"$f":"IF(ISNUMBER(SEARCH($Z$6,Bairros[[#This Row],[BAIRRO]])),MAX($V$5:V43)+1,0)","v":0},"CHACARAS SANTA HELENA",""]
[36,"",null,null,null,"",null,null,null,null,null,null,null,null,null,null,null,null,null,null,null,{"$f":"IF(ISNUMBER(SEARCH($Z$6,Bairros[[#This Row],[BAIRRO]])),MAX($V$5:V44)+1,0)","v":0},"CHACARAS SAO BENEDITO",""]
[37,"",null,null,null,"",null,null,null,null,null,null,null,null,null,null,null,null,null,null,null,{"$f":"IF(ISNUMBER(SEARCH($Z$6,Bairros[[#This Row],[BAIRRO]])),MAX($V$5:V45)+1,0)","v":0},"CHACARAS SAO JOSE",""]
[38,"",null,null,null,"",null,null,null,null,null,null,null,null,null,null,null,null,null,null,null,{"$f":"IF(ISNUMBER(SEARCH($Z$6,Bairros[[#This Row],[BAIRRO]])),MAX($V$5:V46)+1,0)","v":0},"CHACARAS TAKITANI",""]
[39,"",null,null,null,"",null,null,null,null,null,null,null,null,null,null,null,null,null,null,null,{"$f":"IF(ISNUMBER(SEARCH($Z$6,Bairros[[#This Row],[BAIRRO]])),MAX($V$5:V47)+1,0)","v":0},"CIDADE MORUMBI",""]
[40,"",null,null,null,"",null,null,null,null,null,null,null,null,null,null,null,null,null,null,null,{"$f":"IF(ISNUMBER(SEARCH($Z$6,Bairros[[#This Row],[BAIRRO]])),MAX($V$5:V48)+1,0)","v":0},"CIDADE VISTA VERDE",""]
[41,"",null,null,null,"",null,null,null,null,null,null,null,null,null,null,null,null,null,null,null,{"$f":"IF(ISNUMBER(SEARCH($Z$6,Bairros[[#This Row],[BAIRRO]])),MAX($V$5:V49)+1,0)","v":0},"COLINAS DO PARATEHY",""]
[42,"",null,null,null,"",null,null,null,null,null,null,null,null,null,null,null,null,null,null,null,{"$f":"IF(ISNUMBER(SEARCH($Z$6,Bairros[[#This Row],[BAIRRO]])),MAX($V$5:V50)+1,0)","v":0},"COLINAS DO PARAYBA",""]
[43,"",null,null,null,"",null,null,null,null,null,null,null,null,null,null,null,null,null,null,null,{"$f":"IF(ISNUMBER(SEARCH($Z$6,Bairros[[#This Row],[BAIRRO]])),MAX($V$5:V51)+1,0)","v":0},"COMUNIDADE SANTA CRUZ",""]
[44,"",null,null,null,"",null,null,null,null,null,null,null,null,null,null,null,null,null,null,null,{"$f":"IF(ISNUMBER(SEARCH($Z$6,Bairros[[#This Row],[BAIRRO]])),MAX($V$5:V52)+1,0)","v":0},"CONDOMINIO CHACARAS DOS EUCALIPTOS",""]
[45,"",null,null,null,"",null,null,null,null,null,null,null,null,null,null,null,null,null,null,null,{"$f":"IF(ISNUMBER(SEARCH($Z$6,Bairros[[#This Row],[BAIRRO]])),MAX($V$5:V53)+1,0)","v":0},"CONDOMINIO RESIDENCIAL ELDORADO",""]
[46,"",null,null,null,"",null,null,null,null,null,null,null,null,null,null,null,null,null,null,null,{"$f":"IF(ISNUMBER(SEARCH($Z$6,Bairros[[#This Row],[BAIRRO]])),MAX($V$5:V54)+1,0)","v":0},"CONDOMINIO RESIDENCIAL JK",""]
[47,"",null,null,null,"",null,null,null,null,null,null,null,null,null,null,null,null,null,null,null,{"$f":"IF(ISNUMBER(SEARCH($Z$6,Bairros[[#This Row],[BAIRRO]])),MAX($V$5:V55)+1,0)","v":0},"CONDOMINIO RESIDENCIAL TERRINHA",""]
[48,"",null,null,null,"",null,null,null,null,null,null,null,null,null,null,null,null,null,null,null,{"$f":"IF(ISNUMBER(SEARCH($Z$6,Bairros[[#This Row],[BAIRRO]])),MAX($V$5:V56)+1,0)","v":0},"CONDOMINIO RESIDENCIAL VILLAGIO FAZENDAO",""]
[49,"",null,null,null,"",null,null,null,null,null,null,null,null,null,null,null,null,null,null,null,{"$f":"IF(ISNUMBER(SEARCH($Z$6,Bairros[[#This Row],[BAIRRO]])),MAX($V$5:V57)+1,0)","v":0},"CONJUNTO HABILTACIONAL RONDA",""]
[50,"",null,null,null,"",null,null,null,null,null,null,null,null,null,null,null,null,null,null,null,{"$f":"IF(ISNUMBER(SEARCH($Z$6,Bairros[[#This Row],[BAIRRO]])),MAX($V$5:V58)+1,0)","v":0},"CONJUNTO HABITACIONAL DOM PEDRO I",""]
[51,"",null,null,null,"",null,null,null,null,null,null,null,null,null,null,null,null,null,null,null,{"$f":"IF(ISNUMBER(SEARCH($Z$6,Bairros[[#This Row],[BAIRRO]])),MAX($V$5:V59)+1,0)","v":0},"CONJUNTO HABITACIONAL DOM PEDRO II",""]
[52,"",null,null,null,"",null,null,null,null,null,null,null,null,null,null,null,null,null,null,null,{"$f":"IF(ISNUMBER(SEARCH($Z$6,Bairros[[#This Row],[BAIRRO]])),MAX($V$5:V60)+1,0)","v":0},"CONJUNTO HABITACIONAL ELMANO FERREIRA VELOSO",""]
[53,"",null,null,null,"",null,null,null,null,null,null,null,null,null,null,null,null,null,null,null,{"$f":"IF(ISNUMBER(SEARCH($Z$6,Bairros[[#This Row],[BAIRRO]])),MAX($V$5:V61)+1,0)","v":0},"CONJUNTO HABITACIONAL INTERVALE",""]
[54,"",null,null,null,"",null,null,null,null,null,null,null,null,null,null,null,null,null,null,null,{"$f":"IF(ISNUMBER(SEARCH($Z$6,Bairros[[#This Row],[BAIRRO]])),MAX($V$5:V62)+1,0)","v":0},"CONJUNTO HABITACIONAL NOSSO TETO",""]
[55,"",null,null,null,"",null,null,null,null,null,null,null,null,null,null,null,null,null,null,null,{"$f":"IF(ISNUMBER(SEARCH($Z$6,Bairros[[#This Row],[BAIRRO]])),MAX($V$5:V63)+1,0)","v":0},"CONJUNTO HABITACIONAL PAPA JOAO PAULO II",""]
[56,"",null,null,null,"",null,null,null,null,null,null,null,null,null,null,null,null,null,null,null,{"$f":"IF(ISNUMBER(SEARCH($Z$6,Bairros[[#This Row],[BAIRRO]])),MAX($V$5:V64)+1,0)","v":0},"CONJUNTO HABITACIONAL PM SAO JUDAS TADEU ",""]
[57,"",null,null,null,"",null,null,null,null,null,null,null,null,null,null,null,null,null,null,null,{"$f":"IF(ISNUMBER(SEARCH($Z$6,Bairros[[#This Row],[BAIRRO]])),MAX($V$5:V65)+1,0)","v":0},"CONJUNTO HABITACIONAL SAO JUDAS TADEU ",""]
[58,"",null,null,null,"",null,null,null,null,null,null,null,null,null,null,null,null,null,null,null,{"$f":"IF(ISNUMBER(SEARCH($Z$6,Bairros[[#This Row],[BAIRRO]])),MAX($V$5:V66)+1,0)","v":0},"CONJUNTO HABITACIONAL TRINTA E UM DE MARCO",""]
[59,"",null,null,null,"",null,null,null,null,null,null,null,null,null,null,null,null,null,null,null,{"$f":"IF(ISNUMBER(SEARCH($Z$6,Bairros[[#This Row],[BAIRRO]])),MAX($V$5:V67)+1,0)","v":0},"CONJUNTO INTEGRACAO",""]
[60,"",null,null,null,"",null,null,null,null,null,null,null,null,null,null,null,null,null,null,null,{"$f":"IF(ISNUMBER(SEARCH($Z$6,Bairros[[#This Row],[BAIRRO]])),MAX($V$5:V68)+1,0)","v":0},"CONJUNTO RESIDENCIA PLANALTO",""]
[61,"",null,null,null,"",null,null,null,null,null,null,null,null,null,null,null,null,null,null,null,{"$f":"IF(ISNUMBER(SEARCH($Z$6,Bairros[[#This Row],[BAIRRO]])),MAX($V$5:V69)+1,0)","v":0},"CONJUNTO RESIDENCIAL CAJURU I",{"$f":"IFERROR(VLOOKUP(ROW(AA69),V70:W517,2,FALSE),\"\")","v":""}]
[62,"",null,null,null,"",null,null,null,null,null,null,null,null,null,null,null,null,null,null,null,{"$f":"IF(ISNUMBER(SEARCH($Z$6,Bairros[[#This Row],[BAIRRO]])),MAX($V$5:V70)+1,0)","v":0},"CONJUNTO RESIDENCIAL CAJURU III",""]
[63,"",null,null,null,"",null,null,null,null,null,null,null,null,null,null,null,null,null,null,null,{"$f":"IF(ISNUMBER(SEARCH($Z$6,Bairros[[#This Row],[BAIRRO]])),MAX($V$5:V71)+1,0)","v":0},"CONJUNTO RESIDENCIAL CIDADE JARDIM",""]
[64,"",null,null,null,"",null,null,null,null,null,null,null,null,null,null,null,null,null,null,null,{"$f":"IF(ISNUMBER(SEARCH($Z$6,Bairros[[#This Row],[BAIRRO]])),MAX($V$5:V72)+1,0)","v":0},"CONJUNTO RESIDENCIAL JARDIM SATELITE",""]
[65,"",null,null,null,"",null,null,null,null,null,null,null,null,null,null,null,null,null,null,null,{"$f":"IF(ISNUMBER(SEARCH($Z$6,Bairros[[#This Row],[BAIRRO]])),MAX($V$5:V73)+1,0)","v":0},"CONJUNTO RESIDENCIAL MONTE CASTELO",""]
[66,{"$f":"IF($I$6<>\"\",$I$6,\"\")","v":""},null,null,null,{"$f":"IF(E75=\"\",\"\",INT((NOW()-E75)/365.25))","v":""},null,null,null,null,null,null,null,null,null,null,null,null,null,null,null,{"$f":"IF(ISNUMBER(SEARCH($Z$6,Bairros[[#This Row],[BAIRRO]])),MAX($V$5:V74)+1,0)","v":0},"CONJUNTO RESIDENCIAL MORADA DO SOL",""]
[67,"",null,null,null,"",null,null,null,null,null,null,null,null,null,null,null,null,null,null,null,{"$f":"IF(ISNUMBER(SEARCH($Z$6,Bairros[[#This Row],[BAIRRO]])),MAX($V$5:V75)+1,0)","v":0},"CONJUNTO RESIDENCIAL VALE DOS PINHEIROS",""]
[68,"",null,null,null,"",null,null,null,null,null,null,null,null,null,null,null,null,null,null,null,{"$f":"IF(ISNUMBER(SEARCH($Z$6,Bairros[[#This Row],[BAIRRO]])),MAX($V$5:V76)+1,0)","v":0},"CONUNTO HABITACIONAL VALE DOS PINHEIROS",""]
[69,"",null,null,null,"",null,null,null,null,null,null,null,null,null,null,null,null,null,null,null,{"$f":"IF(ISNUMBER(SEARCH($Z$6,Bairros[[#This Row],[BAIRRO]])),MAX($V$5:V77)+1,0)","v":0},"COSTINHA",""]
[70,"",null,null,null,"",null,null,null,null,null,null,null,null,null,null,null,null,null,null,null,{"$f":"IF(ISNUMBER(SEARCH($Z$6,Bairros[[#This Row],[BAIRRO]])),MAX($V$5:V78)+1,0)","v":0},"DESEMBARGADOR MARTINS PEREIRA",""]
[71,"",null,null,null,"",null,null,null,null,null,null,null,null,null,null,null,null,null,null,null,{"$f":"IF(ISNUMBER(SEARCH($Z$6,Bairros[[#This Row],[BAIRRO]])),MAX($V$5:V79)+1,0)","v":0},"EUGENIO DE MELO",""]
[72,"",null,null,null,"",null,null,null,null,null,null,null,null,null,null,null,null,null,null,null,{"$f":"IF(ISNUMBER(SEARCH($Z$6,Bairros[[#This Row],[BAIRRO]])),MAX($V$5:V80)+1,0)","v":0},"FAZENDA BOM RETIRO",""]
[73,"",null,null,null,"",null,null,null,null,null,null,null,null,null,null,null,null,null,null,null,{"$f":"IF(ISNUMBER(SEARCH($Z$6,Bairros[[#This Row],[BAIRRO]])),MAX($V$5:V81)+1,0)","v":0},"FAZENDA HONDA",""]
[74,"",null,null,null,"",null,null,null,null,null,null,null,null,null,null,null,null,null,null,null,{"$f":"IF(ISNUMBER(SEARCH($Z$6,Bairros[[#This Row],[BAIRRO]])),MAX($V$5:V82)+1,0)","v":0},"FAZENDA JANUARIA (REGIAO)",""]
[75,"",null,null,null,"",null,null,null,null,null,null,null,null,null,null,null,null,null,null,null,{"$f":"IF(ISNUMBER(SEARCH($Z$6,Bairros[[#This Row],[BAIRRO]])),MAX($V$5:V83)+1,0)","v":0},"FAZENDA MARSON",""]
[76,"",null,null,null,"",null,null,null,null,null,null,null,null,null,null,null,null,null,null,null,{"$f":"IF(ISNUMBER(SEARCH($Z$6,Bairros[[#This Row],[BAIRRO]])),MAX($V$5:V84)+1,0)","v":0},"FAZENDA TAIRA",""]
[77,"",null,null,null,"",null,null,null,null,null,null,null,null,null,null,null,null,null,null,null,{"$f":"IF(ISNUMBER(SEARCH($Z$6,Bairros[[#This Row],[BAIRRO]])),MAX($V$5:V85)+1,0)","v":0},"FAZENDA TAKANASHI",""]
[78,"",null,null,null,"",null,null,null,null,null,null,null,null,null,null,null,null,null,null,null,{"$f":"IF(ISNUMBER(SEARCH($Z$6,Bairros[[#This Row],[BAIRRO]])),MAX($V$5:V86)+1,0)","v":0},"FAZENDA TONINHO FERREIRA",""]
[79,"",null,null,null,"",null,null,null,null,null,null,null,null,null,null,null,null,null,null,null,{"$f":"IF(ISNUMBER(SEARCH($Z$6,Bairros[[#This Row],[BAIRRO]])),MAX($V$5:V87)+1,0)","v":0},"FAZENDA VILA FRANCA",""]
[80,"",null,null,null,"",null,null,null,null,null,null,null,null,null,null,null,null,null,null,null,{"$f":"IF(ISNUMBER(SEARCH($Z$6,Bairros[[#This Row],[BAIRRO]])),MAX($V$5:V88)+1,0)","v":0},"FLORESTA",""]
[81,"",null,null,null,"",null,null,null,null,null,null,null,null,null,null,null,null,null,null,null,{"$f":"IF(ISNUMBER(SEARCH($Z$6,Bairros[[#This Row],[BAIRRO]])),MAX($V$5:V89)+1,0)","v":0},"FREITAS",""]
[82,"",null,null,null,"",null,null,null,null,null,null,null,null,null,null,null,null,null,null,null,{"$f":"IF(ISNUMBER(SEARCH($Z$6,Bairros[[#This Row],[BAIRRO]])),MAX($V$5:V90)+1,0)","v":0},"GALO BRANCO",""]
[83,"",null,null,null,"",null,null,null,null,null,null,null,null,null,null,null,null,null,null,null,{"$f":"IF(ISNUMBER(SEARCH($Z$6,Bairros[[#This Row],[BAIRRO]])),MAX($V$5:V91)+1,0)","v":0},"GUIRRA",""]
[84,"",null,null,null,"",null,null,null,null,null,null,null,null,null,null,null,null,null,null,null,{"$f":"IF(ISNUMBER(SEARCH($Z$6,Bairros[[#This Row],[BAIRRO]])),MAX($V$5:V92)+1,0)","v":0},"JAGUARI",""]
[85,"",null,null,null,"",null,null,null,null,null,null,null,null,null,null,null,null,null,null,null,{"$f":"IF(ISNUMBER(SEARCH($Z$6,Bairros[[#This Row],[BAIRRO]])),MAX($V$5:V93)+1,0)","v":0},"JARDIM AEROPORTO",""]
[86,"",null,null,null,"",null,null,null,null,null,null,null,null,null,null,null,null,null,null,null,{"$f":"IF(ISNUMBER(SEARCH($Z$6,Bairros[[#This Row],[BAIRRO]])),MAX($V$5:V94)+1,0)","v":0},"JARDIM ALTOS DE SANTANA",""]
[87,"",null,null,null,"",null,null,null,null,null,null,null,null,null,null,null,null,null,null,null,{"$f":"IF(ISNUMBER(SEARCH($Z$6,Bairros[[#This Row],[BAIRRO]])),MAX($V$5:V95)+1,0)","v":0},"JARDIM ALTOS DO ESPLANADA",""]
[88,"",null,null,null,"",null,null,null,null,null,null,null,null,null,null,null,null,null,null,null,{"$f":"IF(ISNUMBER(SEARCH($Z$6,Bairros[[#This Row],[BAIRRO]])),MAX($V$5:V96)+1,0)","v":0},"JARDIM ALVORADA",""]
[89,"",null,null,null,"",null,null,null,null,null,null,null,null,null,null,null,null,null,null,null,{"$f":"IF(ISNUMBER(SEARCH($Z$6,Bairros[[#This Row],[BAIRRO]])),MAX($V$5:V97)+1,0)","v":0},"JARDIM AMERICA",""]
[90,"",null,null,null,"",null,null,null,null,null,null,null,null,null,null,null,null,null,null,null,{"$f":"IF(ISNUMBER(SEARCH($Z$6,Bairros[[#This Row],[BAIRRO]])),MAX($V$5:V98)+1,0)","v":0},"JARDIM AMERICANO",""]
[91,"",null,null,null,"",null,null,null,null,null,null,null,null,null,null,null,null,null,null,null,{"$f":"IF(ISNUMBER(SEARCH($Z$6,Bairros[[#This Row],[BAIRRO]])),MAX($V$5:V99)+1,0)","v":0},"JARDIM ANCHIETA",""]
[92,"",null,null,null,"",null,null,null,null,null,null,null,null,null,null,null,null,null,null,null,{"$f":"IF(ISNUMBER(SEARCH($Z$6,Bairros[[#This Row],[BAIRRO]])),MAX($V$5:V100)+1,0)","v":0},"JARDIM ANHEMBI",""]
[93,"",null,null,null,"",null,null,null,null,null,null,null,null,null,null,null,null,null,null,null,{"$f":"IF(ISNUMBER(SEARCH($Z$6,Bairros[[#This Row],[BAIRRO]])),MAX($V$5:V101)+1,0)","v":0},"JARDIM APARECIDA",""]
[94,"",null,null,null,"",null,null,null,null,null,null,null,null,null,null,null,null,null,null,null,{"$f":"IF(ISNUMBER(SEARCH($Z$6,Bairros[[#This Row],[BAIRRO]])),MAX($V$5:V102)+1,0)","v":0},"JARDIM APOLO",""]
[95,"",null,null,null,"",null,null,null,null,null,null,null,null,null,null,null,null,null,null,null,{"$f":"IF(ISNUMBER(SEARCH($Z$6,Bairros[[#This Row],[BAIRRO]])),MAX($V$5:V103)+1,0)","v":0},"JARDIM AQUARIUS",""]
[96,"",null,null,null,"",null,null,null,null,null,null,null,null,null,null,null,null,null,null,null,{"$f":"IF(ISNUMBER(SEARCH($Z$6,Bairros[[#This Row],[BAIRRO]])),MAX($V$5:V104)+1,0)","v":0},"JARDIM AUGUSTA",""]
[97,"",null,null,null,"",null,null,null,null,null,null,null,null,null,null,null,null,null,null,null,{"$f":"IF(ISNUMBER(SEARCH($Z$6,Bairros[[#This Row],[BAIRRO]])),MAX($V$5:V105)+1,0)","v":0},"JARDIM AZEVEDO",""]
[98,"",null,null,null,"",null,null,null,null,null,null,null,null,null,null,null,null,null,null,null,{"$f":"IF(ISNUMBER(SEARCH($Z$6,Bairros[[#This Row],[BAIRRO]])),MAX($V$5:V106)+1,0)","v":0},"JARDIM BELA VISTA",""]
[99,"",null,null,null,"",null,null,null,null,null,null,null,null,null,null,null,null,null,null,null,{"$f":"IF(ISNUMBER(SEARCH($Z$6,Bairros[[#This Row],[BAIRRO]])),MAX($V$5:V107)+1,0)","v":0},"JARDIM BOA VISTA",""]
[100,"",null,null,null,"",null,null,null,null,null,null,null,null,null,null,null,null,null,null,null,{"$f":"IF(ISNUMBER(SEARCH($Z$6,Bairros[[#This Row],[BAIRRO]])),MAX($V$5:V108)+1,0)","v":0},"JARDIM BRASILIA",""]
[101,"",null,null,null,"",null,null,null,null,null,null,null,null,null,null,null,null,null,null,null,{"$f":"IF(ISNUMBER(SEARCH($Z$6,Bairros[[#This Row],[BAIRRO]])),MAX($V$5:V109)+1,0)","v":0},"JARDIM CASSIANO RICARDO",""]
[102,"",null,null,null,"",null,null,null,null,null,null,null,null,null,null,null,null,null,null,null,{"$f":"IF(ISNUMBER(SEARCH($Z$6,Bairros[[#This Row],[BAIRRO]])),MAX($V$5:V110)+1,0)","v":0},"JARDIM CASTANHEIRAS",""]
[103,"",null,null,null,"",null,null,null,null,null,null,null,null,null,null,null,null,null,null,null,{"$f":"IF(ISNUMBER(SEARCH($Z$6,Bairros[[#This Row],[BAIRRO]])),MAX($V$5:V111)+1,0)","v":0},"JARDIM CEREJEIRAS",""]
[104,"",null,null,null,"",null,null,null,null,null,null,null,null,null,null,null,null,null,null,null,{"$f":"IF(ISNUMBER(SEARCH($Z$6,Bairros[[#This Row],[BAIRRO]])),MAX($V$5:V112)+1,0)","v":0},"JARDIM COLINAS",""]
[105,"",null,null,null,"",null,null,null,null,null,null,null,null,null,null,null,null,null,null,null,{"$f":"IF(ISNUMBER(SEARCH($Z$6,Bairros[[#This Row],[BAIRRO]])),MAX($V$5:V113)+1,0)","v":0},"JARDIM COLONIAL",""]
[106,"",null,null,null,"",null,null,null,null,null,null,null,null,null,null,null,null,null,null,null,{"$f":"IF(ISNUMBER(SEARCH($Z$6,Bairros[[#This Row],[BAIRRO]])),MAX($V$5:V114)+1,0)","v":0},"JARDIM COLORADO",""]
[107,"",null,null,null,"",null,null,null,null,null,null,null,null,null,null,null,null,null,null,null,{"$f":"IF(ISNUMBER(SEARCH($Z$6,Bairros[[#This Row],[BAIRRO]])),MAX($V$5:V115)+1,0)","v":0},"JARDIM COPACABANA",""]
[108,"",null,null,null,"",null,null,null,null,null,null,null,null,null,null,null,null,null,null,null,{"$f":"IF(ISNUMBER(SEARCH($Z$6,Bairros[[#This Row],[BAIRRO]])),MAX($V$5:V116)+1,0)","v":0},"JARDIM CRUZEIRO DO SUL",""]
[109,"",null,null,null,"",null,null,null,null,null,null,null,null,null,null,null,null,null,null,null,{"$f":"IF(ISNUMBER(SEARCH($Z$6,Bairros[[#This Row],[BAIRRO]])),MAX($V$5:V117)+1,0)","v":0},"JARDIM DA GRANJA",""]
[110,"",null,null,null,"",null,null,null,null,null,null,null,null,null,null,null,null,null,null,null,{"$f":"IF(ISNUMBER(SEARCH($Z$6,Bairros[[#This Row],[BAIRRO]])),MAX($V$5:V118)+1,0)","v":0},"JARDIM DAS AZALEIAS",""]
[111,"",null,null,null,"",null,null,null,null,null,null,null,null,null,null,null,null,null,null,null,{"$f":"IF(ISNUMBER(SEARCH($Z$6,Bairros[[#This Row],[BAIRRO]])),MAX($V$5:V119)+1,0)","v":0},"JARDIM DAS FLORES",""]
[112,"",null,null,null,"",null,null,null,null,null,null,null,null,null,null,null,null,null,null,null,{"$f":"IF(ISNUMBER(SEARCH($Z$6,Bairros[[#This Row],[BAIRRO]])),MAX($V$5:V120)+1,0)","v":0},"JARDIM DAS INDUSTRIAS",""]
[113,"",null,null,null,"",null,null,null,null,null,null,null,null,null,null,null,null,null,null,null,{"$f":"IF(ISNUMBER(SEARCH($Z$6,Bairros[[#This Row],[BAIRRO]])),MAX($V$5:V121)+1,0)","v":0},"JARDIM DAS PAINEIRAS I ",""]
[114,"",null,null,null,"",null,null,null,null,null,null,null,null,null,null,null,null,null,null,null,{"$f":"IF(ISNUMBER(SEARCH($Z$6,Bairros[[#This Row],[BAIRRO]])),MAX($V$5:V122)+1,0)","v":0},"JARDIM DAS PAINEIRAS II",""]
[115,"",null,null,null,"",null,null,null,null,null,null,null,null,null,null,null,null,null,null,null,{"$f":"IF(ISNUMBER(SEARCH($Z$6,Bairros[[#This Row],[BAIRRO]])),MAX($V$5:V123)+1,0)","v":0},"JARDIM DEL REY",""]
[116,"",null,null,null,"",null,null,null,null,null,null,null,null,null,null,null,null,null,null,null,{"$f":"IF(ISNUMBER(SEARCH($Z$6,Bairros[[#This Row],[BAIRRO]])),MAX($V$5:V124)+1,0)","v":0},"JARDIM DIAMANTE",""]
[117,"",null,null,null,"",null,null,null,null,null,null,null,null,null,null,null,null,null,null,null,{"$f":"IF(ISNUMBER(SEARCH($Z$6,Bairros[[#This Row],[BAIRRO]])),MAX($V$5:V125)+1,0)","v":0},"JARDIM DO CEU",""]
[118,"",null,null,null,"",null,null,null,null,null,null,null,null,null,null,null,null,null,null,null,{"$f":"IF(ISNUMBER(SEARCH($Z$6,Bairros[[#This Row],[BAIRRO]])),MAX($V$5:V126)+1,0)","v":0},"JARDIM DO GOLFE",""]
[119,"",null,null,null,"",null,null,null,null,null,null,null,null,null,null,null,null,null,null,null,{"$f":"IF(ISNUMBER(SEARCH($Z$6,Bairros[[#This Row],[BAIRRO]])),MAX($V$5:V127)+1,0)","v":0},"JARDIM DO LAGO",""]
[120,"",null,null,null,"",null,null,null,null,null,null,null,null,null,null,null,null,null,null,null,{"$f":"IF(ISNUMBER(SEARCH($Z$6,Bairros[[#This Row],[BAIRRO]])),MAX($V$5:V128)+1,0)","v":0},"JARDIM DOS BANDEIRANTES",""]
[121,"",null,null,null,"",null,null,null,null,null,null,null,null,null,null,null,null,null,null,null,{"$f":"IF(ISNUMBER(SEARCH($Z$6,Bairros[[#This Row],[BAIRRO]])),MAX($V$5:V129)+1,0)","v":0},"JARDIM DOS COQUEIROS",""]
[122,"",null,null,null,"",null,null,null,null,null,null,null,null,null,null,null,null,null,null,null,{"$f":"IF(ISNUMBER(SEARCH($Z$6,Bairros[[#This Row],[BAIRRO]])),MAX($V$5:V130)+1,0)","v":0},"JARDIM EBENEZER",""]
[123,"",null,null,null,"",null,null,null,null,null,null,null,null,null,null,null,null,null,null,null,{"$f":"IF(ISNUMBER(SEARCH($Z$6,Bairros[[#This Row],[BAIRRO]])),MAX($V$5:V131)+1,0)","v":0},"JARDIM ESPLANADA I",""]
[124,"",null,null,null,"",null,null,null,null,null,null,null,null,null,null,null,null,null,null,null,{"$f":"IF(ISNUMBER(SEARCH($Z$6,Bairros[[#This Row],[BAIRRO]])),MAX($V$5:V132)+1,0)","v":0},"JARDIM ESPLANADA II",""]
[125,"",null,null,null,"",null,null,null,null,null,null,null,null,null,null,null,null,null,null,null,{"$f":"IF(ISNUMBER(SEARCH($Z$6,Bairros[[#This Row],[BAIRRO]])),MAX($V$5:V133)+1,0)","v":0},"JARDIM ESTORIL",{"$f":"IFERROR(VLOOKUP(ROW(AA133),V134:W581,2,FALSE),\"\")","v":""}]
[126,"",null,null,null,"",null,null,null,null,null,null,null,null,null,null,null,null,null,null,null,{"$f":"IF(ISNUMBER(SEARCH($Z$6,Bairros[[#This Row],[BAIRRO]])),MAX($V$5:V134)+1,0)","v":0},"JARDIM FATIMA",""]
[127,"",null,null,null,"",null,null,null,null,null,null,null,null,null,null,null,null,null,null,null,{"$f":"IF(ISNUMBER(SEARCH($Z$6,Bairros[[#This Row],[BAIRRO]])),MAX($V$5:V135)+1,0)","v":0},"JARDIM FLORADAS DE SAO JOSE",""]
[128,"",null,null,null,"",null,null,null,null,null,null,null,null,null,null,null,null,null,null,null,{"$f":"IF(ISNUMBER(SEARCH($Z$6,Bairros[[#This Row],[BAIRRO]])),MAX($V$5:V136)+1,0)","v":0},"JARDIM FREI LEOPOLDO",""]
[129,"",null,null,null,"",null,null,null,null,null,null,null,null,null,null,null,null,null,null,null,{"$f":"IF(ISNUMBER(SEARCH($Z$6,Bairros[[#This Row],[BAIRRO]])),MAX($V$5:V137)+1,0)","v":0},"JARDIM GUIMARAES",""]
[130,{"$f":"IF($I$6<>\"\",$I$6,\"\")","v":""},null,null,null,{"$f":"IF(E139=\"\",\"\",INT((NOW()-E139)/365.25))","v":""},null,null,null,null,null,null,null,null,null,null,null,null,null,null,null,{"$f":"IF(ISNUMBER(SEARCH($Z$6,Bairros[[#This Row],[BAIRRO]])),MAX($V$5:V138)+1,0)","v":0},"JARDIM HELENA",""]
[131,"",null,null,null,"",null,null,null,null,null,null,null,null,null,null,null,null,null,null,null,{"$f":"IF(ISNUMBER(SEARCH($Z$6,Bairros[[#This Row],[BAIRRO]])),MAX($V$5:V139)+1,0)","v":0},"JARDIM IMPERIAL",""]
[132,"",null,null,null,"",null,null,null,null,null,null,null,null,null,null,null,null,null,null,null,{"$f":"IF(ISNUMBER(SEARCH($Z$6,Bairros[[#This Row],[BAIRRO]])),MAX($V$5:V140)+1,0)","v":0},"JARDIM IPE",""]
[133,"",null,null,null,"",null,null,null,null,null,null,null,null,null,null,null,null,null,null,null,{"$f":"IF(ISNUMBER(SEARCH($Z$6,Bairros[[#This Row],[BAIRRO]])),MAX($V$5:V141)+1,0)","v":0},"JARDIM IRACEMA",""]
[134,"",null,null,null,"",null,null,null,null,null,null,null,null,null,null,null,null,null,null,null,{"$f":"IF(ISNUMBER(SEARCH($Z$6,Bairros[[#This Row],[BAIRRO]])),MAX($V$5:V142)+1,0)","v":0},"JARDIM ISMENIA",""]
[135,"",null,null,null,"",null,null,null,null,null,null,null,null,null,null,null,null,null,null,null,{"$f":"IF(ISNUMBER(SEARCH($Z$6,Bairros[[#This Row],[BAIRRO]])),MAX($V$5:V143)+1,0)","v":0},"JARDIM ITAPUA",""]
[136,"",null,null,null,"",null,null,null,null,null,null,null,null,null,null,null,null,null,null,null,{"$f":"IF(ISNUMBER(SEARCH($Z$6,Bairros[[#This Row],[BAIRRO]])),MAX($V$5:V144)+1,0)","v":0},"JARDIM JACI",""]
[137,"",null,null,null,"",null,null,null,null,null,null,null,null,null,null,null,null,null,null,null,{"$f":"IF(ISNUMBER(SEARCH($Z$6,Bairros[[#This Row],[BAIRRO]])),MAX($V$5:V145)+1,0)","v":0},"JARDIM JULIANA",""]
[138,"",null,null,null,"",null,null,null,null,null,null,null,null,null,null,null,null,null,null,null,{"$f":"IF(ISNUMBER(SEARCH($Z$6,Bairros[[#This Row],[BAIRRO]])),MAX($V$5:V146)+1,0)","v":0},"JARDIM JUSSARA",""]
[139,"",null,null,null,"",null,null,null,null,null,null,null,null,null,null,null,null,null,null,null,{"$f":"IF(ISNUMBER(SEARCH($Z$6,Bairros[[#This Row],[BAIRRO]])),MAX($V$5:V147)+1,0)","v":0},"JARDIM LIMOEIRO",""]
[140,"",null,null,null,"",null,null,null,null,null,null,null,null,null,null,null,null,null,null,null,{"$f":"IF(ISNUMBER(SEARCH($Z$6,Bairros[[#This Row],[BAIRRO]])),MAX($V$5:V148)+1,0)","v":0},"JARDIM MADUREIRA",""]
[141,"",null,null,null,"",null,null,null,null,null,null,null,null,null,null,null,null,null,null,null,{"$f":"IF(ISNUMBER(SEARCH($Z$6,Bairros[[#This Row],[BAIRRO]])),MAX($V$5:V149)+1,0)","v":0},"JARDIM MAJESTIC",""]
[142,"",null,null,null,"",null,null,null,null,null,null,null,null,null,null,null,null,null,null,null,{"$f":"IF(ISNUMBER(SEARCH($Z$6,Bairros[[#This Row],[BAIRRO]])),MAX($V$5:V150)+1,0)","v":0},"JARDIM MARACANA",""]
[143,"",null,null,null,"",null,null,null,null,null,null,null,null,null,null,null,null,null,null,null,{"$f":"IF(ISNUMBER(SEARCH($Z$6,Bairros[[#This Row],[BAIRRO]])),MAX($V$5:V151)+1,0)","v":0},"JARDIM MARGARETH",""]
[144,"",null,null,null,"",null,null,null,null,null,null,null,null,null,null,null,null,null,null,null,{"$f":"IF(ISNUMBER(SEARCH($Z$6,Bairros[[#This Row],[BAIRRO]])),MAX($V$5:V152)+1,0)","v":0},"JARDIM MARIANA I ",""]
[145,"",null,null,null,"",null,null,null,null,null,null,null,null,null,null,null,null,null,null,null,{"$f":"IF(ISNUMBER(SEARCH($Z$6,Bairros[[#This Row],[BAIRRO]])),MAX($V$5:V153)+1,0)","v":0},"JARDIM MARIANA II",""]
[146,"",null,null,null,"",null,null,null,null,null,null,null,null,null,null,null,null,null,null,null,{"$f":"IF(ISNUMBER(SEARCH($Z$6,Bairros[[#This Row],[BAIRRO]])),MAX($V$5:V154)+1,0)","v":0},"JARDIM MARINGA",""]
[147,"",null,null,null,"",null,null,null,null,null,null,null,null,null,null,null,null,null,null,null,{"$f":"IF(ISNUMBER(SEARCH($Z$6,Bairros[[#This Row],[BAIRRO]])),MAX($V$5:V155)+1,0)","v":0},"JARDIM MARITEIA",""]
[148,"",null,null,null,"",null,null,null,null,null,null,null,null,null,null,null,null,null,null,null,{"$f":"IF(ISNUMBER(SEARCH($Z$6,Bairros[[#This Row],[BAIRRO]])),MAX($V$5:V156)+1,0)","v":0},"JARDIM MATARAZZO",""]
[149,"",null,null,null,"",null,null,null,null,null,null,null,null,null,null,null,null,null,null,null,{"$f":"IF(ISNUMBER(SEARCH($Z$6,Bairros[[#This Row],[BAIRRO]])),MAX($V$5:V157)+1,0)","v":0},"JARDIM MESQUITA",""]
[150,"",null,null,null,"",null,null,null,null,null,null,null,null,null,null,null,null,null,null,null,{"$f":"IF(ISNUMBER(SEARCH($Z$6,Bairros[[#This Row],[BAIRRO]])),MAX($V$5:V158)+1,0)","v":0},"JARDIM MINAS GERAIS",""]
[151,"",null,null,null,"",null,null,null,null,null,null,null,null,null,null,null,null,null,null,null,{"$f":"IF(ISNUMBER(SEARCH($Z$6,Bairros[[#This Row],[BAIRRO]])),MAX($V$5:V159)+1,0)","v":0},"JARDIM MOTORAMA",""]
[152,"",null,null,null,"",null,null,null,null,null,null,null,null,null,null,null,null,null,null,null,{"$f":"IF(ISNUMBER(SEARCH($Z$6,Bairros[[#This Row],[BAIRRO]])),MAX($V$5:V160)+1,0)","v":0},"JARDIM NOVA AMERICA",""]
[153,"",null,null,null,"",null,null,null,null,null,null,null,null,null,null,null,null,null,null,null,{"$f":"IF(ISNUMBER(SEARCH($Z$6,Bairros[[#This Row],[BAIRRO]])),MAX($V$5:V161)+1,0)","v":0},"JARDIM NOVA DETROIT",""]
[154,"",null,null,null,"",null,null,null,null,null,null,null,null,null,null,null,null,null,null,null,{"$f":"IF(ISNUMBER(SEARCH($Z$6,Bairros[[#This Row],[BAIRRO]])),MAX($V$5:V162)+1,0)","v":0},"JARDIM NOVA ESPERANCA (BANHADO)",""]
[155,"",null,null,null,"",null,null,null,null,null,null,null,null,null,null,null,null,null,null,null,{"$f":"IF(ISNUMBER(SEARCH($Z$6,Bairros[[#This Row],[BAIRRO]])),MAX($V$5:V163)+1,0)","v":0},"JARDIM NOVA EUROPA",""]
[156,"",null,null,null,"",null,null,null,null,null,null,null,null,null,null,null,null,null,null,null,{"$f":"IF(ISNUMBER(SEARCH($Z$6,Bairros[[#This Row],[BAIRRO]])),MAX($V$5:V164)+1,0)","v":0},"JARDIM NOVA FLORIDA",""]
[157,"",null,null,null,"",null,null,null,null,null,null,null,null,null,null,null,null,null,null,null,{"$f":"IF(ISNUMBER(SEARCH($Z$6,Bairros[[#This Row],[BAIRRO]])),MAX($V$5:V165)+1,0)","v":0},"JARDIM NOVA MICHIGAN I",""]
[158,"",null,null,null,"",null,null,null,null,null,null,null,null,null,null,null,null,null,null,null,{"$f":"IF(ISNUMBER(SEARCH($Z$6,Bairros[[#This Row],[BAIRRO]])),MAX($V$5:V166)+1,0)","v":0},"JARDIM NOVA MICHIGAN II",""]
[159,"",null,null,null,"",null,null,null,null,null,null,null,null,null,null,null,null,null,null,null,{"$f":"IF(ISNUMBER(SEARCH($Z$6,Bairros[[#This Row],[BAIRRO]])),MAX($V$5:V167)+1,0)","v":0},"JARDIM NOVA REPUBLICA",""]
[160,"",null,null,null,"",null,null,null,null,null,null,null,null,null,null,null,null,null,null,null,{"$f":"IF(ISNUMBER(SEARCH($Z$6,Bairros[[#This Row],[BAIRRO]])),MAX($V$5:V168)+1,0)","v":0},"JARDIM OLIMPIA",""]
[161,"",null,null,null,"",null,null,null,null,null,null,null,null,null,null,null,null,null,null,null,{"$f":"IF(ISNUMBER(SEARCH($Z$6,Bairros[[#This Row],[BAIRRO]])),MAX($V$5:V169)+1,0)","v":0},"JARDIM ORIENTAL",""]
[162,"",null,null,null,"",null,null,null,null,null,null,null,null,null,null,null,null,null,null,null,{"$f":"IF(ISNUMBER(SEARCH($Z$6,Bairros[[#This Row],[BAIRRO]])),MAX($V$5:V170)+1,0)","v":0},"JARDIM ORIENTE",""]
[163,"",null,null,null,"",null,null,null,null,null,null,null,null,null,null,null,null,null,null,null,{"$f":"IF(ISNUMBER(SEARCH($Z$6,Bairros[[#This Row],[BAIRRO]])),MAX($V$5:V171)+1,0)","v":0},"JARDIM OSWALDO CRUZ",""]
[164,"",null,null,null,"",null,null,null,null,null,null,null,null,null,null,null,null,null,null,null,{"$f":"IF(ISNUMBER(SEARCH($Z$6,Bairros[[#This Row],[BAIRRO]])),MAX($V$5:V172)+1,0)","v":0},"JARDIM OURO PRETO",""]
[165,"",null,null,null,"",null,null,null,null,null,null,null,null,null,null,null,null,null,null,null,{"$f":"IF(ISNUMBER(SEARCH($Z$6,Bairros[[#This Row],[BAIRRO]])),MAX($V$5:V173)+1,0)","v":0},"JARDIM PALMEIRAS DE SAO JOSE",""]
[166,"",null,null,null,"",null,null,null,null,null,null,null,null,null,null,null,null,null,null,null,{"$f":"IF(ISNUMBER(SEARCH($Z$6,Bairros[[#This Row],[BAIRRO]])),MAX($V$5:V174)+1,0)","v":0},"JARDIM PARAISO DO SOL",""]
[167,"",null,null,null,"",null,null,null,null,null,null,null,null,null,null,null,null,null,null,null,{"$f":"IF(ISNUMBER(SEARCH($Z$6,Bairros[[#This Row],[BAIRRO]])),MAX($V$5:V175)+1,0)","v":0},"JARDIM PARARANGABA",""]
[168,"",null,null,null,"",null,null,null,null,null,null,null,null,null,null,null,null,null,null,null,{"$f":"IF(ISNUMBER(SEARCH($Z$6,Bairros[[#This Row],[BAIRRO]])),MAX($V$5:V176)+1,0)","v":0},"JARDIM PAULISTA",""]
[169,"",null,null,null,"",null,null,null,null,null,null,null,null,null,null,null,null,null,null,null,{"$f":"IF(ISNUMBER(SEARCH($Z$6,Bairros[[#This Row],[BAIRRO]])),MAX($V$5:V177)+1,0)","v":0},"JARDIM PETROPOLIS",""]
[170,"",null,null,null,"",null,null,null,null,null,null,null,null,null,null,null,null,null,null,null,{"$f":"IF(ISNUMBER(SEARCH($Z$6,Bairros[[#This Row],[BAIRRO]])),MAX($V$5:V178)+1,0)","v":0},"JARDIM PORTUGAL",""]
[171,"",null,null,null,"",null,null,null,null,null,null,null,null,null,null,null,null,null,null,null,{"$f":"IF(ISNUMBER(SEARCH($Z$6,Bairros[[#This Row],[BAIRRO]])),MAX($V$5:V179)+1,0)","v":0},"JARDIM PRIMAVERA I ",""]
[172,"",null,null,null,"",null,null,null,null,null,null,null,null,null,null,null,null,null,null,null,{"$f":"IF(ISNUMBER(SEARCH($Z$6,Bairros[[#This Row],[BAIRRO]])),MAX($V$5:V180)+1,0)","v":0},"JARDIM PRIMAVERA II",""]
[173,"",null,null,null,"",null,null,null,null,null,null,null,null,null,null,null,null,null,null,null,{"$f":"IF(ISNUMBER(SEARCH($Z$6,Bairros[[#This Row],[BAIRRO]])),MAX($V$5:V181)+1,0)","v":0},"JARDIM RENATA",""]
[174,"",null,null,null,"",null,null,null,null,null,null,null,null,null,null,null,null,null,null,null,{"$f":"IF(ISNUMBER(SEARCH($Z$6,Bairros[[#This Row],[BAIRRO]])),MAX($V$5:V182)+1,0)","v":0},"JARDIM REPUBLICA",""]
[175,"",null,null,null,"",null,null,null,null,null,null,null,null,null,null,null,null,null,null,null,{"$f":"IF(ISNUMBER(SEARCH($Z$6,Bairros[[#This Row],[BAIRRO]])),MAX($V$5:V183)+1,0)","v":0},"JARDIM REPUBLICA NOVA",""]
[176,"",null,null,null,"",null,null,null,null,null,null,null,null,null,null,null,null,null,null,null,{"$f":"IF(ISNUMBER(SEARCH($Z$6,Bairros[[#This Row],[BAIRRO]])),MAX($V$5:V184)+1,0)","v":0},"JARDIM SAN MARINO",""]
[177,"",null,null,null,"",null,null,null,null,null,null,null,null,null,null,null,null,null,null,null,{"$f":"IF(ISNUMBER(SEARCH($Z$6,Bairros[[#This Row],[BAIRRO]])),MAX($V$5:V185)+1,0)","v":0},"JARDIM SAN RAFAEL",""]
[178,"",null,null,null,"",null,null,null,null,null,null,null,null,null,null,null,null,null,null,null,{"$f":"IF(ISNUMBER(SEARCH($Z$6,Bairros[[#This Row],[BAIRRO]])),MAX($V$5:V186)+1,0)","v":0},"JARDIM SANTA ALICE",""]
[179,"",null,null,null,"",null,null,null,null,null,null,null,null,null,null,null,null,null,null,null,{"$f":"IF(ISNUMBER(SEARCH($Z$6,Bairros[[#This Row],[BAIRRO]])),MAX($V$5:V187)+1,0)","v":0},"JARDIM SANTA CECILIA I ",""]
[180,"",null,null,null,"",null,null,null,null,null,null,null,null,null,null,null,null,null,null,null,{"$f":"IF(ISNUMBER(SEARCH($Z$6,Bairros[[#This Row],[BAIRRO]])),MAX($V$5:V188)+1,0)","v":0},"JARDIM SANTA CECILIA II",""]
[181,"",null,null,null,"",null,null,null,null,null,null,null,null,null,null,null,null,null,null,null,{"$f":"IF(ISNUMBER(SEARCH($Z$6,Bairros[[#This Row],[BAIRRO]])),MAX($V$5:V189)+1,0)","v":0},"JARDIM SANTA EDWIGES",""]
[182,"",null,null,null,"",null,null,null,null,null,null,null,null,null,null,null,null,null,null,null,{"$f":"IF(ISNUMBER(SEARCH($Z$6,Bairros[[#This Row],[BAIRRO]])),MAX($V$5:V190)+1,0)","v":0},"JARDIM SANTA FE",""]
[183,"",null,null,null,"",null,null,null,null,null,null,null,null,null,null,null,null,null,null,null,{"$f":"IF(ISNUMBER(SEARCH($Z$6,Bairros[[#This Row],[BAIRRO]])),MAX($V$5:V191)+1,0)","v":0},"JARDIM SANTA HERMINIA",""]
[184,"",null,null,null,"",null,null,null,null,null,null,null,null,null,null,null,null,null,null,null,{"$f":"IF(ISNUMBER(SEARCH($Z$6,Bairros[[#This Row],[BAIRRO]])),MAX($V$5:V192)+1,0)","v":0},"JARDIM SANTA INES I",""]
[185,"",null,null,null,"",null,null,null,null,null,null,null,null,null,null,null,null,null,null,null,{"$f":"IF(ISNUMBER(SEARCH($Z$6,Bairros[[#This Row],[BAIRRO]])),MAX($V$5:V193)+1,0)","v":0},"JARDIM SANTA INES II",""]
[186,"",null,null,null,"",null,null,null,null,null,null,null,null,null,null,null,null,null,null,null,{"$f":"IF(ISNUMBER(SEARCH($Z$6,Bairros[[#This Row],[BAIRRO]])),MAX($V$5:V194)+1,0)","v":0},"JARDIM SANTA INES III",""]
[187,"",null,null,null,"",null,null,null,null,null,null,null,null,null,null,null,null,null,null,null,{"$f":"IF(ISNUMBER(SEARCH($Z$6,Bairros[[#This Row],[BAIRRO]])),MAX($V$5:V195)+1,0)","v":0},"JARDIM SANTA JULIA",""]
[188,"",null,null,null,"",null,null,null,null,null,null,null,null,null,null,null,null,null,null,null,{"$f":"IF(ISNUMBER(SEARCH($Z$6,Bairros[[#This Row],[BAIRRO]])),MAX($V$5:V196)+1,0)","v":0},"JARDIM SANTA LUCIA",""]
[189,"",null,null,null,"",null,null,null,null,null,null,null,null,null,null,null,null,null,null,null,{"$f":"IF(ISNUMBER(SEARCH($Z$6,Bairros[[#This Row],[BAIRRO]])),MAX($V$5:V197)+1,0)","v":0},"JARDIM SANTA LUZIA",{"$f":"IFERROR(VLOOKUP(ROW(AA197),V198:W645,2,FALSE),\"\")","v":""}]
[190,"",null,null,null,"",null,null,null,null,null,null,null,null,null,null,null,null,null,null,null,{"$f":"IF(ISNUMBER(SEARCH($Z$6,Bairros[[#This Row],[BAIRRO]])),MAX($V$5:V198)+1,0)","v":0},"JARDIM SANTA MATILDE",""]
[191,"",null,null,null,"",null,null,null,null,null,null,null,null,null,null,null,null,null,null,null,{"$f":"IF(ISNUMBER(SEARCH($Z$6,Bairros[[#This Row],[BAIRRO]])),MAX($V$5:V199)+1,0)","v":0},"JARDIM SANTA RITA",""]
[192,"",null,null,null,"",null,null,null,null,null,null,null,null,null,null,null,null,null,null,null,{"$f":"IF(ISNUMBER(SEARCH($Z$6,Bairros[[#This Row],[BAIRRO]])),MAX($V$5:V200)+1,0)","v":0},"JARDIM SANTA ROSA",""]
[193,"",null,null,null,"",null,null,null,null,null,null,null,null,null,null,null,null,null,null,null,{"$f":"IF(ISNUMBER(SEARCH($Z$6,Bairros[[#This Row],[BAIRRO]])),MAX($V$5:V201)+1,0)","v":0},"JARDIM SANTA SOFIA",""]
[194,{"$f":"IF($I$6<>\"\",$I$6,\"\")","v":""},null,null,null,{"$f":"IF(E203=\"\",\"\",INT((NOW()-E203)/365.25))","v":""},null,null,null,null,null,null,null,null,null,null,null,null,null,null,null,{"$f":"IF(ISNUMBER(SEARCH($Z$6,Bairros[[#This Row],[BAIRRO]])),MAX($V$5:V202)+1,0)","v":0},"JARDIM SANTAREM",""]
[195,"",null,null,null,"",null,null,null,null,null,null,null,null,null,null,null,null,null,null,null,{"$f":"IF(ISNUMBER(SEARCH($Z$6,Bairros[[#This Row],[BAIRRO]])),MAX($V$5:V203)+1,0)","v":0},"JARDIM SANTO ONOFRE",""]
[196,"",null,null,null,"",null,null,null,null,null,null,null,null,null,null,null,null,null,null,null,{"$f":"IF(ISNUMBER(SEARCH($Z$6,Bairros[[#This Row],[BAIRRO]])),MAX($V$5:V204)+1,0)","v":0},"JARDIM SAO DIMAS",""]
[197,"",null,null,null,"",null,null,null,null,null,null,null,null,null,null,null,null,null,null,null,{"$f":"IF(ISNUMBER(SEARCH($Z$6,Bairros[[#This Row],[BAIRRO]])),MAX($V$5:V205)+1,0)","v":0},"JARDIM SAO JORGE",""]
[198,"",null,null,null,"",null,null,null,null,null,null,null,null,null,null,null,null,null,null,null,{"$f":"IF(ISNUMBER(SEARCH($Z$6,Bairros[[#This Row],[BAIRRO]])),MAX($V$5:V206)+1,0)","v":0},"JARDIM SAO JOSE (CENTRO)",""]
[199,"",null,null,null,"",null,null,null,null,null,null,null,null,null,null,null,null,null,null,null,{"$f":"IF(ISNUMBER(SEARCH($Z$6,Bairros[[#This Row],[BAIRRO]])),MAX($V$5:V207)+1,0)","v":0},"JARDIM SAO JOSE I",""]
[200,"",null,null,null,"",null,null,null,null,null,null,null,null,null,null,null,null,null,null,null,{"$f":"IF(ISNUMBER(SEARCH($Z$6,Bairros[[#This Row],[BAIRRO]])),MAX($V$5:V208)+1,0)","v":0},"JARDIM SAO JOSE II",""]
[201,"",null,null,null,"",null,null,null,null,null,null,null,null,null,null,null,null,null,null,null,{"$f":"IF(ISNUMBER(SEARCH($Z$6,Bairros[[#This Row],[BAIRRO]])),MAX($V$5:V209)+1,0)","v":0},"JARDIM SAO JUDAS TADEU",""]
[202,"",null,null,null,"",null,null,null,null,null,null,null,null,null,null,null,null,null,null,null,{"$f":"IF(ISNUMBER(SEARCH($Z$6,Bairros[[#This Row],[BAIRRO]])),MAX($V$5:V210)+1,0)","v":0},"JARDIM SAO VICENTE",""]
[203,"",null,null,null,"",null,null,null,null,null,null,null,null,null,null,null,null,null,null,null,{"$f":"IF(ISNUMBER(SEARCH($Z$6,Bairros[[#This Row],[BAIRRO]])),MAX($V$5:V211)+1,0)","v":0},"JARDIM SATELITE",""]
[204,"",null,null,null,"",null,null,null,null,null,null,null,null,null,null,null,null,null,null,null,{"$f":"IF(ISNUMBER(SEARCH($Z$6,Bairros[[#This Row],[BAIRRO]])),MAX($V$5:V212)+1,0)","v":0},"JARDIM SOUTO",""]
[205,"",null,null,null,"",null,null,null,null,null,null,null,null,null,null,null,null,null,null,null,{"$f":"IF(ISNUMBER(SEARCH($Z$6,Bairros[[#This Row],[BAIRRO]])),MAX($V$5:V213)+1,0)","v":0},"JARDIM TELESPARK",""]
[206,"",null,null,null,"",null,null,null,null,null,null,null,null,null,null,null,null,null,null,null,{"$f":"IF(ISNUMBER(SEARCH($Z$6,Bairros[[#This Row],[BAIRRO]])),MAX($V$5:V214)+1,0)","v":0},"JARDIM TERRAS DO SUL ",""]
[207,"",null,null,null,"",null,null,null,null,null,null,null,null,null,null,null,null,null,null,null,{"$f":"IF(ISNUMBER(SEARCH($Z$6,Bairros[[#This Row],[BAIRRO]])),MAX($V$5:V215)+1,0)","v":0},"JARDIM TOPAZIO",""]
[208,"",null,null,null,"",null,null,null,null,null,null,null,null,null,null,null,null,null,null,null,{"$f":"IF(ISNUMBER(SEARCH($Z$6,Bairros[[#This Row],[BAIRRO]])),MAX($V$5:V216)+1,0)","v":0},"JARDIM TRES JOSE",""]
[209,"",null,null,null,"",null,null,null,null,null,null,null,null,null,null,null,null,null,null,null,{"$f":"IF(ISNUMBER(SEARCH($Z$6,Bairros[[#This Row],[BAIRRO]])),MAX($V$5:V217)+1,0)","v":0},"JARDIM UIRA",""]
[210,"",null,null,null,"",null,null,null,null,null,null,null,null,null,null,null,null,null,null,null,{"$f":"IF(ISNUMBER(SEARCH($Z$6,Bairros[[#This Row],[BAIRRO]])),MAX($V$5:V218)+1,0)","v":0},"JARDIM UNIVERSO",""]
[211,"",null,null,null,"",null,null,null,null,null,null,null,null,null,null,null,null,null,null,null,{"$f":"IF(ISNUMBER(SEARCH($Z$6,Bairros[[#This Row],[BAIRRO]])),MAX($V$5:V219)+1,0)","v":0},"JARDIM VALE DO SOL",""]
[212,"",null,null,null,"",null,null,null,null,null,null,null,null,null,null,null,null,null,null,null,{"$f":"IF(ISNUMBER(SEARCH($Z$6,Bairros[[#This Row],[BAIRRO]])),MAX($V$5:V220)+1,0)","v":0},"JARDIM VALE PARAISO",""]
[213,"",null,null,null,"",null,null,null,null,null,null,null,null,null,null,null,null,null,null,null,{"$f":"IF(ISNUMBER(SEARCH($Z$6,Bairros[[#This Row],[BAIRRO]])),MAX($V$5:V221)+1,0)","v":0},"JARDIM VALPARAIBA",""]
[214,"",null,null,null,"",null,null,null,null,null,null,null,null,null,null,null,null,null,null,null,{"$f":"IF(ISNUMBER(SEARCH($Z$6,Bairros[[#This Row],[BAIRRO]])),MAX($V$5:V222)+1,0)","v":0},"JARDIM VENEZA",""]
[215,"",null,null,null,"",null,null,null,null,null,null,null,null,null,null,null,null,null,null,null,{"$f":"IF(ISNUMBER(SEARCH($Z$6,Bairros[[#This Row],[BAIRRO]])),MAX($V$5:V223)+1,0)","v":0},"JARDM PARAISO",""]
[216,"",null,null,null,"",null,null,null,null,null,null,null,null,null,null,null,null,null,null,null,{"$f":"IF(ISNUMBER(SEARCH($Z$6,Bairros[[#This Row],[BAIRRO]])),MAX($V$5:V224)+1,0)","v":0},"JARDM ROSARIO",""]
[217,"",null,null,null,"",null,null,null,null,null,null,null,null,null,null,null,null,null,null,null,{"$f":"IF(ISNUMBER(SEARCH($Z$6,Bairros[[#This Row],[BAIRRO]])),MAX($V$5:V225)+1,0)","v":0},"JARDM SANTA MADALENA",""]
[218,"",null,null,null,"",null,null,null,null,null,null,null,null,null,null,null,null,null,null,null,{"$f":"IF(ISNUMBER(SEARCH($Z$6,Bairros[[#This Row],[BAIRRO]])),MAX($V$5:V226)+1,0)","v":0},"JARDM SAO LEOPOLDO",""]
[219,"",null,null,null,"",null,null,null,null,null,null,null,null,null,null,null,null,null,null,null,{"$f":"IF(ISNUMBER(SEARCH($Z$6,Bairros[[#This Row],[BAIRRO]])),MAX($V$5:V227)+1,0)","v":0},"JARIDM SUL",""]
[220,"",null,null,null,"",null,null,null,null,null,null,null,null,null,null,null,null,null,null,null,{"$f":"IF(ISNUMBER(SEARCH($Z$6,Bairros[[#This Row],[BAIRRO]])),MAX($V$5:V228)+1,0)","v":0},"JOQUEI CLUBE (URBANOVA)",""]
[221,"",null,null,null,"",null,null,null,null,null,null,null,null,null,null,null,null,null,null,null,{"$f":"IF(ISNUMBER(SEARCH($Z$6,Bairros[[#This Row],[BAIRRO]])),MAX($V$5:V229)+1,0)","v":0},"LAVAPES",""]
[222,"",null,null,null,"",null,null,null,null,null,null,null,null,null,null,null,null,null,null,null,{"$f":"IF(ISNUMBER(SEARCH($Z$6,Bairros[[#This Row],[BAIRRO]])),MAX($V$5:V230)+1,0)","v":0},"LOTEAMENTO ESPELHO D'AGUA",""]
[223,"",null,null,null,"",null,null,null,null,null,null,null,null,null,null,null,null,null,null,null,{"$f":"IF(ISNUMBER(SEARCH($Z$6,Bairros[[#This Row],[BAIRRO]])),MAX($V$5:V231)+1,0)","v":0},"LOTEAMENTO RESERVA DA BARRA",""]
[224,"",null,null,null,"",null,null,null,null,null,null,null,null,null,null,null,null,null,null,null,{"$f":"IF(ISNUMBER(SEARCH($Z$6,Bairros[[#This Row],[BAIRRO]])),MAX($V$5:V232)+1,0)","v":0},"LOTEAMENTO RESERVA DA FIGUEIRA",""]
[225,"",null,null,null,"",null,null,null,null,null,null,null,null,null,null,null,null,null,null,null,{"$f":"IF(ISNUMBER(SEARCH($Z$6,Bairros[[#This Row],[BAIRRO]])),MAX($V$5:V233)+1,0)","v":0},"LOTEAMENTO SANTA RITA (BOM RETIRO)",""]
[226,"",null,null,null,"",null,null,null,null,null,null,null,null,null,null,null,null,null,null,null,{"$f":"IF(ISNUMBER(SEARCH($Z$6,Bairros[[#This Row],[BAIRRO]])),MAX($V$5:V234)+1,0)","v":0},"MARTINS GUIMARAES",""]
[227,"",null,null,null,"",null,null,null,null,null,null,null,null,null,null,null,null,null,null,null,{"$f":"IF(ISNUMBER(SEARCH($Z$6,Bairros[[#This Row],[BAIRRO]])),MAX($V$5:V235)+1,0)","v":0},"MATO DENTRO",""]
[228,"",null,null,null,"",null,null,null,null,null,null,null,null,null,null,null,null,null,null,null,{"$f":"IF(ISNUMBER(SEARCH($Z$6,Bairros[[#This Row],[BAIRRO]])),MAX($V$5:V236)+1,0)","v":0},"MIRANTE DO BUQUIRINHA",""]
[229,"",null,null,null,"",null,null,null,null,null,null,null,null,null,null,null,null,null,null,null,{"$f":"IF(ISNUMBER(SEARCH($Z$6,Bairros[[#This Row],[BAIRRO]])),MAX($V$5:V237)+1,0)","v":0},"MIRANTE DO VALE",""]
[230,"",null,null,null,"",null,null,null,null,null,null,null,null,null,null,null,null,null,null,null,{"$f":"IF(ISNUMBER(SEARCH($Z$6,Bairros[[#This Row],[BAIRRO]])),MAX($V$5:V238)+1,0)","v":0},"MONTE CASTELO",""]
[231,"",null,null,null,"",null,null,null,null,null,null,null,null,null,null,null,null,null,null,null,{"$f":"IF(ISNUMBER(SEARCH($Z$6,Bairros[[#This Row],[BAIRRO]])),MAX($V$5:V239)+1,0)","v":0},"MORADA DO FENIX",""]
[232,"",null,null,null,"",null,null,null,null,null,null,null,null,null,null,null,null,null,null,null,{"$f":"IF(ISNUMBER(SEARCH($Z$6,Bairros[[#This Row],[BAIRRO]])),MAX($V$5:V240)+1,0)","v":0},"NOVE DE JULHO",""]
[233,"",null,null,null,"",null,null,null,null,null,null,null,null,null,null,null,null,null,null,null,{"$f":"IF(ISNUMBER(SEARCH($Z$6,Bairros[[#This Row],[BAIRRO]])),MAX($V$5:V241)+1,0)","v":0},"PARQUE DOS IPES",""]
[234,"",null,null,null,"",null,null,null,null,null,null,null,null,null,null,null,null,null,null,null,{"$f":"IF(ISNUMBER(SEARCH($Z$6,Bairros[[#This Row],[BAIRRO]])),MAX($V$5:V242)+1,0)","v":0},"PARQUE DOS YPES",""]
[235,"",null,null,null,"",null,null,null,null,null,null,null,null,null,null,null,null,null,null,null,{"$f":"IF(ISNUMBER(SEARCH($Z$6,Bairros[[#This Row],[BAIRRO]])),MAX($V$5:V243)+1,0)","v":0},"PARQUE INDEPENDENCIA",""]
[236,"",null,null,null,"",null,null,null,null,null,null,null,null,null,null,null,null,null,null,null,{"$f":"IF(ISNUMBER(SEARCH($Z$6,Bairros[[#This Row],[BAIRRO]])),MAX($V$5:V244)+1,0)","v":0},"PARQUE INDUSTRIAL",""]
[237,"",null,null,null,"",null,null,null,null,null,null,null,null,null,null,null,null,null,null,null,{"$f":"IF(ISNUMBER(SEARCH($Z$6,Bairros[[#This Row],[BAIRRO]])),MAX($V$5:V245)+1,0)","v":0},"PARQUE INTERLAGOS",""]
[238,"",null,null,null,"",null,null,null,null,null,null,null,null,null,null,null,null,null,null,null,{"$f":"IF(ISNUMBER(SEARCH($Z$6,Bairros[[#This Row],[BAIRRO]])),MAX($V$5:V246)+1,0)","v":0},"PARQUE MARTIM CERERE",""]
[239,"",null,null,null,"",null,null,null,null,null,null,null,null,null,null,null,null,null,null,null,{"$f":"IF(ISNUMBER(SEARCH($Z$6,Bairros[[#This Row],[BAIRRO]])),MAX($V$5:V247)+1,0)","v":0},"PARQUE NOVA ESPERANCA",""]
[240,"",null,null,null,"",null,null,null,null,null,null,null,null,null,null,null,null,null,null,null,{"$f":"IF(ISNUMBER(SEARCH($Z$6,Bairros[[#This Row],[BAIRRO]])),MAX($V$5:V248)+1,0)","v":0},"PARQUE NOVO HORIZONTE",""]
[241,"",null,null,null,"",null,null,null,null,null,null,null,null,null,null,null,null,null,null,null,{"$f":"IF(ISNUMBER(SEARCH($Z$6,Bairros[[#This Row],[BAIRRO]])),MAX($V$5:V249)+1,0)","v":0},"PARQUE RESIDENCIAL AQUARIUS",""]
[242,"",null,null,null,"",null,null,null,null,null,null,null,null,null,null,null,null,null,null,null,{"$f":"IF(ISNUMBER(SEARCH($Z$6,Bairros[[#This Row],[BAIRRO]])),MAX($V$5:V250)+1,0)","v":0},"PARQUE RESIDENCIAL FLAMBOYANT",""]
[243,"",null,null,null,"",null,null,null,null,null,null,null,null,null,null,null,null,null,null,null,{"$f":"IF(ISNUMBER(SEARCH($Z$6,Bairros[[#This Row],[BAIRRO]])),MAX($V$5:V251)+1,0)","v":0},"PARQUE RESIDENCIAL SANTO ANTONIO",""]
[244,"",null,null,null,"",null,null,null,null,null,null,null,null,null,null,null,null,null,null,null,{"$f":"IF(ISNUMBER(SEARCH($Z$6,Bairros[[#This Row],[BAIRRO]])),MAX($V$5:V252)+1,0)","v":0},"PARQUE RESIDENCIAL UNIAO",""]
[245,"",null,null,null,"",null,null,null,null,null,null,null,null,null,null,null,null,null,null,null,{"$f":"IF(ISNUMBER(SEARCH($Z$6,Bairros[[#This Row],[BAIRRO]])),MAX($V$5:V253)+1,0)","v":0},"PARQUE SANTA RITA",""]
[246,"",null,null,null,"",null,null,null,null,null,null,null,null,null,null,null,null,null,null,null,{"$f":"IF(ISNUMBER(SEARCH($Z$6,Bairros[[#This Row],[BAIRRO]])),MAX($V$5:V254)+1,0)","v":0},"PARQUE SANTOS DUMONT",""]
[247,"",null,null,null,"",null,null,null,null,null,null,null,null,null,null,null,null,null,null,null,{"$f":"IF(ISNUMBER(SEARCH($Z$6,Bairros[[#This Row],[BAIRRO]])),MAX($V$5:V255)+1,0)","v":0},"PAU DE SAIA",""]
[248,"",null,null,null,"",null,null,null,null,null,null,null,null,null,null,null,null,null,null,null,{"$f":"IF(ISNUMBER(SEARCH($Z$6,Bairros[[#This Row],[BAIRRO]])),MAX($V$5:V256)+1,0)","v":0},"PEDRA D' AGUA",""]
[249,"",null,null,null,"",null,null,null,null,null,null,null,null,null,null,null,null,null,null,null,{"$f":"IF(ISNUMBER(SEARCH($Z$6,Bairros[[#This Row],[BAIRRO]])),MAX($V$5:V257)+1,0)","v":0},"PERNAMBUCANA DE BAIXO",""]
[250,"",null,null,null,"",null,null,null,null,null,null,null,null,null,null,null,null,null,null,null,{"$f":"IF(ISNUMBER(SEARCH($Z$6,Bairros[[#This Row],[BAIRRO]])),MAX($V$5:V258)+1,0)","v":0},"PERNAMBUCANA DE CIMA",""]
[251,"",null,null,null,"",null,null,null,null,null,null,null,null,null,null,null,null,null,null,null,{"$f":"IF(ISNUMBER(SEARCH($Z$6,Bairros[[#This Row],[BAIRRO]])),MAX($V$5:V259)+1,0)","v":0},"PINHEIRINHO (URBANOVA)",""]
[252,"",null,null,null,"",null,null,null,null,null,null,null,null,null,null,null,null,null,null,null,{"$f":"IF(ISNUMBER(SEARCH($Z$6,Bairros[[#This Row],[BAIRRO]])),MAX($V$5:V260)+1,0)","v":0},"PINHEIRINHO DOS PALMARES II",""]
[253,"",null,null,null,"",null,null,null,null,null,null,null,null,null,null,null,null,null,null,null,{"$f":"IF(ISNUMBER(SEARCH($Z$6,Bairros[[#This Row],[BAIRRO]])),MAX($V$5:V261)+1,0)","v":0},"PORTAL DE MINAS",{"$f":"IFERROR(VLOOKUP(ROW(AA261),V262:W709,2,FALSE),\"\")","v":""}]
[254,"",null,null,null,"",null,null,null,null,null,null,null,null,null,null,null,null,null,null,null,{"$f":"IF(ISNUMBER(SEARCH($Z$6,Bairros[[#This Row],[BAIRRO]])),MAX($V$5:V262)+1,0)","v":0},"PORTAL DO CEU ",""]
[255,"",null,null,null,"",null,null,null,null,null,null,null,null,null,null,null,null,null,null,null,{"$f":"IF(ISNUMBER(SEARCH($Z$6,Bairros[[#This Row],[BAIRRO]])),MAX($V$5:V263)+1,0)","v":0},"PORTAL DOS PASSAROS",""]
[256,"",null,null,null,"",null,null,null,null,null,null,null,null,null,null,null,null,null,null,null,{"$f":"IF(ISNUMBER(SEARCH($Z$6,Bairros[[#This Row],[BAIRRO]])),MAX($V$5:V264)+1,0)","v":0},"PORTAL SANTA INES",""]
[257,"",null,null,null,"",null,null,null,null,null,null,null,null,null,null,null,null,null,null,null,{"$f":"IF(ISNUMBER(SEARCH($Z$6,Bairros[[#This Row],[BAIRRO]])),MAX($V$5:V265)+1,0)","v":0},"POUSADA DO VALE ",""]
[258,{"$f":"IF($I$6<>\"\",$I$6,\"\")","v":""},null,null,null,{"$f":"IF(E267=\"\",\"\",INT((NOW()-E267)/365.25))","v":""},null,null,null,null,null,null,null,null,null,null,null,null,null,null,null,{"$f":"IF(ISNUMBER(SEARCH($Z$6,Bairros[[#This Row],[BAIRRO]])),MAX($V$5:V266)+1,0)","v":0},"QUARTO CENTENARIO",""]
[259,"",null,null,null,"",null,null,null,null,null,null,null,null,null,null,null,null,null,null,null,{"$f":"IF(ISNUMBER(SEARCH($Z$6,Bairros[[#This Row],[BAIRRO]])),MAX($V$5:V267)+1,0)","v":0},"QUINTA DAS FLORES",""]
[260,"",null,null,null,"",null,null,null,null,null,null,null,null,null,null,null,null,null,null,null,{"$f":"IF(ISNUMBER(SEARCH($Z$6,Bairros[[#This Row],[BAIRRO]])),MAX($V$5:V268)+1,0)","v":0},"RECANTO DA BARONESA",""]
[261,"",null,null,null,"",null,null,null,null,null,null,null,null,null,null,null,null,null,null,null,{"$f":"IF(ISNUMBER(SEARCH($Z$6,Bairros[[#This Row],[BAIRRO]])),MAX($V$5:V269)+1,0)","v":0},"RECANTO DAS JABUTICABEIRAS",""]
[262,"",null,null,null,"",null,null,null,null,null,null,null,null,null,null,null,null,null,null,null,{"$f":"IF(ISNUMBER(SEARCH($Z$6,Bairros[[#This Row],[BAIRRO]])),MAX($V$5:V270)+1,0)","v":0},"RECANTO DO CAETE",""]
[263,"",null,null,null,"",null,null,null,null,null,null,null,null,null,null,null,null,null,null,null,{"$f":"IF(ISNUMBER(SEARCH($Z$6,Bairros[[#This Row],[BAIRRO]])),MAX($V$5:V271)+1,0)","v":0},"RECANTO DO VALE",""]
[264,"",null,null,null,"",null,null,null,null,null,null,null,null,null,null,null,null,null,null,null,{"$f":"IF(ISNUMBER(SEARCH($Z$6,Bairros[[#This Row],[BAIRRO]])),MAX($V$5:V272)+1,0)","v":0},"RECANTO DOS EUCALIPTOS",""]
[265,"",null,null,null,"",null,null,null,null,null,null,null,null,null,null,null,null,null,null,null,{"$f":"IF(ISNUMBER(SEARCH($Z$6,Bairros[[#This Row],[BAIRRO]])),MAX($V$5:V273)+1,0)","v":0},"RECANTO DOS PINHEIROS",""]
[266,"",null,null,null,"",null,null,null,null,null,null,null,null,null,null,null,null,null,null,null,{"$f":"IF(ISNUMBER(SEARCH($Z$6,Bairros[[#This Row],[BAIRRO]])),MAX($V$5:V274)+1,0)","v":0},"RECANTO DOS TAMOIOS",""]
[267,"",null,null,null,"",null,null,null,null,null,null,null,null,null,null,null,null,null,null,null,{"$f":"IF(ISNUMBER(SEARCH($Z$6,Bairros[[#This Row],[BAIRRO]])),MAX($V$5:V275)+1,0)","v":0},"RECREIO BOA VISTA",""]
[268,"",null,null,null,"",null,null,null,null,null,null,null,null,null,null,null,null,null,null,null,{"$f":"IF(ISNUMBER(SEARCH($Z$6,Bairros[[#This Row],[BAIRRO]])),MAX($V$5:V276)+1,0)","v":0},"RESERVA DO PARATEHY",""]
[269,"",null,null,null,"",null,null,null,null,null,null,null,null,null,null,null,null,null,null,null,{"$f":"IF(ISNUMBER(SEARCH($Z$6,Bairros[[#This Row],[BAIRRO]])),MAX($V$5:V277)+1,0)","v":0},"RESIDENCIAL ALTOS DA QUINTA",""]
[270,"",null,null,null,"",null,null,null,null,null,null,null,null,null,null,null,null,null,null,null,{"$f":"IF(ISNUMBER(SEARCH($Z$6,Bairros[[#This Row],[BAIRRO]])),MAX($V$5:V278)+1,0)","v":0},"RESIDENCIAL ALTOS DOS YPES",""]
[271,"",null,null,null,"",null,null,null,null,null,null,null,null,null,null,null,null,null,null,null,{"$f":"IF(ISNUMBER(SEARCH($Z$6,Bairros[[#This Row],[BAIRRO]])),MAX($V$5:V279)+1,0)","v":0},"RESIDENCIAL ANA MARIA",""]
[272,"",null,null,null,"",null,null,null,null,null,null,null,null,null,null,null,null,null,null,null,{"$f":"IF(ISNUMBER(SEARCH($Z$6,Bairros[[#This Row],[BAIRRO]])),MAX($V$5:V280)+1,0)","v":0},"RESIDENCIAL ARMANDO RIGHI",""]
[273,"",null,null,null,"",null,null,null,null,null,null,null,null,null,null,null,null,null,null,null,{"$f":"IF(ISNUMBER(SEARCH($Z$6,Bairros[[#This Row],[BAIRRO]])),MAX($V$5:V281)+1,0)","v":0},"RESIDENCIAL BELL PARK",""]
[274,"",null,null,null,"",null,null,null,null,null,null,null,null,null,null,null,null,null,null,null,{"$f":"IF(ISNUMBER(SEARCH($Z$6,Bairros[[#This Row],[BAIRRO]])),MAX($V$5:V282)+1,0)","v":0},"RESIDENCIAL BOSQUE DOS IPES",""]
[275,"",null,null,null,"",null,null,null,null,null,null,null,null,null,null,null,null,null,null,null,{"$f":"IF(ISNUMBER(SEARCH($Z$6,Bairros[[#This Row],[BAIRRO]])),MAX($V$5:V283)+1,0)","v":0},"RESIDENCIAL CAMBUI",""]
[276,"",null,null,null,"",null,null,null,null,null,null,null,null,null,null,null,null,null,null,null,{"$f":"IF(ISNUMBER(SEARCH($Z$6,Bairros[[#This Row],[BAIRRO]])),MAX($V$5:V284)+1,0)","v":0},"RESIDENCIAL CAMINHO DAS MONTANHAS",""]
[277,"",null,null,null,"",null,null,null,null,null,null,null,null,null,null,null,null,null,null,null,{"$f":"IF(ISNUMBER(SEARCH($Z$6,Bairros[[#This Row],[BAIRRO]])),MAX($V$5:V285)+1,0)","v":0},"RESIDENCIAL CAMPO BELO",""]
[278,"",null,null,null,"",null,null,null,null,null,null,null,null,null,null,null,null,null,null,null,{"$f":"IF(ISNUMBER(SEARCH($Z$6,Bairros[[#This Row],[BAIRRO]])),MAX($V$5:V286)+1,0)","v":0},"RESIDENCIAL DEVILLE",""]
[279,"",null,null,null,"",null,null,null,null,null,null,null,null,null,null,null,null,null,null,null,{"$f":"IF(ISNUMBER(SEARCH($Z$6,Bairros[[#This Row],[BAIRRO]])),MAX($V$5:V287)+1,0)","v":0},"RESIDENCIAL DOM BOSCO",""]
[280,"",null,null,null,"",null,null,null,null,null,null,null,null,null,null,null,null,null,null,null,{"$f":"IF(ISNUMBER(SEARCH($Z$6,Bairros[[#This Row],[BAIRRO]])),MAX($V$5:V288)+1,0)","v":0},"RESIDENCIAL DUNAMIS",""]
[281,"",null,null,null,"",null,null,null,null,null,null,null,null,null,null,null,null,null,null,null,{"$f":"IF(ISNUMBER(SEARCH($Z$6,Bairros[[#This Row],[BAIRRO]])),MAX($V$5:V289)+1,0)","v":0},"RESIDENCIAL ESPLANADA DO SOL",""]
[282,"",null,null,null,"",null,null,null,null,null,null,null,null,null,null,null,null,null,null,null,{"$f":"IF(ISNUMBER(SEARCH($Z$6,Bairros[[#This Row],[BAIRRO]])),MAX($V$5:V290)+1,0)","v":0},"RESIDENCIAL FREI GALVAO",""]
[283,"",null,null,null,"",null,null,null,null,null,null,null,null,null,null,null,null,null,null,null,{"$f":"IF(ISNUMBER(SEARCH($Z$6,Bairros[[#This Row],[BAIRRO]])),MAX($V$5:V291)+1,0)","v":0},"RESIDENCIAL GAZZO",""]
[284,"",null,null,null,"",null,null,null,null,null,null,null,null,null,null,null,null,null,null,null,{"$f":"IF(ISNUMBER(SEARCH($Z$6,Bairros[[#This Row],[BAIRRO]])),MAX($V$5:V292)+1,0)","v":0},"RESIDENCIAL JAGUARY",""]
[285,"",null,null,null,"",null,null,null,null,null,null,null,null,null,null,null,null,null,null,null,{"$f":"IF(ISNUMBER(SEARCH($Z$6,Bairros[[#This Row],[BAIRRO]])),MAX($V$5:V293)+1,0)","v":0},"RESIDENCIAL JARDIM RODOLFO",""]
[286,"",null,null,null,"",null,null,null,null,null,null,null,null,null,null,null,null,null,null,null,{"$f":"IF(ISNUMBER(SEARCH($Z$6,Bairros[[#This Row],[BAIRRO]])),MAX($V$5:V294)+1,0)","v":0},"RESIDENCIAL JARDINS",""]
[287,"",null,null,null,"",null,null,null,null,null,null,null,null,null,null,null,null,null,null,null,{"$f":"IF(ISNUMBER(SEARCH($Z$6,Bairros[[#This Row],[BAIRRO]])),MAX($V$5:V295)+1,0)","v":0},"RESIDENCIAL JATOBA",""]
[288,"",null,null,null,"",null,null,null,null,null,null,null,null,null,null,null,null,null,null,null,{"$f":"IF(ISNUMBER(SEARCH($Z$6,Bairros[[#This Row],[BAIRRO]])),MAX($V$5:V296)+1,0)","v":0},"RESIDENCIAL JURITIS",""]
[289,"",null,null,null,"",null,null,null,null,null,null,null,null,null,null,null,null,null,null,null,{"$f":"IF(ISNUMBER(SEARCH($Z$6,Bairros[[#This Row],[BAIRRO]])),MAX($V$5:V297)+1,0)","v":0},"RESIDENCIAL MANTIQUEIRA",""]
[290,"",null,null,null,"",null,null,null,null,null,null,null,null,null,null,null,null,null,null,null,{"$f":"IF(ISNUMBER(SEARCH($Z$6,Bairros[[#This Row],[BAIRRO]])),MAX($V$5:V298)+1,0)","v":0},"RESIDENCIAL MARTINS PEREIRA",""]
[291,"",null,null,null,"",null,null,null,null,null,null,null,null,null,null,null,null,null,null,null,{"$f":"IF(ISNUMBER(SEARCH($Z$6,Bairros[[#This Row],[BAIRRO]])),MAX($V$5:V299)+1,0)","v":0},"RESIDENCIAL MONTSERRAT",""]
[292,"",null,null,null,"",null,null,null,null,null,null,null,null,null,null,null,null,null,null,null,{"$f":"IF(ISNUMBER(SEARCH($Z$6,Bairros[[#This Row],[BAIRRO]])),MAX($V$5:V300)+1,0)","v":0},"RESIDENCIAL PARQUE SANTO ANTONIO",""]
[293,"",null,null,null,"",null,null,null,null,null,null,null,null,null,null,null,null,null,null,null,{"$f":"IF(ISNUMBER(SEARCH($Z$6,Bairros[[#This Row],[BAIRRO]])),MAX($V$5:V301)+1,0)","v":0},"RESIDENCIAL RIBEIRA (EUGENIO DE MELO)",""]
[294,"",null,null,null,"",null,null,null,null,null,null,null,null,null,null,null,null,null,null,null,{"$f":"IF(ISNUMBER(SEARCH($Z$6,Bairros[[#This Row],[BAIRRO]])),MAX($V$5:V302)+1,0)","v":0},"RESIDENCIAL RIGHI ARMANDO",""]
[295,"",null,null,null,"",null,null,null,null,null,null,null,null,null,null,null,null,null,null,null,{"$f":"IF(ISNUMBER(SEARCH($Z$6,Bairros[[#This Row],[BAIRRO]])),MAX($V$5:V303)+1,0)","v":0},"RESIDENCIAL SAO FRANCISCO XAVIER",""]
[296,"",null,null,null,"",null,null,null,null,null,null,null,null,null,null,null,null,null,null,null,{"$f":"IF(ISNUMBER(SEARCH($Z$6,Bairros[[#This Row],[BAIRRO]])),MAX($V$5:V304)+1,0)","v":0},"RESIDENCIAL SOL NASCENTE",""]
[297,"",null,null,null,"",null,null,null,null,null,null,null,null,null,null,null,null,null,null,null,{"$f":"IF(ISNUMBER(SEARCH($Z$6,Bairros[[#This Row],[BAIRRO]])),MAX($V$5:V305)+1,0)","v":0},"RESIDENCIAL VERANAS",""]
[298,"",null,null,null,"",null,null,null,null,null,null,null,null,null,null,null,null,null,null,null,{"$f":"IF(ISNUMBER(SEARCH($Z$6,Bairros[[#This Row],[BAIRRO]])),MAX($V$5:V306)+1,0)","v":0},"RESIDENCIAL VISTA LINDA",""]
[299,"",null,null,null,"",null,null,null,null,null,null,null,null,null,null,null,null,null,null,null,{"$f":"IF(ISNUMBER(SEARCH($Z$6,Bairros[[#This Row],[BAIRRO]])),MAX($V$5:V307)+1,0)","v":0},"ROYAL PARK",""]
[300,"",null,null,null,"",null,null,null,null,null,null,null,null,null,null,null,null,null,null,null,{"$f":"IF(ISNUMBER(SEARCH($Z$6,Bairros[[#This Row],[BAIRRO]])),MAX($V$5:V308)+1,0)","v":0},"SANTA MARIA ",""]
[301,"",null,null,null,"",null,null,null,null,null,null,null,null,null,null,null,null,null,null,null,{"$f":"IF(ISNUMBER(SEARCH($Z$6,Bairros[[#This Row],[BAIRRO]])),MAX($V$5:V309)+1,0)","v":0},"SANTO AGOSTINHO DE BAIXO",""]
[302,"",null,null,null,"",null,null,null,null,null,null,null,null,null,null,null,null,null,null,null,{"$f":"IF(ISNUMBER(SEARCH($Z$6,Bairros[[#This Row],[BAIRRO]])),MAX($V$5:V310)+1,0)","v":0},"SANTO AGOSTINHO DE CIMA",""]
[303,"",null,null,null,"",null,null,null,null,null,null,null,null,null,null,null,null,null,null,null,{"$f":"IF(ISNUMBER(SEARCH($Z$6,Bairros[[#This Row],[BAIRRO]])),MAX($V$5:V311)+1,0)","v":0},"SANTOS DUMONT",""]
[304,"",null,null,null,"",null,null,null,null,null,null,null,null,null,null,null,null,null,null,null,{"$f":"IF(ISNUMBER(SEARCH($Z$6,Bairros[[#This Row],[BAIRRO]])),MAX($V$5:V312)+1,0)","v":0},"SAO JOAO",""]
[305,"",null,null,null,"",null,null,null,null,null,null,null,null,null,null,null,null,null,null,null,{"$f":"IF(ISNUMBER(SEARCH($Z$6,Bairros[[#This Row],[BAIRRO]])),MAX($V$5:V313)+1,0)","v":0},"SAPE",""]
[306,"",null,null,null,"",null,null,null,null,null,null,null,null,null,null,null,null,null,null,null,{"$f":"IF(ISNUMBER(SEARCH($Z$6,Bairros[[#This Row],[BAIRRO]])),MAX($V$5:V314)+1,0)","v":0},"SERROTE",""]
[307,"",null,null,null,"",null,null,null,null,null,null,null,null,null,null,null,null,null,null,null,{"$f":"IF(ISNUMBER(SEARCH($Z$6,Bairros[[#This Row],[BAIRRO]])),MAX($V$5:V315)+1,0)","v":0},"SERTAOZINHO",""]
[308,"",null,null,null,"",null,null,null,null,null,null,null,null,null,null,null,null,null,null,null,{"$f":"IF(ISNUMBER(SEARCH($Z$6,Bairros[[#This Row],[BAIRRO]])),MAX($V$5:V316)+1,0)","v":0},"SETVILLE ALTOS DE SAO JOSE",""]
[309,"",null,null,null,"",null,null,null,null,null,null,null,null,null,null,null,null,null,null,null,{"$f":"IF(ISNUMBER(SEARCH($Z$6,Bairros[[#This Row],[BAIRRO]])),MAX($V$5:V317)+1,0)","v":0},"SFX - AGUA PRETA",""]
[310,"",null,null,null,"",null,null,null,null,null,null,null,null,null,null,null,null,null,null,null,{"$f":"IF(ISNUMBER(SEARCH($Z$6,Bairros[[#This Row],[BAIRRO]])),MAX($V$5:V318)+1,0)","v":0},"SFX - BARREIRA",""]
[311,"",null,null,null,"",null,null,null,null,null,null,null,null,null,null,null,null,null,null,null,{"$f":"IF(ISNUMBER(SEARCH($Z$6,Bairros[[#This Row],[BAIRRO]])),MAX($V$5:V319)+1,0)","v":0},"SFX - BUGRE",""]
[312,"",null,null,null,"",null,null,null,null,null,null,null,null,null,null,null,null,null,null,null,{"$f":"IF(ISNUMBER(SEARCH($Z$6,Bairros[[#This Row],[BAIRRO]])),MAX($V$5:V320)+1,0)","v":0},"SFX - CAFUNDO",""]
[313,"",null,null,null,"",null,null,null,null,null,null,null,null,null,null,null,null,null,null,null,{"$f":"IF(ISNUMBER(SEARCH($Z$6,Bairros[[#This Row],[BAIRRO]])),MAX($V$5:V321)+1,0)","v":0},"SFX - CANELAR",""]
[314,"",null,null,null,"",null,null,null,null,null,null,null,null,null,null,null,null,null,null,null,{"$f":"IF(ISNUMBER(SEARCH($Z$6,Bairros[[#This Row],[BAIRRO]])),MAX($V$5:V322)+1,0)","v":0},"SFX - CENTRO",""]
[315,"",null,null,null,"",null,null,null,null,null,null,null,null,null,null,null,null,null,null,null,{"$f":"IF(ISNUMBER(SEARCH($Z$6,Bairros[[#This Row],[BAIRRO]])),MAX($V$5:V323)+1,0)","v":0},"SFX - FARTURA",""]
[316,"",null,null,null,"",null,null,null,null,null,null,null,null,null,null,null,null,null,null,null,{"$f":"IF(ISNUMBER(SEARCH($Z$6,Bairros[[#This Row],[BAIRRO]])),MAX($V$5:V324)+1,0)","v":0},"SFX - FERREIRA",""]
[317,"",null,null,null,"",null,null,null,null,null,null,null,null,null,null,null,null,null,null,null,{"$f":"IF(ISNUMBER(SEARCH($Z$6,Bairros[[#This Row],[BAIRRO]])),MAX($V$5:V325)+1,0)","v":0},"SFX - GUAXINDIBA",{"$f":"IFERROR(VLOOKUP(ROW(AA325),V326:W773,2,FALSE),\"\")","v":""}]
[318,"",null,null,null,"",null,null,null,null,null,null,null,null,null,null,null,null,null,null,null,{"$f":"IF(ISNUMBER(SEARCH($Z$6,Bairros[[#This Row],[BAIRRO]])),MAX($V$5:V326)+1,0)","v":0},"SFX - GUIRRA",""]
[319,"",null,null,null,"",null,null,null,null,null,null,null,null,null,null,null,null,null,null,null,{"$f":"IF(ISNUMBER(SEARCH($Z$6,Bairros[[#This Row],[BAIRRO]])),MAX($V$5:V327)+1,0)","v":0},"SFX - LAVRAS",""]
[320,"",null,null,null,"",null,null,null,null,null,null,null,null,null,null,null,null,null,null,null,{"$f":"IF(ISNUMBER(SEARCH($Z$6,Bairros[[#This Row],[BAIRRO]])),MAX($V$5:V328)+1,0)","v":0},"SFX - MACHADO",""]
[321,"",null,null,null,"",null,null,null,null,null,null,null,null,null,null,null,null,null,null,null,{"$f":"IF(ISNUMBER(SEARCH($Z$6,Bairros[[#This Row],[BAIRRO]])),MAX($V$5:V329)+1,0)","v":0},"SFX - MARTINS",""]
[322,{"$f":"IF($I$6<>\"\",$I$6,\"\")","v":""},null,null,null,{"$f":"IF(E331=\"\",\"\",INT((NOW()-E331)/365.25))","v":""},null,null,null,null,null,null,null,null,null,null,null,null,null,null,null,{"$f":"IF(ISNUMBER(SEARCH($Z$6,Bairros[[#This Row],[BAIRRO]])),MAX($V$5:V330)+1,0)","v":0},"SFX - OLEO PARDO",""]
[323,"",null,null,null,"",null,null,null,null,null,null,null,null,null,null,null,null,null,null,null,{"$f":"IF(ISNUMBER(SEARCH($Z$6,Bairros[[#This Row],[BAIRRO]])),MAX($V$5:V331)+1,0)","v":0},"SFX - PEDRA VERMELHA",""]
[324,"",null,null,null,"",null,null,null,null,null,null,null,null,null,null,null,null,null,null,null,{"$f":"IF(ISNUMBER(SEARCH($Z$6,Bairros[[#This Row],[BAIRRO]])),MAX($V$5:V332)+1,0)","v":0},"SFX - POCINHO",""]
[325,"",null,null,null,"",null,null,null,null,null,null,null,null,null,null,null,null,null,null,null,{"$f":"IF(ISNUMBER(SEARCH($Z$6,Bairros[[#This Row],[BAIRRO]])),MAX($V$5:V333)+1,0)","v":0},"SFX - REMEDIO",""]
[326,"",null,null,null,"",null,null,null,null,null,null,null,null,null,null,null,null,null,null,null,{"$f":"IF(ISNUMBER(SEARCH($Z$6,Bairros[[#This Row],[BAIRRO]])),MAX($V$5:V334)+1,0)","v":0},"SFX - RIO DAS COBRAS",""]
[327,"",null,null,null,"",null,null,null,null,null,null,null,null,null,null,null,null,null,null,null,{"$f":"IF(ISNUMBER(SEARCH($Z$6,Bairros[[#This Row],[BAIRRO]])),MAX($V$5:V335)+1,0)","v":0},"SFX - RIO DO PEIXE",""]
[328,"",null,null,null,"",null,null,null,null,null,null,null,null,null,null,null,null,null,null,null,{"$f":"IF(ISNUMBER(SEARCH($Z$6,Bairros[[#This Row],[BAIRRO]])),MAX($V$5:V336)+1,0)","v":0},"SFX - RONCADOR",""]
[329,"",null,null,null,"",null,null,null,null,null,null,null,null,null,null,null,null,null,null,null,{"$f":"IF(ISNUMBER(SEARCH($Z$6,Bairros[[#This Row],[BAIRRO]])),MAX($V$5:V337)+1,0)","v":0},"SFX - SANTA BARBARA DE BAIXO",""]
[330,"",null,null,null,"",null,null,null,null,null,null,null,null,null,null,null,null,null,null,null,{"$f":"IF(ISNUMBER(SEARCH($Z$6,Bairros[[#This Row],[BAIRRO]])),MAX($V$5:V338)+1,0)","v":0},"SFX - SANTA BARBARA DE CIMA",""]
[331,"",null,null,null,"",null,null,null,null,null,null,null,null,null,null,null,null,null,null,null,{"$f":"IF(ISNUMBER(SEARCH($Z$6,Bairros[[#This Row],[BAIRRO]])),MAX($V$5:V339)+1,0)","v":0},"SFX - SANTA CRUZ",""]
[332,"",null,null,null,"",null,null,null,null,null,null,null,null,null,null,null,null,null,null,null,{"$f":"IF(ISNUMBER(SEARCH($Z$6,Bairros[[#This Row],[BAIRRO]])),MAX($V$5:V340)+1,0)","v":0},"SFX - UHF",""]
[333,"",null,null,null,"",null,null,null,null,null,null,null,null,null,null,null,null,null,null,null,{"$f":"IF(ISNUMBER(SEARCH($Z$6,Bairros[[#This Row],[BAIRRO]])),MAX($V$5:V341)+1,0)","v":0},"SFX - VILA NOSSA SENHORA DE FATIMA",""]
[334,"",null,null,null,"",null,null,null,null,null,null,null,null,null,null,null,null,null,null,null,{"$f":"IF(ISNUMBER(SEARCH($Z$6,Bairros[[#This Row],[BAIRRO]])),MAX($V$5:V342)+1,0)","v":0},"SITIO BOM JESUS",""]
[335,"",null,null,null,"",null,null,null,null,null,null,null,null,null,null,null,null,null,null,null,{"$f":"IF(ISNUMBER(SEARCH($Z$6,Bairros[[#This Row],[BAIRRO]])),MAX($V$5:V343)+1,0)","v":0},"SOBRADO",""]
[336,"",null,null,null,"",null,null,null,null,null,null,null,null,null,null,null,null,null,null,null,{"$f":"IF(ISNUMBER(SEARCH($Z$6,Bairros[[#This Row],[BAIRRO]])),MAX($V$5:V344)+1,0)","v":0},"SUNSET PARK",""]
[337,"",null,null,null,"",null,null,null,null,null,null,null,null,null,null,null,null,null,null,null,{"$f":"IF(ISNUMBER(SEARCH($Z$6,Bairros[[#This Row],[BAIRRO]])),MAX($V$5:V345)+1,0)","v":0},"TAQUARI ",""]
[338,"",null,null,null,"",null,null,null,null,null,null,null,null,null,null,null,null,null,null,null,{"$f":"IF(ISNUMBER(SEARCH($Z$6,Bairros[[#This Row],[BAIRRO]])),MAX($V$5:V346)+1,0)","v":0},"TERRA BRASILIS",""]
[339,"",null,null,null,"",null,null,null,null,null,null,null,null,null,null,null,null,null,null,null,{"$f":"IF(ISNUMBER(SEARCH($Z$6,Bairros[[#This Row],[BAIRRO]])),MAX($V$5:V347)+1,0)","v":0},"TERRA NOVA (EUGENIO DE MELO)",""]
[340,"",null,null,null,"",null,null,null,null,null,null,null,null,null,null,null,null,null,null,null,{"$f":"IF(ISNUMBER(SEARCH($Z$6,Bairros[[#This Row],[BAIRRO]])),MAX($V$5:V348)+1,0)","v":0},"TOM JOBIM",""]
[341,"",null,null,null,"",null,null,null,null,null,null,null,null,null,null,null,null,null,null,null,{"$f":"IF(ISNUMBER(SEARCH($Z$6,Bairros[[#This Row],[BAIRRO]])),MAX($V$5:V349)+1,0)","v":0},"TORRAO DE OURO (PARQUE INTERLAGOS)",""]
[342,"",null,null,null,"",null,null,null,null,null,null,null,null,null,null,null,null,null,null,null,{"$f":"IF(ISNUMBER(SEARCH($Z$6,Bairros[[#This Row],[BAIRRO]])),MAX($V$5:V350)+1,0)","v":0},"TRINTA E UM DE MARCO",""]
[343,"",null,null,null,"",null,null,null,null,null,null,null,null,null,null,null,null,null,null,null,{"$f":"IF(ISNUMBER(SEARCH($Z$6,Bairros[[#This Row],[BAIRRO]])),MAX($V$5:V351)+1,0)","v":0},"TURVO",""]
[344,"",null,null,null,"",null,null,null,null,null,null,null,null,null,null,null,null,null,null,null,{"$f":"IF(ISNUMBER(SEARCH($Z$6,Bairros[[#This Row],[BAIRRO]])),MAX($V$5:V352)+1,0)","v":0},"URBANOVA I",""]
[345,"",null,null,null,"",null,null,null,null,null,null,null,null,null,null,null,null,null,null,null,{"$f":"IF(ISNUMBER(SEARCH($Z$6,Bairros[[#This Row],[BAIRRO]])),MAX($V$5:V353)+1,0)","v":0},"URBANOVA II",""]
[346,"",null,null,null,"",null,null,null,null,null,null,null,null,null,null,null,null,null,null,null,{"$f":"IF(ISNUMBER(SEARCH($Z$6,Bairros[[#This Row],[BAIRRO]])),MAX($V$5:V354)+1,0)","v":0},"URBANOVA III",""]
[347,"",null,null,null,"",null,null,null,null,null,null,null,null,null,null,null,null,null,null,null,{"$f":"IF(ISNUMBER(SEARCH($Z$6,Bairros[[#This Row],[BAIRRO]])),MAX($V$5:V355)+1,0)","v":0},"URBANOVA IV",""]
[348,"",null,null,null,"",null,null,null,null,null,null,null,null,null,null,null,null,null,null,null,{"$f":"IF(ISNUMBER(SEARCH($Z$6,Bairros[[#This Row],[BAIRRO]])),MAX($V$5:V356)+1,0)","v":0},"URBANOVA V",""]
[349,"",null,null,null,"",null,null,null,null,null,null,null,null,null,null,null,null,null,null,null,{"$f":"IF(ISNUMBER(SEARCH($Z$6,Bairros[[#This Row],[BAIRRO]])),MAX($V$5:V357)+1,0)","v":0},"URBANOVA VI",""]
[350,"",null,null,null,"",null,null,null,null,null,null,null,null,null,null,null,null,null,null,null,{"$f":"IF(ISNUMBER(SEARCH($Z$6,Bairros[[#This Row],[BAIRRO]])),MAX($V$5:V358)+1,0)","v":0},"URBANOVA VII",""]
[351,"",null,null,null,"",null,null,null,null,null,null,null,null,null,null,null,null,null,null,null,{"$f":"IF(ISNUMBER(SEARCH($Z$6,Bairros[[#This Row],[BAIRRO]])),MAX($V$5:V359)+1,0)","v":0},"VARGEM GRANDE",""]
[352,"",null,null,null,"",null,null,null,null,null,null,null,null,null,null,null,null,null,null,null,{"$f":"IF(ISNUMBER(SEARCH($Z$6,Bairros[[#This Row],[BAIRRO]])),MAX($V$5:V360)+1,0)","v":0},"VERANEIO TORRAO DE OURO",""]
[353,"",null,null,null,"",null,null,null,null,null,null,null,null,null,null,null,null,null,null,null,{"$f":"IF(ISNUMBER(SEARCH($Z$6,Bairros[[#This Row],[BAIRRO]])),MAX($V$5:V361)+1,0)","v":0},"VERTENTES DO JAGUARI",""]
[354,"",null,null,null,"",null,null,null,null,null,null,null,null,null,null,null,null,null,null,null,{"$f":"IF(ISNUMBER(SEARCH($Z$6,Bairros[[#This Row],[BAIRRO]])),MAX($V$5:V362)+1,0)","v":0},"VILA ABEL",""]
[355,"",null,null,null,"",null,null,null,null,null,null,null,null,null,null,null,null,null,null,null,{"$f":"IF(ISNUMBER(SEARCH($Z$6,Bairros[[#This Row],[BAIRRO]])),MAX($V$5:V363)+1,0)","v":0},"VILA ADRIANA",""]
[356,"",null,null,null,"",null,null,null,null,null,null,null,null,null,null,null,null,null,null,null,{"$f":"IF(ISNUMBER(SEARCH($Z$6,Bairros[[#This Row],[BAIRRO]])),MAX($V$5:V364)+1,0)","v":0},"VILA ADY ANNA",""]
[357,"",null,null,null,"",null,null,null,null,null,null,null,null,null,null,null,null,null,null,null,{"$f":"IF(ISNUMBER(SEARCH($Z$6,Bairros[[#This Row],[BAIRRO]])),MAX($V$5:V365)+1,0)","v":0},"VILA ALEXANDRINA",""]
[358,"",null,null,null,"",null,null,null,null,null,null,null,null,null,null,null,null,null,null,null,{"$f":"IF(ISNUMBER(SEARCH($Z$6,Bairros[[#This Row],[BAIRRO]])),MAX($V$5:V366)+1,0)","v":0},"VILA BANDEIRANTE",""]
[359,"",null,null,null,"",null,null,null,null,null,null,null,null,null,null,null,null,null,null,null,{"$f":"IF(ISNUMBER(SEARCH($Z$6,Bairros[[#This Row],[BAIRRO]])),MAX($V$5:V367)+1,0)","v":0},"VILA BETANIA",""]
[360,"",null,null,null,"",null,null,null,null,null,null,null,null,null,null,null,null,null,null,null,{"$f":"IF(ISNUMBER(SEARCH($Z$6,Bairros[[#This Row],[BAIRRO]])),MAX($V$5:V368)+1,0)","v":0},"VILA CANDIDA",""]
[361,"",null,null,null,"",null,null,null,null,null,null,null,null,null,null,null,null,null,null,null,{"$f":"IF(ISNUMBER(SEARCH($Z$6,Bairros[[#This Row],[BAIRRO]])),MAX($V$5:V369)+1,0)","v":0},"VILA CARDOSO",""]
[362,"",null,null,null,"",null,null,null,null,null,null,null,null,null,null,null,null,null,null,null,{"$f":"IF(ISNUMBER(SEARCH($Z$6,Bairros[[#This Row],[BAIRRO]])),MAX($V$5:V370)+1,0)","v":0},"VILA CESAR",""]
[363,"",null,null,null,"",null,null,null,null,null,null,null,null,null,null,null,null,null,null,null,{"$f":"IF(ISNUMBER(SEARCH($Z$6,Bairros[[#This Row],[BAIRRO]])),MAX($V$5:V371)+1,0)","v":0},"VILA CHIQUINHA",""]
[364,"",null,null,null,"",null,null,null,null,null,null,null,null,null,null,null,null,null,null,null,{"$f":"IF(ISNUMBER(SEARCH($Z$6,Bairros[[#This Row],[BAIRRO]])),MAX($V$5:V372)+1,0)","v":0},"VILA CORINTHIANS",""]
[365,"",null,null,null,"",null,null,null,null,null,null,null,null,null,null,null,null,null,null,null,{"$f":"IF(ISNUMBER(SEARCH($Z$6,Bairros[[#This Row],[BAIRRO]])),MAX($V$5:V373)+1,0)","v":0},"VILA CRISTINA",""]
[366,"",null,null,null,"",null,null,null,null,null,null,null,null,null,null,null,null,null,null,null,{"$f":"IF(ISNUMBER(SEARCH($Z$6,Bairros[[#This Row],[BAIRRO]])),MAX($V$5:V374)+1,0)","v":0},"VILA DAS ACACIAS",""]
[367,"",null,null,null,"",null,null,null,null,null,null,null,null,null,null,null,null,null,null,null,{"$f":"IF(ISNUMBER(SEARCH($Z$6,Bairros[[#This Row],[BAIRRO]])),MAX($V$5:V375)+1,0)","v":0},"VILA DAS FLORES",""]
[368,"",null,null,null,"",null,null,null,null,null,null,null,null,null,null,null,null,null,null,null,{"$f":"IF(ISNUMBER(SEARCH($Z$6,Bairros[[#This Row],[BAIRRO]])),MAX($V$5:V376)+1,0)","v":0},"VILA DIRCE",""]
[369,"",null,null,null,"",null,null,null,null,null,null,null,null,null,null,null,null,null,null,null,{"$f":"IF(ISNUMBER(SEARCH($Z$6,Bairros[[#This Row],[BAIRRO]])),MAX($V$5:V377)+1,0)","v":0},"VILA DO CARMO",""]
[370,"",null,null,null,"",null,null,null,null,null,null,null,null,null,null,null,null,null,null,null,{"$f":"IF(ISNUMBER(SEARCH($Z$6,Bairros[[#This Row],[BAIRRO]])),MAX($V$5:V378)+1,0)","v":0},"VILA DO CARMO - 2ª GLEBA",""]
[371,"",null,null,null,"",null,null,null,null,null,null,null,null,null,null,null,null,null,null,null,{"$f":"IF(ISNUMBER(SEARCH($Z$6,Bairros[[#This Row],[BAIRRO]])),MAX($V$5:V379)+1,0)","v":0},"VILA DONA",""]
[372,"",null,null,null,"",null,null,null,null,null,null,null,null,null,null,null,null,null,null,null,{"$f":"IF(ISNUMBER(SEARCH($Z$6,Bairros[[#This Row],[BAIRRO]])),MAX($V$5:V380)+1,0)","v":0},"VILA EMA",""]
[373,"",null,null,null,"",null,null,null,null,null,null,null,null,null,null,null,null,null,null,null,{"$f":"IF(ISNUMBER(SEARCH($Z$6,Bairros[[#This Row],[BAIRRO]])),MAX($V$5:V381)+1,0)","v":0},"VILA ESMERALDA",""]
[374,"",null,null,null,"",null,null,null,null,null,null,null,null,null,null,null,null,null,null,null,{"$f":"IF(ISNUMBER(SEARCH($Z$6,Bairros[[#This Row],[BAIRRO]])),MAX($V$5:V382)+1,0)","v":0},"VILA ESTER",""]
[375,"",null,null,null,"",null,null,null,null,null,null,null,null,null,null,null,null,null,null,null,{"$f":"IF(ISNUMBER(SEARCH($Z$6,Bairros[[#This Row],[BAIRRO]])),MAX($V$5:V383)+1,0)","v":0},"VILA GUAIANAZES",""]
[376,"",null,null,null,"",null,null,null,null,null,null,null,null,null,null,null,null,null,null,null,{"$f":"IF(ISNUMBER(SEARCH($Z$6,Bairros[[#This Row],[BAIRRO]])),MAX($V$5:V384)+1,0)","v":0},"VILA GUARANI",""]
[377,"",null,null,null,"",null,null,null,null,null,null,null,null,null,null,null,null,null,null,null,{"$f":"IF(ISNUMBER(SEARCH($Z$6,Bairros[[#This Row],[BAIRRO]])),MAX($V$5:V385)+1,0)","v":0},"VILA HIGIENOPOLIS",""]
[378,"",null,null,null,"",null,null,null,null,null,null,null,null,null,null,null,null,null,null,null,{"$f":"IF(ISNUMBER(SEARCH($Z$6,Bairros[[#This Row],[BAIRRO]])),MAX($V$5:V386)+1,0)","v":0},"VILA ICARAI",""]
[379,"",null,null,null,"",null,null,null,null,null,null,null,null,null,null,null,null,null,null,null,{"$f":"IF(ISNUMBER(SEARCH($Z$6,Bairros[[#This Row],[BAIRRO]])),MAX($V$5:V387)+1,0)","v":0},"VILA IGUALDADE",""]
[380,"",null,null,null,"",null,null,null,null,null,null,null,null,null,null,null,null,null,null,null,{"$f":"IF(ISNUMBER(SEARCH($Z$6,Bairros[[#This Row],[BAIRRO]])),MAX($V$5:V388)+1,0)","v":0},"VILA INDUSTRIAL",""]
[381,"",null,null,null,"",null,null,null,null,null,null,null,null,null,null,null,null,null,null,null,{"$f":"IF(ISNUMBER(SEARCH($Z$6,Bairros[[#This Row],[BAIRRO]])),MAX($V$5:V389)+1,0)","v":0},"VILA IPIRANGA",{"$f":"IFERROR(VLOOKUP(ROW(AA389),V390:W837,2,FALSE),\"\")","v":""}]
[382,"",null,null,null,"",null,null,null,null,null,null,null,null,null,null,null,null,null,null,null,{"$f":"IF(ISNUMBER(SEARCH($Z$6,Bairros[[#This Row],[BAIRRO]])),MAX($V$5:V390)+1,0)","v":0},"VILA JACY",""]
[383,"",null,null,null,"",null,null,null,null,null,null,null,null,null,null,null,null,null,null,null,{"$f":"IF(ISNUMBER(SEARCH($Z$6,Bairros[[#This Row],[BAIRRO]])),MAX($V$5:V391)+1,0)","v":0},"VILA LEILA I ",""]
[384,"",null,null,null,"",null,null,null,null,null,null,null,null,null,null,null,null,null,null,null,{"$f":"IF(ISNUMBER(SEARCH($Z$6,Bairros[[#This Row],[BAIRRO]])),MAX($V$5:V392)+1,0)","v":0},"VILA LEILA II",""]
[385,"",null,null,null,"",null,null,null,null,null,null,null,null,null,null,null,null,null,null,null,{"$f":"IF(ISNUMBER(SEARCH($Z$6,Bairros[[#This Row],[BAIRRO]])),MAX($V$5:V393)+1,0)","v":0},"VILA LEONIDIA",""]
[386,{"$f":"IF($I$6<>\"\",$I$6,\"\")","v":""},null,null,null,{"$f":"IF(E395=\"\",\"\",INT((NOW()-E395)/365.25))","v":""},null,null,null,null,null,null,null,null,null,null,null,null,null,null,null,{"$f":"IF(ISNUMBER(SEARCH($Z$6,Bairros[[#This Row],[BAIRRO]])),MAX($V$5:V394)+1,0)","v":0},"VILA LETONIA",""]
[387,"",null,null,null,"",null,null,null,null,null,null,null,null,null,null,null,null,null,null,null,{"$f":"IF(ISNUMBER(SEARCH($Z$6,Bairros[[#This Row],[BAIRRO]])),MAX($V$5:V395)+1,0)","v":0},"VILA LUCHETTI",""]
[388,"",null,null,null,"",null,null,null,null,null,null,null,null,null,null,null,null,null,null,null,{"$f":"IF(ISNUMBER(SEARCH($Z$6,Bairros[[#This Row],[BAIRRO]])),MAX($V$5:V396)+1,0)","v":0},"VILA LUCIA",""]
[389,"",null,null,null,"",null,null,null,null,null,null,null,null,null,null,null,null,null,null,null,{"$f":"IF(ISNUMBER(SEARCH($Z$6,Bairros[[#This Row],[BAIRRO]])),MAX($V$5:V397)+1,0)","v":0},"VILA LUIZA",""]
[390,"",null,null,null,"",null,null,null,null,null,null,null,null,null,null,null,null,null,null,null,{"$f":"IF(ISNUMBER(SEARCH($Z$6,Bairros[[#This Row],[BAIRRO]])),MAX($V$5:V398)+1,0)","v":0},"VILA MACHADO",""]
[391,"",null,null,null,"",null,null,null,null,null,null,null,null,null,null,null,null,null,null,null,{"$f":"IF(ISNUMBER(SEARCH($Z$6,Bairros[[#This Row],[BAIRRO]])),MAX($V$5:V399)+1,0)","v":0},"VILA MARIA",""]
[392,"",null,null,null,"",null,null,null,null,null,null,null,null,null,null,null,null,null,null,null,{"$f":"IF(ISNUMBER(SEARCH($Z$6,Bairros[[#This Row],[BAIRRO]])),MAX($V$5:V400)+1,0)","v":0},"VILA MASCARENHAZ FERRAZ",""]
[393,"",null,null,null,"",null,null,null,null,null,null,null,null,null,null,null,null,null,null,null,{"$f":"IF(ISNUMBER(SEARCH($Z$6,Bairros[[#This Row],[BAIRRO]])),MAX($V$5:V401)+1,0)","v":0},"VILA MATILDE I",""]
[394,"",null,null,null,"",null,null,null,null,null,null,null,null,null,null,null,null,null,null,null,{"$f":"IF(ISNUMBER(SEARCH($Z$6,Bairros[[#This Row],[BAIRRO]])),MAX($V$5:V402)+1,0)","v":0},"VILA MATILDE II",""]
[395,"",null,null,null,"",null,null,null,null,null,null,null,null,null,null,null,null,null,null,null,{"$f":"IF(ISNUMBER(SEARCH($Z$6,Bairros[[#This Row],[BAIRRO]])),MAX($V$5:V403)+1,0)","v":0},"VILA MONTE ALEGRE",""]
[396,"",null,null,null,"",null,null,null,null,null,null,null,null,null,null,null,null,null,null,null,{"$f":"IF(ISNUMBER(SEARCH($Z$6,Bairros[[#This Row],[BAIRRO]])),MAX($V$5:V404)+1,0)","v":0},"VILA MONTEREY",""]
[397,"",null,null,null,"",null,null,null,null,null,null,null,null,null,null,null,null,null,null,null,{"$f":"IF(ISNUMBER(SEARCH($Z$6,Bairros[[#This Row],[BAIRRO]])),MAX($V$5:V405)+1,0)","v":0},"VILA NAIR",""]
[398,"",null,null,null,"",null,null,null,null,null,null,null,null,null,null,null,null,null,null,null,{"$f":"IF(ISNUMBER(SEARCH($Z$6,Bairros[[#This Row],[BAIRRO]])),MAX($V$5:V406)+1,0)","v":0},"VILA NOSSA SENHORA DAS GRACAS",""]
[399,"",null,null,null,"",null,null,null,null,null,null,null,null,null,null,null,null,null,null,null,{"$f":"IF(ISNUMBER(SEARCH($Z$6,Bairros[[#This Row],[BAIRRO]])),MAX($V$5:V407)+1,0)","v":0},"VILA NOVA CONCEICAO",""]
[400,"",null,null,null,"",null,null,null,null,null,null,null,null,null,null,null,null,null,null,null,{"$f":"IF(ISNUMBER(SEARCH($Z$6,Bairros[[#This Row],[BAIRRO]])),MAX($V$5:V408)+1,0)","v":0},"VILA NOVA CRISTINA",""]
[401,"",null,null,null,"",null,null,null,null,null,null,null,null,null,null,null,null,null,null,null,{"$f":"IF(ISNUMBER(SEARCH($Z$6,Bairros[[#This Row],[BAIRRO]])),MAX($V$5:V409)+1,0)","v":0},"VILA NOVA GUARANI",""]
[402,"",null,null,null,"",null,null,null,null,null,null,null,null,null,null,null,null,null,null,null,{"$f":"IF(ISNUMBER(SEARCH($Z$6,Bairros[[#This Row],[BAIRRO]])),MAX($V$5:V410)+1,0)","v":0},"VILA NOVA PAULICEIA",""]
[403,"",null,null,null,"",null,null,null,null,null,null,null,null,null,null,null,null,null,null,null,{"$f":"IF(ISNUMBER(SEARCH($Z$6,Bairros[[#This Row],[BAIRRO]])),MAX($V$5:V411)+1,0)","v":0},"VILA NOVA SAO JOSE",""]
[404,"",null,null,null,"",null,null,null,null,null,null,null,null,null,null,null,null,null,null,null,{"$f":"IF(ISNUMBER(SEARCH($Z$6,Bairros[[#This Row],[BAIRRO]])),MAX($V$5:V412)+1,0)","v":0},"VILA NOVE DE JULHO",""]
[405,"",null,null,null,"",null,null,null,null,null,null,null,null,null,null,null,null,null,null,null,{"$f":"IF(ISNUMBER(SEARCH($Z$6,Bairros[[#This Row],[BAIRRO]])),MAX($V$5:V413)+1,0)","v":0},"VILA PAGANINI",""]
[406,"",null,null,null,"",null,null,null,null,null,null,null,null,null,null,null,null,null,null,null,{"$f":"IF(ISNUMBER(SEARCH($Z$6,Bairros[[#This Row],[BAIRRO]])),MAX($V$5:V414)+1,0)","v":0},"VILA PAIVA",""]
[407,"",null,null,null,"",null,null,null,null,null,null,null,null,null,null,null,null,null,null,null,{"$f":"IF(ISNUMBER(SEARCH($Z$6,Bairros[[#This Row],[BAIRRO]])),MAX($V$5:V415)+1,0)","v":0},"VILA PATRICIA",""]
[408,"",null,null,null,"",null,null,null,null,null,null,null,null,null,null,null,null,null,null,null,{"$f":"IF(ISNUMBER(SEARCH($Z$6,Bairros[[#This Row],[BAIRRO]])),MAX($V$5:V416)+1,0)","v":0},"VILA PAULO SETUBAL",""]
[409,"",null,null,null,"",null,null,null,null,null,null,null,null,null,null,null,null,null,null,null,{"$f":"IF(ISNUMBER(SEARCH($Z$6,Bairros[[#This Row],[BAIRRO]])),MAX($V$5:V417)+1,0)","v":0},"VILA PIRATININGA",""]
[410,"",null,null,null,"",null,null,null,null,null,null,null,null,null,null,null,null,null,null,null,{"$f":"IF(ISNUMBER(SEARCH($Z$6,Bairros[[#This Row],[BAIRRO]])),MAX($V$5:V418)+1,0)","v":0},"VILA PROGRESSO ",""]
[411,"",null,null,null,"",null,null,null,null,null,null,null,null,null,null,null,null,null,null,null,{"$f":"IF(ISNUMBER(SEARCH($Z$6,Bairros[[#This Row],[BAIRRO]])),MAX($V$5:V419)+1,0)","v":0},"VILA RANGEL",""]
[412,"",null,null,null,"",null,null,null,null,null,null,null,null,null,null,null,null,null,null,null,{"$f":"IF(ISNUMBER(SEARCH($Z$6,Bairros[[#This Row],[BAIRRO]])),MAX($V$5:V420)+1,0)","v":0},"VILA RHODIA",""]
[413,"",null,null,null,"",null,null,null,null,null,null,null,null,null,null,null,null,null,null,null,{"$f":"IF(ISNUMBER(SEARCH($Z$6,Bairros[[#This Row],[BAIRRO]])),MAX($V$5:V421)+1,0)","v":0},"VILA RICA",""]
[414,"",null,null,null,"",null,null,null,null,null,null,null,null,null,null,null,null,null,null,null,{"$f":"IF(ISNUMBER(SEARCH($Z$6,Bairros[[#This Row],[BAIRRO]])),MAX($V$5:V422)+1,0)","v":0},"VILA ROSSI",""]
[415,"",null,null,null,"",null,null,null,null,null,null,null,null,null,null,null,null,null,null,null,{"$f":"IF(ISNUMBER(SEARCH($Z$6,Bairros[[#This Row],[BAIRRO]])),MAX($V$5:V423)+1,0)","v":0},"VILA RUBY",""]
[416,"",null,null,null,"",null,null,null,null,null,null,null,null,null,null,null,null,null,null,null,{"$f":"IF(ISNUMBER(SEARCH($Z$6,Bairros[[#This Row],[BAIRRO]])),MAX($V$5:V424)+1,0)","v":0},"VILA SANCHES",""]
[417,"",null,null,null,"",null,null,null,null,null,null,null,null,null,null,null,null,null,null,null,{"$f":"IF(ISNUMBER(SEARCH($Z$6,Bairros[[#This Row],[BAIRRO]])),MAX($V$5:V425)+1,0)","v":0},"VILA SANTA HELENA",""]
[418,"",null,null,null,"",null,null,null,null,null,null,null,null,null,null,null,null,null,null,null,{"$f":"IF(ISNUMBER(SEARCH($Z$6,Bairros[[#This Row],[BAIRRO]])),MAX($V$5:V426)+1,0)","v":0},"VILA SANTA LUZIA",""]
[419,"",null,null,null,"",null,null,null,null,null,null,null,null,null,null,null,null,null,null,null,{"$f":"IF(ISNUMBER(SEARCH($Z$6,Bairros[[#This Row],[BAIRRO]])),MAX($V$5:V427)+1,0)","v":0},"VILA SANTA MATILDE",""]
[420,"",null,null,null,"",null,null,null,null,null,null,null,null,null,null,null,null,null,null,null,{"$f":"IF(ISNUMBER(SEARCH($Z$6,Bairros[[#This Row],[BAIRRO]])),MAX($V$5:V428)+1,0)","v":0},"VILA SANTA RITA",""]
[421,"",null,null,null,"",null,null,null,null,null,null,null,null,null,null,null,null,null,null,null,{"$f":"IF(ISNUMBER(SEARCH($Z$6,Bairros[[#This Row],[BAIRRO]])),MAX($V$5:V429)+1,0)","v":0},"VILA SANTOS",""]
[422,"",null,null,null,"",null,null,null,null,null,null,null,null,null,null,null,null,null,null,null,{"$f":"IF(ISNUMBER(SEARCH($Z$6,Bairros[[#This Row],[BAIRRO]])),MAX($V$5:V430)+1,0)","v":0},"VILA SAO BENEDITO",""]
[423,"",null,null,null,"",null,null,null,null,null,null,null,null,null,null,null,null,null,null,null,{"$f":"IF(ISNUMBER(SEARCH($Z$6,Bairros[[#This Row],[BAIRRO]])),MAX($V$5:V431)+1,0)","v":0},"VILA SAO BENTO",""]
[424,"",null,null,null,"",null,null,null,null,null,null,null,null,null,null,null,null,null,null,null,{"$f":"IF(ISNUMBER(SEARCH($Z$6,Bairros[[#This Row],[BAIRRO]])),MAX($V$5:V432)+1,0)","v":0},"VILA SAO GERALDO",""]
[425,"",null,null,null,"",null,null,null,null,null,null,null,null,null,null,null,null,null,null,null,{"$f":"IF(ISNUMBER(SEARCH($Z$6,Bairros[[#This Row],[BAIRRO]])),MAX($V$5:V433)+1,0)","v":0},"VILA SAO PAULO",""]
[426,"",null,null,null,"",null,null,null,null,null,null,null,null,null,null,null,null,null,null,null,{"$f":"IF(ISNUMBER(SEARCH($Z$6,Bairros[[#This Row],[BAIRRO]])),MAX($V$5:V434)+1,0)","v":0},"VILA SAO PEDRO",""]
[427,"",null,null,null,"",null,null,null,null,null,null,null,null,null,null,null,null,null,null,null,{"$f":"IF(ISNUMBER(SEARCH($Z$6,Bairros[[#This Row],[BAIRRO]])),MAX($V$5:V435)+1,0)","v":0},"VILA SIMONE",""]
[428,"",null,null,null,"",null,null,null,null,null,null,null,null,null,null,null,null,null,null,null,{"$f":"IF(ISNUMBER(SEARCH($Z$6,Bairros[[#This Row],[BAIRRO]])),MAX($V$5:V436)+1,0)","v":0},"VILA SINHA",""]
[429,"",null,null,null,"",null,null,null,null,null,null,null,null,null,null,null,null,null,null,null,{"$f":"IF(ISNUMBER(SEARCH($Z$6,Bairros[[#This Row],[BAIRRO]])),MAX($V$5:V437)+1,0)","v":0},"VILA STRAUSS",""]
[430,"",null,null,null,"",null,null,null,null,null,null,null,null,null,null,null,null,null,null,null,{"$f":"IF(ISNUMBER(SEARCH($Z$6,Bairros[[#This Row],[BAIRRO]])),MAX($V$5:V438)+1,0)","v":0},"VILA TATETUBA",""]
[431,"",null,null,null,"",null,null,null,null,null,null,null,null,null,null,null,null,null,null,null,{"$f":"IF(ISNUMBER(SEARCH($Z$6,Bairros[[#This Row],[BAIRRO]])),MAX($V$5:V439)+1,0)","v":0},"VILA TEREZINHA",""]
[432,"",null,null,null,"",null,null,null,null,null,null,null,null,null,null,null,null,null,null,null,{"$f":"IF(ISNUMBER(SEARCH($Z$6,Bairros[[#This Row],[BAIRRO]])),MAX($V$5:V440)+1,0)","v":0},"VILA TESOURO",""]
[433,"",null,null,null,"",null,null,null,null,null,null,null,null,null,null,null,null,null,null,null,{"$f":"IF(ISNUMBER(SEARCH($Z$6,Bairros[[#This Row],[BAIRRO]])),MAX($V$5:V441)+1,0)","v":0},"VILA TUPI",""]
[434,"",null,null,null,"",null,null,null,null,null,null,null,null,null,null,null,null,null,null,null,{"$f":"IF(ISNUMBER(SEARCH($Z$6,Bairros[[#This Row],[BAIRRO]])),MAX($V$5:V442)+1,0)","v":0},"VILA UNIDOS",""]
[435,"",null,null,null,"",null,null,null,null,null,null,null,null,null,null,null,null,null,null,null,{"$f":"IF(ISNUMBER(SEARCH($Z$6,Bairros[[#This Row],[BAIRRO]])),MAX($V$5:V443)+1,0)","v":0},"VILA VENEZIANI",""]
[436,"",null,null,null,"",null,null,null,null,null,null,null,null,null,null,null,null,null,null,null,{"$f":"IF(ISNUMBER(SEARCH($Z$6,Bairros[[#This Row],[BAIRRO]])),MAX($V$5:V444)+1,0)","v":0},"VILA VIADUTO",""]
[437,"",null,null,null,"",null,null,null,null,null,null,null,null,null,null,null,null,null,null,null,{"$f":"IF(ISNUMBER(SEARCH($Z$6,Bairros[[#This Row],[BAIRRO]])),MAX($V$5:V445)+1,0)","v":0},"VILA ZELFA",""]
[438,"",null,null,null,"",null,null,null,null,null,null,null,null,null,null,null,null,null,null,null,{"$f":"IF(ISNUMBER(SEARCH($Z$6,Bairros[[#This Row],[BAIRRO]])),MAX($V$5:V446)+1,0)","v":0},"VILA ZIZINHA",""]
[439,"",null,null,null,"",null,null,null,null,null,null,null,null,null,null,null,null,null,null,null,{"$f":"IF(ISNUMBER(SEARCH($Z$6,Bairros[[#This Row],[BAIRRO]])),MAX($V$5:V447)+1,0)","v":0},"VILLAGE ALPINO",""]
[440,"",null,null,null,"",null,null,null,null,null,null,null,null,null,null,null,null,null,null,null,{"$f":"IF(ISNUMBER(SEARCH($Z$6,Bairros[[#This Row],[BAIRRO]])),MAX($V$5:V448)+1,0)","v":0}]
[441,"",null,null,null,"",null,null,null,null,null,null,null,null,null,null,null,null,null,null,null,{"$f":"IF(ISNUMBER(SEARCH($Z$6,Bairros[[#This Row],[BAIRRO]])),MAX($V$5:V449)+1,0)","v":0}]
[442,"",null,null,null,"",null,null,null,null,null,null,null,null,null,null,null,null,null,null,null,{"$f":"IF(ISNUMBER(SEARCH($Z$6,Bairros[[#This Row],[BAIRRO]])),MAX($V$5:V450)+1,0)","v":0}]
[443,"",null,null,null,"",null,null,null,null,null,null,null,null,null,null,null,null,null,null,null,{"$f":"IF(ISNUMBER(SEARCH($Z$6,Bairros[[#This Row],[BAIRRO]])),MAX($V$5:V451)+1,0)","v":0}]
[444,"",null,null,null,"",null,null,null,null,null,null,null,null,null,null,null,null,null,null,null,{"$f":"IF(ISNUMBER(SEARCH($Z$6,Bairros[[#This Row],[BAIRRO]])),MAX($V$5:V452)+1,0)","v":0}]
[445,"",null,null,null,""]
[446,"",null,null,null,""]
[447,"",null,null,null,""]
[448,"",null,null,null,""]
[449,"",null,null,null,""]
[450,{"$f":"IF($I$6<>\"\",$I$6,\"\")","v":""},null,null,null,{"$f":"IF(E459=\"\",\"\",INT((NOW()-E459)/365.25))","v":""}]
[451,"",null,null,null,""]
[452,"",null,null,null,""]
[453,"",null,null,null,""]
[454,"",null,null,null,""]
[455,"",null,null,null,""]
[456,"",null,null,null,""]
[457,"",null,null,null,""]
[458,"",null,null,null,""]
[459,"",null,null,null,""]
[460,"",null,null,null,""]
[461,"",null,null,null,""]
[462,"",null,null,null,""]
[463,"",null,null,null,""]
[464,"",null,null,null,""]
[465,"",null,null,null,""]
[466,"",null,null,null,""]
[467,"",null,null,null,""]
[468,"",null,null,null,""]
[469,"",null,null,null,""]
[470,"",null,null,null,""]
[471,"",null,null,null,""]
[472,"",null,null,null,""]
[473,"",null,null,null,""]
[474,"",null,null,null,""]
[475,"",null,null,null,""]
[476,"",null,null,null,""]
[477,"",null,null,null,""]
[478,"",null,null,null,""]
[479,"",null,null,null,""]
[480,"",null,null,null,""]
[481,"",null,null,null,""]
[482,"",null,null,null,""]
[483,"",null,null,null,""]
[484,"",null,null,null,""]
[485,"",null,null,null,""]
[486,"",null,null,null,""]
[487,"",null,null,null,""]
[488,"",null,null,null,""]
[489,"",null,null,null,""]
[490,"",null,null,null,""]
[491,"",null,null,null,""]
[492,"",null,null,null,""]
[493,"",null,null,null,""]
[494,"",null,null,null,""]
[495,"",null,null,null,""]
[496,"",null,null,null,""]
[497,"",null,null,null,""]
[498,"",null,null,null,""]
[499,"",null,null,null,""]
[500,"",null,null,null,""]

{"sheet":"DADOS","index":2,"n_rows":474,"n_cols":17,"rows_kept":474,"cut":false,"hidden":true,"merged":[]}
["PARA CALCULAR IDADE",null,"REDE DE ENSINO",null,"ESCOLAS ESTADUAIS",null,"ESCOLAS MUNICIPAIS",null,"ESCOLAS FILANTRÓPICAS",null,"ANO/SÉRIE",null,"TURMA",null,"BAIRRO",null,"BARREIRAS"]
[{"$f":"TODAY()","v":"2018-11-27"},null,"ESTADUAL",null,"EE ADÉLIA CHUCRI NEME",null,"EMEF ÁLVARO GONÇALVES",null,"EEIEF MADRE TEREZA",null,"1º -EF",null,"A",null,"AGUA SOCA",null,"A) RODOVIAS E FERROVIAS SEM PASSARELAS OU FAIXA DE TRAVESSIA SEM SEMAFORO"]
[null,null,"MUNICIPAL",null,"EE ALCEU MAYNARD ARAÚJO",null,"EMEF ANA BERLING MACEDO",null,"BEM TI VI",null,"2º -EF",null,"B",null,"AGUAS DA PRATA",null,"B) RIOS, LAGOS, LAGOAS, BREJOS, RIBEIROES, RIACHOS, BRACOS DE MAR SEM PONTES OU PASSARELAS"]
[null,null,"FILANTRÓPICA",null,"EE AMINTAS ROCHA BRITO",null,"EMEF ANTÔNIO PALMA SOBRINHO",null,"INTEGRA",null,"3º -EF",null,"C",null,"AGUAS DE CANINDU I",null,"C) TRILHAS EM MATAS, SERRAS, MORROS OU LOCAIS DESERTOS"]
[null,null,null,null,"EE ANA CÂNDIDA DE BARROS MOLINA",null,"EMEF ÁUREA CANTINHO RODRIGUES",null,null,null,"4º -EF",null,"D",null,"AGUAS DE CANINDU II",null,"D) DIVISORIAS FISICAS FIXAS (MUROS OU CERCAS)"]
[null,null,null,null,"EE ANA HERONDINA SOARES SCHYCHOF",null,"EMEF DOM PEDRO DE ALCÂNTARA",null,null,null,"5º -EF",null,"E",null,"ALPHAVILLE",null,"E) LINHAS ELETRIFICADAS"]
[null,null,null,null,"EE ARLETE ELOÍZA FERREIRA TEIXEIRA",null,"EMEF DOSULINA CHENQUE CHAVES DE ANDRADE",null,null,null,"6º -EF",null,"F",null,"ALTOS DA VILA PAIVA",null,"F) VAZADOUROS (LIXOES)"]
[null,null,null,null,"EE ARMANDO D´OLIVEIRA COBRA",null,"EMEF ELIZABETE DE PAULA HONORATO",null,null,null,"7º -EF",null,"G",null,"ALTOS DE SAO JOSE"]
[null,null,null,null,"EE AYR PICANÇO BARBOSA DE ALMEIDA",null,"EMEF ELZA REGINA FERREIRA BEVILACQUA",null,null,null,"8º -EF",null,"H",null,"ALTOS DO BOSQUE"]
[null,null,null,null,"EE BAIRRO DO TURVO",null,"EMEF EMMANUEL ANTONIO DOS SANTOS",null,null,null,"9º -EF",null,"I",null,"ALTOS DO CAETE"]
[null,null,null,null,"EE BENEDITO MATARAZZO",null,"EMEF FLÁVIO BERLING MACEDO ",null,null,null,"1º -EM",null,"J",null,"BAIRRINHO"]
[null,null,null,null,"EE BENGALAR ",null,"EMEF GERALDO DE ALMEIDA",null,null,null,"2º -EM",null,"K",null,"BEIRA RIO"]
[null,null,null,null,"EE BOM SUCESSO ",null,"EMEF HÉLIO AUGUSTO DE SOUZA",null,null,null,"3º -EM",null,"L",null,"BENGALAR"]
[null,null,null,null,"EE CENTRO ESTADUAL DE EDUCAÇÃO SUPLETIVA  - CEEJA",null,"EMEF HÉLIO WALTER BEVILACQUA",null,null,null,"EJA I",null,"M",null,"BICA D'AGUA"]
[null,null,null,null,"EE DAS PERNAMBUCANAS",null,"EMEF HOMERA DA SILVA BRAGA",null,null,null,"EJA II",null,"N",null,"BOM RETIRO"]
[null,null,null,null,"EE DIACONO HAMILTON BONTORIM DE SOUZA",null,"EMEF IGNÊZ SAGULA FOSSÁ",null,null,null,"1º TERMO-EJA",null,null,null,"BOM SUCESSO"]
[null,null,null,null,"EE DINORÁ PEREIRA RAMOS DE BRITO",null,"EMEF ILDETE MENDONÇA BARBOSA",null,null,null,"2º TERMO-EJA",null,null,null,"BOSQUE DOS EUCALIPTOS"]
[null,null,null,null,"EE DIRCE ELIAS",null,"EMEF ILGA PUSPLATAIS",null,null,null,"3º TERMO-EJA",null,null,null,"BOSQUE DOS IPES"]
[null,null,null,null,"EE DOMINGOS DE MACEDO CUSTÓDIO",null,"EMEF JACYRA VIEIRA BARACHO",null,null,null,"4º TERMO-EJA",null,null,null,"BOSQUE IMPERIAL"]
[null,null,null,null,"EE DORIVAL MONTEIRO DE OLIVEIRA",null,"EMEF LEONOR PEREIRA NUNES GALVÃO",null,null,null,"B I",null,null,null,"BRASALPES"]
[null,null,null,null,"EE ÉDERA IRENE PEREIRA DE OLIVEIRA CARDOSO",null,"EMEF LÚCIA PEREIRA RODRIGUES",null,null,null,"B II",null,null,null,"BUQUIRINHA I"]
[null,null,null,null,"EE EDEWALDO FREITAS GAIA SANT´ANA",null,"EMEF LUIZ LEITE",null,null,null,"INF I",null,null,null,"BUQUIRINHA II"]
[null,null,null,null,"EE EDGAR DE MELLO MATTOS DE CASTRO, ENG",null,"EMEF LUZIA LEVINA APARECIDA BORGES",null,null,null,"INF II",null,null,null,"CACHOEIRA DO RONCADOR"]
[null,null,null,null,"EE ELÍDIA TEDESCO DE OLIVEIRA",null,"EMEF MARIA AMÉLIA WAKAMATSU",null,null,null,"PRÉ I",null,null,null,"CAJURU"]
[null,null,null,null,"EE ELMANO FERREIRA VELOSO",null,"EMEF MARIA APARECIDA SANTOS RONCONI",null,null,null,"PRÉ II",null,null,null,"CAMBUCA"]
[null,null,null,null,"EE ESTEVAM FERRI ",null,"EMEF MARIA AUGUSTA MOREIRA DA COSTA",null,null,null,null,null,null,null,"CAMPO DOS ALEMAES"]
[null,null,null,null,"EE EUCLIDES BUENO MIRAGAIA",null,"EMEF MARIA DE MELO",null,null,null,null,null,null,null,"CAMPOS DE SAO JOSE"]
[null,null,null,null,"EE EUNICE CORDEIRO DOS SANTOS RODRIGUES",null,"EMEF MARIA NAZARETH DE MOURA VERONESE",null,null,null,null,null,null,null,"CAPAO GROSSO I"]
[null,null,null,null,"EE FELÍCIO SAVASTANO",null,"EMEF MARIA OFÉLIA VENEZIANI PEDROSA",null,null,null,null,null,null,null,"CAPAO GROSSO II"]
[null,null,null,null,"EE FRANCISCO JOÃO LEME",null,"EMEF MARIANA TEIXEIRA CORNÉLIO",null,null,null,null,null,null,null,"CAPUAVA"]
[null,null,null,null,"EE FRANCISCO LOPES DE AZEVEDO",null,"EMEF MARTHA ABIB CASTANHO",null,null,null,null,null,null,null,"CENTRO"]
[null,null,null,null,"EE FRANCISCO PEREIRA DA SILVA",null,"EMEF MERCEDES CARNEVALLI KLEIN",null,null,null,null,null,null,null,"CENTRO INDUSTRIAL ELDORADO"]
[null,null,null,null,"EE GERALDINA COELHO MONTEIRO",null,"EMEF MERCEDES RACHID EDWARDS",null,null,null,null,null,null,null,"CHACARAS ARAUJO I"]
[null,null,null,null,"EE HENRIQUETA COSTA PORTO",null,"EMEF MOACYR BENEDICTO DE SOUZA",null,null,null,null,null,null,null,"CHACARAS ARAUJO II"]
[null,null,null,null,"EE ILZA IRMA MOELLER COPPIO",null,"EMEF NORMA DE CONTI SIMÃO",null,null,null,null,null,null,null,"CHACARAS BOA ESPERANCA"]
[null,null,null,null,"EE IRACEMA RIBEIRO DE FREITAS",null,"EMEF OTACÍLIA MADUREIRA DE MOURA",null,null,null,null,null,null,null,"CHACARAS BOA VISTA"]
[null,null,null,null,"EE JARDIM REPÚBLICA",null,"EMEF PALMYRA SANT'ANNA",null,null,null,null,null,null,null,"CHACARAS DOS EUCALIPTOS"]
[null,null,null,null,"EE JENI DAVI BACHA",null,"EMEF PINHEIRINHO DOS PALMARES",null,null,null,null,null,null,null,"CHACARAS HAWAI"]
[null,null,null,null,"EE JOÃO CURSINO",null,"EMEF POSSIDÔNIO JOSÉ DE FREITAS",null,null,null,null,null,null,null,"CHACARAS JARDIM SERIMBURA (SATELITE)"]
[null,null,null,null,"EE JOÃO FERREIRA DOS SANTOS",null,"EMEF POSSIDÔNIO SALLES",null,null,null,null,null,null,null,"CHACARAS REUNIDAS"]
[null,null,null,null,"EE JOÃO MOROTTI FILHO",null,"EMEF RIO COMPRIDO",null,null,null,null,null,null,null,"CHACARAS SANTA HELENA"]
[null,null,null,null,"EE JOAQUIM ANDRADE MEIRELLES",null,"EMEF ROSA TOMITA",null,null,null,null,null,null,null,"CHACARAS SAO BENEDITO"]
[null,null,null,null,"EE JOAQUIM DE MOURA CANDELÁRIA",null,"EMEF RUTH NUNES DA TRINDADE",null,null,null,null,null,null,null,"CHACARAS SAO JOSE"]
[null,null,null,null,"EE JORGE BARBOSA MOREIRA",null,"EMEF SEBASTIANA COBRA",null,null,null,null,null,null,null,"CHACARAS TAKITANI"]
[null,null,null,null,"EE JOSÉ ANTONIO COUTINHO CONDINO",null,"EMEF SILVANA MARIA RIBEIRO DE ALMEIDA",null,null,null,null,null,null,null,"CIDADE MORUMBI"]
[null,null,null,null,"EE JOSÉ FREDERICO MARQUES",null,"EMEF SÔNIA MARIA PEREIRA DA SILVA",null,null,null,null,null,null,null,"CIDADE VISTA VERDE"]
[null,null,null,null,"EE JOSÉ MARIOTTO FERREIRA, MAJ AV",null,"EMEF THEREZINHA DO MENINO JESUS SOARES DO NASCIMENTO",null,null,null,null,null,null,null,"COLINAS DO PARATEHY"]
[null,null,null,null,"EE JOSÉ VIEIRA MACEDO",null,"EMEF VERA BABO DE OLIVEIRA",null,null,null,null,null,null,null,"COLINAS DO PARAYBA"]
[null,null,null,null,"EE JÚLIA BERNARDES RODRIGUES",null,"EMEF VERA LÚCIA CARNEVALLI BARRETO",null,null,null,null,null,null,null,"COMUNIDADE SANTA CRUZ"]
[null,null,null,null,"EE JUVENAL MACHADO DE ARAÚJO",null,"EMEF WALDEMAR RAMOS",null,null,null,null,null,null,null,"CONDOMINIO CHACARAS DOS EUCALIPTOS"]
[null,null,null,null,"EE LOURDES MARIA DE CAMARGO",null,"EMEI ANA LÚCIA DE CASTRO MICHELETO",null,null,null,null,null,null,null,"CONDOMINIO RESIDENCIAL ELDORADO"]
[null,null,null,null,"EE MALBA TEREZA FERRAZ CAMPANER",null,"EMEI ÂNGELA DE CASTRO FERNANDES LOPES",null,null,null,null,null,null,null,"CONDOMINIO RESIDENCIAL JK"]
[null,null,null,null,"EE MÁRCIA HELENA BARBOSA LINO",null,"EMEI ARLINDO CAETANO FILHO ",null,null,null,null,null,null,null,"CONDOMINIO RESIDENCIAL TERRINHA"]
[null,null,null,null,"EE MARIA APARECIDA VERÍSSIMO MADUREIRA RAMOS",null,"EMEI ARTUR APARECIDO DA ROSA - R09",null,null,null,null,null,null,null,"CONDOMINIO RESIDENCIAL VILLAGIO FAZENDAO"]
[null,null,null,null,"EE MARIA DOLORES VERÍSSIMO MADUREIRA",null,"EMEI CASSIANO RICARDO",null,null,null,null,null,null,null,"CONJUNTO HABILTACIONAL RONDA"]
[null,null,null,null,"EE MARIA GOMIDE SANTOS DE SOUZA",null,"EMEI CHÁCARAS REUNIDASS ",null,null,null,null,null,null,null,"CONJUNTO HABITACIONAL DOM PEDRO I"]
[null,null,null,null,"EE MARIA LUIZA DE GUIMARÃES MEDEIROS",null,"EMEI CLEANIR SANTOS MALDONADO CAMPOY - R09",null,null,null,null,null,null,null,"CONJUNTO HABITACIONAL DOM PEDRO II"]
[null,null,null,null,"EE MARILDA FERREIRA DE BRITO BARROS PEREIRA",null,"EMEI CREMILDA ALVES DE OLIVEIRA AZEVEDO - R11",null,null,null,null,null,null,null,"CONJUNTO HABITACIONAL ELMANO FERREIRA VELOSO"]
[null,null,null,null,"EE MAURÍCIO ANISSE CURY, DR",null,"EMEI DENISE PRATES FERNANDES ROCHA",null,null,null,null,null,null,null,"CONJUNTO HABITACIONAL INTERVALE"]
[null,null,null,null,"EE MIGUEL NAKED, MAJ",null,"EMEI DOMINGOS DE MACEDO CUSTÓDIO",null,null,null,null,null,null,null,"CONJUNTO HABITACIONAL NOSSO TETO"]
[null,null,null,null,"EE MOABE CURY",null,"EMEI ÉDERA IRENE PEREIRA DE OLIVEIRA CARDOSO ",null,null,null,null,null,null,null,"CONJUNTO HABITACIONAL PAPA JOAO PAULO II"]
[null,null,null,null,"EE NAJLA JAMILE SANTOS MACHADO ARAÚJO",null,"EMEI ELZA FERREIRA RAHAL - R01",null,null,null,null,null,null,null,"CONJUNTO HABITACIONAL PM SAO JUDAS TADEU "]
[null,null,null,null,"EE NELSON DO NASCIMENTO MONTEIRO",null,"EMEI FEBRÔNIO PEREIRA GOMES",null,null,null,null,null,null,null,"CONJUNTO HABITACIONAL SAO JUDAS TADEU "]
[null,null,null,null,"EE NELSON FERREIRA DA SILVA",null,"EMEI IDELENA MENEZES TREFÍLIO DE CARVALHO",null,null,null,null,null,null,null,"CONJUNTO HABITACIONAL TRINTA E UM DE MARCO"]
[null,null,null,null,"EE NILCE CONCEIÇÃO LIMA",null,"EMEI IRACEMA OLIVEIRA DE MELLO - R07",null,null,null,null,null,null,null,"CONJUNTO INTEGRACAO"]
[null,null,null,null,"EE OLÍMPIO CATÃO",null,"EMEI JANE PALUMBO",null,null,null,null,null,null,null,"CONJUNTO RESIDENCIA PLANALTO"]
[null,null,null,null,"EE PEDRO MASCARENHAS, DR",null,"EMEI JARDIM MORUMBI, DO - R10",null,null,null,null,null,null,null,"CONJUNTO RESIDENCIAL CAJURU I"]
[null,null,null,null,"EE PEDRO MAZZA",null,"EMEI JARDIM SANTA EDWIGES",null,null,null,null,null,null,null,"CONJUNTO RESIDENCIAL CAJURU III"]
[null,null,null,null,"EE RONDON, MAL",null,"EMEI JOÃO MARCONDES GUIMARÃES, PADRE",null,null,null,null,null,null,null,"CONJUNTO RESIDENCIAL CIDADE JARDIM"]
[null,null,null,null,"EE RUI RODRIGUES DÓRIA, DR",null,"EMEI JOSÉ ANTERO CURSINO DOS SANTOS - R08 ",null,null,null,null,null,null,null,"CONJUNTO RESIDENCIAL JARDIM SATELITE"]
[null,null,null,null,"EE RUTH COUTINHO SOBREIRO",null,"EMEI JOSÉ MADUREIRA LEBRÃO",null,null,null,null,null,null,null,"CONJUNTO RESIDENCIAL MONTE CASTELO"]
[null,null,null,null,"EE SANT´ANA DO PARAÍBA",null,"EMEI JOSÉ PURCINI",null,null,null,null,null,null,null,"CONJUNTO RESIDENCIAL MORADA DO SOL"]
[null,null,null,null,"EE SÔNIA MARIA ALEXANDRE PEREIRA",null,"EMEI JOSÉ RUBENS FRANCO BONAFÉ, PADRE - R12",null,null,null,null,null,null,null,"CONJUNTO RESIDENCIAL VALE DOS PINHEIROS"]
[null,null,null,null,"EE SUELY ANTUNES DE MELLO",null,"EMEI JOSÉ SODÉRO BITENCOURT",null,null,null,null,null,null,null,"CONUNTO HABITACIONAL VALE DOS PINHEIROS"]
[null,null,null,null,"EE UBIRAJARA BERNA DE CHIARA",null,"EMEI LADIEL BENEDITO DE CARVALHO ",null,null,null,null,null,null,null,"COSTINHA"]
[null,null,null,null,"EE VALMAR LOURENÇO SANTIAGO",null,"EMEI LOURDES DE OLIVEIRA MENDES",null,null,null,null,null,null,null,"DESEMBARGADOR MARTINS PEREIRA"]
[null,null,null,null,"EE WILMA RAGAZZI BOCCARDO",null,"EMEI LÚCIA MARIA DO AMARAL ",null,null,null,null,null,null,null,"EUGENIO DE MELO"]
[null,null,null,null,"EE XENOFONTE STRABÃO DE CASTRO",null,"EMEI LUIZ SUNDFELD - R05",null,null,null,null,null,null,null,"FAZENDA BOM RETIRO"]
[null,null,null,null,"EE YOSHIYA TAKAOKA",null,"EMEI MARIA ALICE PASQUARELLI",null,null,null,null,null,null,null,"FAZENDA HONDA"]
[null,null,null,null,"EE ZILAH FERREIRA VIAGI PASSARELLI DE CAMPOS",null,"EMEI MARIA DA GLÓRIA MARIANO SANTOS",null,null,null,null,null,null,null,"FAZENDA JANUARIA (REGIAO)"]
[null,null,null,null,"EE ZILDA ALTIMIRA SOCI",null,"EMEI MARIA EZEQUIEL SANT'ANNA - R08",null,null,null,null,null,null,null,"FAZENDA MARSON"]
[null,null,null,null,null,null,"EMEI MARIA JOSÉ GUIDO BROGLIATO FREIRE - R10",null,null,null,null,null,null,null,"FAZENDA TAIRA"]
[null,null,null,null,null,null,"EMEI MARILDA APARECIDA MONTEMÓR",null,null,null,null,null,null,null,"FAZENDA TAKANASHI"]
[null,null,null,null,null,null,"EMEI MÁRIO CAMPANER ",null,null,null,null,null,null,null,"FAZENDA TONINHO FERREIRA"]
[null,null,null,null,null,null,"EMEI NORMA LÚCIA RODRIGUES DE ALMEIDA - R05",null,null,null,null,null,null,null,"FAZENDA VILA FRANCA"]
[null,null,null,null,null,null,"EMEI OLGA FRANCO CUSTÓDIO",null,null,null,null,null,null,null,"FLORESTA"]
[null,null,null,null,null,null,"EMEI SANDRA REGINA DE ALMEIDA PAULO ",null,null,null,null,null,null,null,"FREITAS"]
[null,null,null,null,null,null,"EMEI TORATARO TAKITANI",null,null,null,null,null,null,null,"GALO BRANCO"]
[null,null,null,null,null,null,"EMEI VALÉRIA APARECIDA DE ALMEIDA VASCONCELOS",null,null,null,null,null,null,null,"GUIRRA"]
[null,null,null,null,null,null,"EMEI VILA SÃO PEDRO ",null,null,null,null,null,null,null,"JAGUARI"]
[null,null,null,null,null,null,"EMEI ZELI DE TOLEDO DIAS ",null,null,null,null,null,null,null,"JARDIM AEROPORTO"]
[null,null,null,null,null,null,"EMEI ZENAIDE VILALVA DE ARAÚJO ",null,null,null,null,null,null,null,"JARDIM ALTOS DE SANTANA"]
[null,null,null,null,null,null,"EMEI ZILDA COSTA DE OLIVEIRA",null,null,null,null,null,null,null,"JARDIM ALTOS DO ESPLANADA"]
[null,null,null,null,null,null,"NEI ALADIR MAIA RIBEIRO GOMES - R09",null,null,null,null,null,null,null,"JARDIM ALVORADA"]
[null,null,null,null,null,null,"NEI ALTO DA PONTE, DO - R12",null,null,null,null,null,null,null,"JARDIM AMERICA"]
[null,null,null,null,null,null,"NEI ANA ISABEL BARBOSA - R13",null,null,null,null,null,null,null,"JARDIM AMERICANO"]
[null,null,null,null,null,null,"NEI BAIRRO DOS FREITAS - R11",null,null,null,null,null,null,null,"JARDIM ANCHIETA"]
[null,null,null,null,null,null,"NEI DOROTI DA SILVA CUNHA ",null,null,null,null,null,null,null,"JARDIM ANHEMBI"]
[null,null,null,null,null,null,"NEI ELZA MARIA DIAS MENDONÇA - R01",null,null,null,null,null,null,null,"JARDIM APARECIDA"]
[null,null,null,null,null,null,"NEI EUGÊNIO DE MELO - R05",null,null,null,null,null,null,null,"JARDIM APOLO"]
[null,null,null,null,null,null,"NEI JOSÉ PAULINO BICUDO ",null,null,null,null,null,null,null,"JARDIM AQUARIUS"]
[null,null,null,null,null,null,"NEI MARIANITA DE OLIVEIRA PEREIRA SANTOS ",null,null,null,null,null,null,null,"JARDIM AUGUSTA"]
[null,null,null,null,null,null,"NEI OSWALDO COPPIO",null,null,null,null,null,null,null,"JARDIM AZEVEDO"]
[null,null,null,null,null,null,"NEI RIO COMPRIDO, DO - R10",null,null,null,null,null,null,null,"JARDIM BELA VISTA"]
[null,null,null,null,null,null,"NEI SÃO FRANCISCO XAVIER - R13",null,null,null,null,null,null,null,"JARDIM BOA VISTA"]
[null,null,null,null,null,null,"NEI VICENTE SIMIÃO LUZ - R07",null,null,null,null,null,null,null,"JARDIM BRASILIA"]
[null,null,null,null,null,null,"NEI VILA CÉSAR - R11",null,null,null,null,null,null,null,"JARDIM CASSIANO RICARDO"]
[null,null,null,null,null,null,"NEI VILA PAIVA - R13",null,null,null,null,null,null,null,"JARDIM CASTANHEIRAS"]
[null,null,null,null,null,null,"NEI VILA SÃO BENEDITO ",null,null,null,null,null,null,null,"JARDIM CEREJEIRAS"]
[null,null,null,null,null,null,"NEI VILA SÃO BENTO - R07",null,null,null,null,null,null,null,"JARDIM COLINAS"]
[null,null,null,null,null,null,"NEI VILA SÃO GERALDO - R12",null,null,null,null,null,null,null,"JARDIM COLONIAL"]
[null,null,null,null,null,null,"IMI ANJELA MARIA DE SOUZA ALVES",null,null,null,null,null,null,null,"JARDIM COLORADO"]
[null,null,null,null,null,null,"IMI ARMILINDA LOCATELLI DE MACEDO",null,null,null,null,null,null,null,"JARDIM COPACABANA"]
[null,null,null,null,null,null,"IMI BENEDITO CARVALHO DOS SANTOS",null,null,null,null,null,null,null,"JARDIM CRUZEIRO DO SUL"]
[null,null,null,null,null,null,"IMI DIMÉIA MARIA FERREIRA DINIZ ENDO",null,null,null,null,null,null,null,"JARDIM DA GRANJA"]
[null,null,null,null,null,null,"IMI DOM PEDRO DE ALCÂNTARA",null,null,null,null,null,null,null,"JARDIM DAS AZALEIAS"]
[null,null,null,null,null,null,"IMI FERNANDO TAO DE AZEVEDO",null,null,null,null,null,null,null,"JARDIM DAS FLORES"]
[null,null,null,null,null,null,"IMI FLÁVIO LENZI",null,null,null,null,null,null,null,"JARDIM DAS INDUSTRIAS"]
[null,null,null,null,null,null,"IMI HELENA FERREIRA",null,null,null,null,null,null,null,"JARDIM DAS PAINEIRAS I "]
[null,null,null,null,null,null,"IMI HELENA VAZ DE LIMA SOLIVA (LIONS CLUBE CENTRO)",null,null,null,null,null,null,null,"JARDIM DAS PAINEIRAS II"]
[null,null,null,null,null,null,"IMI JESUS DE NAZARÉ",null,null,null,null,null,null,null,"JARDIM DEL REY"]
[null,null,null,null,null,null,"IMI JOANA MATTAR DE OLIVEIRA",null,null,null,null,null,null,null,"JARDIM DIAMANTE"]
[null,null,null,null,null,null,"IMI JOÃO LOPES SIMÕES",null,null,null,null,null,null,null,"JARDIM DO CEU"]
[null,null,null,null,null,null,"IMI MARIA DE LOURDES CONSTANTINO",null,null,null,null,null,null,null,"JARDIM DO GOLFE"]
[null,null,null,null,null,null,"IMI MARILDA FERREIRA DE BRITO BARROS PEREIRA",null,null,null,null,null,null,null,"JARDIM DO LAGO"]
[null,null,null,null,null,null,"IMI MAROCA VENEZIANI",null,null,null,null,null,null,null,"JARDIM DOS BANDEIRANTES"]
[null,null,null,null,null,null,"IMI POUSADA DO VALE",null,null,null,null,null,null,null,"JARDIM DOS COQUEIROS"]
[null,null,null,null,null,null,null,null,null,null,null,null,null,null,"JARDIM EBENEZER"]
[null,null,null,null,null,null,null,null,null,null,null,null,null,null,"JARDIM ESPLANADA I"]
[null,null,null,null,null,null,null,null,null,null,null,null,null,null,"JARDIM ESPLANADA II"]
[null,null,null,null,null,null,null,null,null,null,null,null,null,null,"JARDIM ESTORIL"]
[null,null,null,null,null,null,null,null,null,null,null,null,null,null,"JARDIM FATIMA"]
[null,null,null,null,null,null,null,null,null,null,null,null,null,null,"JARDIM FLORADAS DE SAO JOSE"]
[null,null,null,null,null,null,null,null,null,null,null,null,null,null,"JARDIM FREI LEOPOLDO"]
[null,null,null,null,null,null,null,null,null,null,null,null,null,null,"JARDIM GUIMARAES"]
[null,null,null,null,null,null,null,null,null,null,null,null,null,null,"JARDIM HELENA"]
[null,null,null,null,null,null,null,null,null,null,null,null,null,null,"JARDIM IMPERIAL"]
[null,null,null,null,null,null,null,null,null,null,null,null,null,null,"JARDIM IPE"]
[null,null,null,null,null,null,null,null,null,null,null,null,null,null,"JARDIM IRACEMA"]
[null,null,null,null,null,null,null,null,null,null,null,null,null,null,"JARDIM ISMENIA"]
[null,null,null,null,null,null,null,null,null,null,null,null,null,null,"JARDIM ITAPUA"]
[null,null,null,null,null,null,null,null,null,null,null,null,null,null,"JARDIM JACI"]
[null,null,null,null,null,null,null,null,null,null,null,null,null,null,"JARDIM JULIANA"]
[null,null,null,null,null,null,null,null,null,null,null,null,null,null,"JARDIM JUSSARA"]
[null,null,null,null,null,null,null,null,null,null,null,null,null,null,"JARDIM LIMOEIRO"]
[null,null,null,null,null,null,null,null,null,null,null,null,null,null,"JARDIM MADUREIRA"]
[null,null,null,null,null,null,null,null,null,null,null,null,null,null,"JARDIM MAJESTIC"]
[null,null,null,null,null,null,null,null,null,null,null,null,null,null,"JARDIM MARACANA"]
[null,null,null,null,null,null,null,null,null,null,null,null,null,null,"JARDIM MARGARETH"]
[null,null,null,null,null,null,null,null,null,null,null,null,null,null,"JARDIM MARIANA I "]
[null,null,null,null,null,null,null,null,null,null,null,null,null,null,"JARDIM MARIANA II"]
[null,null,null,null,null,null,null,null,null,null,null,null,null,null,"JARDIM MARINGA"]
[null,null,null,null,null,null,null,null,null,null,null,null,null,null,"JARDIM MARITEIA"]
[null,null,null,null,null,null,null,null,null,null,null,null,null,null,"JARDIM MATARAZZO"]
[null,null,null,null,null,null,null,null,null,null,null,null,null,null,"JARDIM MESQUITA"]
[null,null,null,null,null,null,null,null,null,null,null,null,null,null,"JARDIM MINAS GERAIS"]
[null,null,null,null,null,null,null,null,null,null,null,null,null,null,"JARDIM MOTORAMA"]
[null,null,null,null,null,null,null,null,null,null,null,null,null,null,"JARDIM NOVA AMERICA"]
[null,null,null,null,null,null,null,null,null,null,null,null,null,null,"JARDIM NOVA DETROIT"]
[null,null,null,null,null,null,null,null,null,null,null,null,null,null,"JARDIM NOVA ESPERANCA (BANHADO)"]
[null,null,null,null,null,null,null,null,null,null,null,null,null,null,"JARDIM NOVA EUROPA"]
[null,null,null,null,null,null,null,null,null,null,null,null,null,null,"JARDIM NOVA FLORIDA"]
[null,null,null,null,null,null,null,null,null,null,null,null,null,null,"JARDIM NOVA MICHIGAN I"]
[null,null,null,null,null,null,null,null,null,null,null,null,null,null,"JARDIM NOVA MICHIGAN II"]
[null,null,null,null,null,null,null,null,null,null,null,null,null,null,"JARDIM NOVA REPUBLICA"]
[null,null,null,null,null,null,null,null,null,null,null,null,null,null,"JARDIM OLIMPIA"]
[null,null,null,null,null,null,null,null,null,null,null,null,null,null,"JARDIM ORIENTAL"]
[null,null,null,null,null,null,null,null,null,null,null,null,null,null,"JARDIM ORIENTE"]
[null,null,null,null,null,null,null,null,null,null,null,null,null,null,"JARDIM OSWALDO CRUZ"]
[null,null,null,null,null,null,null,null,null,null,null,null,null,null,"JARDIM OURO PRETO"]
[null,null,null,null,null,null,null,null,null,null,null,null,null,null,"JARDIM PALMEIRAS DE SAO JOSE"]
[null,null,null,null,null,null,null,null,null,null,null,null,null,null,"JARDIM PARAISO DO SOL"]
[null,null,null,null,null,null,null,null,null,null,null,null,null,null,"JARDIM PARARANGABA"]
[null,null,null,null,null,null,null,null,null,null,null,null,null,null,"JARDIM PAULISTA"]
[null,null,null,null,null,null,null,null,null,null,null,null,null,null,"JARDIM PETROPOLIS"]
[null,null,null,null,null,null,null,null,null,null,null,null,null,null,"JARDIM PORTUGAL"]
[null,null,null,null,null,null,null,null,null,null,null,null,null,null,"JARDIM PRIMAVERA I "]
[null,null,null,null,null,null,null,null,null,null,null,null,null,null,"JARDIM PRIMAVERA II"]
[null,null,null,null,null,null,null,null,null,null,null,null,null,null,"JARDIM RENATA"]
[null,null,null,null,null,null,null,null,null,null,null,null,null,null,"JARDIM REPUBLICA"]
[null,null,null,null,null,null,null,null,null,null,null,null,null,null,"JARDIM REPUBLICA NOVA"]
[null,null,null,null,null,null,null,null,null,null,null,null,null,null,"JARDIM SAN MARINO"]
[null,null,null,null,null,null,null,null,null,null,null,null,null,null,"JARDIM SAN RAFAEL"]
[null,null,null,null,null,null,null,null,null,null,null,null,null,null,"JARDIM SANTA ALICE"]
[null,null,null,null,null,null,null,null,null,null,null,null,null,null,"JARDIM SANTA CECILIA I "]
[null,null,null,null,null,null,null,null,null,null,null,null,null,null,"JARDIM SANTA CECILIA II"]
[null,null,null,null,null,null,null,null,null,null,null,null,null,null,"JARDIM SANTA EDWIGES"]
[null,null,null,null,null,null,null,null,null,null,null,null,null,null,"JARDIM SANTA FE"]
[null,null,null,null,null,null,null,null,null,null,null,null,null,null,"JARDIM SANTA HERMINIA"]
[null,null,null,null,null,null,null,null,null,null,null,null,null,null,"JARDIM SANTA INES I"]
[null,null,null,null,null,null,null,null,null,null,null,null,null,null,"JARDIM SANTA INES II"]
[null,null,null,null,null,null,null,null,null,null,null,null,null,null,"JARDIM SANTA INES III"]
[null,null,null,null,null,null,null,null,null,null,null,null,null,null,"JARDIM SANTA JULIA"]
[null,null,null,null,null,null,null,null,null,null,null,null,null,null,"JARDIM SANTA LUCIA"]
[null,null,null,null,null,null,null,null,null,null,null,null,null,null,"JARDIM SANTA LUZIA"]
[null,null,null,null,null,null,null,null,null,null,null,null,null,null,"JARDIM SANTA MATILDE"]
[null,null,null,null,null,null,null,null,null,null,null,null,null,null,"JARDIM SANTA RITA"]
[null,null,null,null,null,null,null,null,null,null,null,null,null,null,"JARDIM SANTA ROSA"]
[null,null,null,null,null,null,null,null,null,null,null,null,null,null,"JARDIM SANTA SOFIA"]
[null,null,null,null,null,null,null,null,null,null,null,null,null,null,"JARDIM SANTAREM"]
[null,null,null,null,null,null,null,null,null,null,null,null,null,null,"JARDIM SANTO ONOFRE"]
[null,null,null,null,null,null,null,null,null,null,null,null,null,null,"JARDIM SAO DIMAS"]
[null,null,null,null,null,null,null,null,null,null,null,null,null,null,"JARDIM SAO JORGE"]
[null,null,null,null,null,null,null,null,null,null,null,null,null,null,"JARDIM SAO JOSE (CENTRO)"]
[null,null,null,null,null,null,null,null,null,null,null,null,null,null,"JARDIM SAO JOSE I"]
[null,null,null,null,null,null,null,null,null,null,null,null,null,null,"JARDIM SAO JOSE II"]
[null,null,null,null,null,null,null,null,null,null,null,null,null,null,"JARDIM SAO JUDAS TADEU"]
[null,null,null,null,null,null,null,null,null,null,null,null,null,null,"JARDIM SAO VICENTE"]
[null,null,null,null,null,null,null,null,null,null,null,null,null,null,"JARDIM SATELITE"]
[null,null,null,null,null,null,null,null,null,null,null,null,null,null,"JARDIM SOUTO"]
[null,null,null,null,null,null,null,null,null,null,null,null,null,null,"JARDIM TELESPARK"]
[null,null,null,null,null,null,null,null,null,null,null,null,null,null,"JARDIM TERRAS DO SUL "]
[null,null,null,null,null,null,null,null,null,null,null,null,null,null,"JARDIM TOPAZIO"]
[null,null,null,null,null,null,null,null,null,null,null,null,null,null,"JARDIM TRES JOSE"]
[null,null,null,null,null,null,null,null,null,null,null,null,null,null,"JARDIM UIRA"]
[null,null,null,null,null,null,null,null,null,null,null,null,null,null,"JARDIM UNIVERSO"]
[null,null,null,null,null,null,null,null,null,null,null,null,null,null,"JARDIM VALE DO SOL"]
[null,null,null,null,null,null,null,null,null,null,null,null,null,null,"JARDIM VALE PARAISO"]
[null,null,null,null,null,null,null,null,null,null,null,null,null,null,"JARDIM VALPARAIBA"]
[null,null,null,null,null,null,null,null,null,null,null,null,null,null,"JARDIM VENEZA"]
[null,null,null,null,null,null,null,null,null,null,null,null,null,null,"JARDM PARAISO"]
[null,null,null,null,null,null,null,null,null,null,null,null,null,null,"JARDM ROSARIO"]
[null,null,null,null,null,null,null,null,null,null,null,null,null,null,"JARDM SANTA MADALENA"]
[null,null,null,null,null,null,null,null,null,null,null,null,null,null,"JARDM SAO LEOPOLDO"]
[null,null,null,null,null,null,null,null,null,null,null,null,null,null,"JARIDM SUL"]
[null,null,null,null,null,null,null,null,null,null,null,null,null,null,"JOQUEI CLUBE (URBANOVA)"]
[null,null,null,null,null,null,null,null,null,null,null,null,null,null,"LAVAPES"]
[null,null,null,null,null,null,null,null,null,null,null,null,null,null,"LOTEAMENTO ESPELHO D'AGUA"]
[null,null,null,null,null,null,null,null,null,null,null,null,null,null,"LOTEAMENTO RESERVA DA BARRA"]
[null,null,null,null,null,null,null,null,null,null,null,null,null,null,"LOTEAMENTO RESERVA DA FIGUEIRA"]
[null,null,null,null,null,null,null,null,null,null,null,null,null,null,"LOTEAMENTO SANTA RITA (BOM RETIRO)"]
[null,null,null,null,null,null,null,null,null,null,null,null,null,null,"MARTINS GUIMARAES"]
[null,null,null,null,null,null,null,null,null,null,null,null,null,null,"MATO DENTRO"]
[null,null,null,null,null,null,null,null,null,null,null,null,null,null,"MIRANTE DO BUQUIRINHA"]
[null,null,null,null,null,null,null,null,null,null,null,null,null,null,"MIRANTE DO VALE"]
[null,null,null,null,null,null,null,null,null,null,null,null,null,null,"MONTE CASTELO"]
[null,null,null,null,null,null,null,null,null,null,null,null,null,null,"MORADA DO FENIX"]
[null,null,null,null,null,null,null,null,null,null,null,null,null,null,"NOVE DE JULHO"]
[null,null,null,null,null,null,null,null,null,null,null,null,null,null,"PARQUE DOS IPES"]
[null,null,null,null,null,null,null,null,null,null,null,null,null,null,"PARQUE DOS YPES"]
[null,null,null,null,null,null,null,null,null,null,null,null,null,null,"PARQUE INDEPENDENCIA"]
[null,null,null,null,null,null,null,null,null,null,null,null,null,null,"PARQUE INDUSTRIAL"]
[null,null,null,null,null,null,null,null,null,null,null,null,null,null,"PARQUE INTERLAGOS"]
[null,null,null,null,null,null,null,null,null,null,null,null,null,null,"PARQUE MARTIM CERERE"]
[null,null,null,null,null,null,null,null,null,null,null,null,null,null,"PARQUE NOVA ESPERANCA"]
[null,null,null,null,null,null,null,null,null,null,null,null,null,null,"PARQUE NOVO HORIZONTE"]
[null,null,null,null,null,null,null,null,null,null,null,null,null,null,"PARQUE RESIDENCIAL AQUARIUS"]
[null,null,null,null,null,null,null,null,null,null,null,null,null,null,"PARQUE RESIDENCIAL FLAMBOYANT"]
[null,null,null,null,null,null,null,null,null,null,null,null,null,null,"PARQUE RESIDENCIAL SANTO ANTONIO"]
[null,null,null,null,null,null,null,null,null,null,null,null,null,null,"PARQUE RESIDENCIAL UNIAO"]
[null,null,null,null,null,null,null,null,null,null,null,null,null,null,"PARQUE SANTA RITA"]
[null,null,null,null,null,null,null,null,null,null,null,null,null,null,"PARQUE SANTOS DUMONT"]
[null,null,null,null,null,null,null,null,null,null,null,null,null,null,"PAU DE SAIA"]
[null,null,null,null,null,null,null,null,null,null,null,null,null,null,"PEDRA D' AGUA"]
[null,null,null,null,null,null,null,null,null,null,null,null,null,null,"PERNAMBUCANA DE BAIXO"]
[null,null,null,null,null,null,null,null,null,null,null,null,null,null,"PERNAMBUCANA DE CIMA"]
[null,null,null,null,null,null,null,null,null,null,null,null,null,null,"PINHEIRINHO (URBANOVA)"]
[null,null,null,null,null,null,null,null,null,null,null,null,null,null,"PINHEIRINHO DOS PALMARES II"]
[null,null,null,null,null,null,null,null,null,null,null,null,null,null,"PORTAL DE MINAS"]
[null,null,null,null,null,null,null,null,null,null,null,null,null,null,"PORTAL DO CEU "]
[null,null,null,null,null,null,null,null,null,null,null,null,null,null,"PORTAL DOS PASSAROS"]
[null,null,null,null,null,null,null,null,null,null,null,null,null,null,"PORTAL SANTA INES"]
[null,null,null,null,null,null,null,null,null,null,null,null,null,null,"POUSADA DO VALE "]
[null,null,null,null,null,null,null,null,null,null,null,null,null,null,"QUARTO CENTENARIO"]
[null,null,null,null,null,null,null,null,null,null,null,null,null,null,"QUINTA DAS FLORES"]
[null,null,null,null,null,null,null,null,null,null,null,null,null,null,"RECANTO DA BARONESA"]
[null,null,null,null,null,null,null,null,null,null,null,null,null,null,"RECANTO DAS JABUTICABEIRAS"]
[null,null,null,null,null,null,null,null,null,null,null,null,null,null,"RECANTO DO CAETE"]
[null,null,null,null,null,null,null,null,null,null,null,null,null,null,"RECANTO DO VALE"]
[null,null,null,null,null,null,null,null,null,null,null,null,null,null,"RECANTO DOS EUCALIPTOS"]
[null,null,null,null,null,null,null,null,null,null,null,null,null,null,"RECANTO DOS PINHEIROS"]
[null,null,null,null,null,null,null,null,null,null,null,null,null,null,"RECANTO DOS TAMOIOS"]
[null,null,null,null,null,null,null,null,null,null,null,null,null,null,"RECREIO BOA VISTA"]
[null,null,null,null,null,null,null,null,null,null,null,null,null,null,"RESERVA DO PARATEHY"]
[null,null,null,null,null,null,null,null,null,null,null,null,null,null,"RESIDENCIAL ALTOS DA QUINTA"]
[null,null,null,null,null,null,null,null,null,null,null,null,null,null,"RESIDENCIAL ALTOS DOS YPES"]
[null,null,null,null,null,null,null,null,null,null,null,null,null,null,"RESIDENCIAL ANA MARIA"]
[null,null,null,null,null,null,null,null,null,null,null,null,null,null,"RESIDENCIAL ARMANDO RIGHI"]
[null,null,null,null,null,null,null,null,null,null,null,null,null,null,"RESIDENCIAL BELL PARK"]
[null,null,null,null,null,null,null,null,null,null,null,null,null,null,"RESIDENCIAL BOSQUE DOS IPES"]
[null,null,null,null,null,null,null,null,null,null,null,null,null,null,"RESIDENCIAL CAMBUI"]
[null,null,null,null,null,null,null,null,null,null,null,null,null,null,"RESIDENCIAL CAMINHO DAS MONTANHAS"]
[null,null,null,null,null,null,null,null,null,null,null,null,null,null,"RESIDENCIAL CAMPO BELO"]
[null,null,null,null,null,null,null,null,null,null,null,null,null,null,"RESIDENCIAL DEVILLE"]
[null,null,null,null,null,null,null,null,null,null,null,null,null,null,"RESIDENCIAL DOM BOSCO"]
[null,null,null,null,null,null,null,null,null,null,null,null,null,null,"RESIDENCIAL DUNAMIS"]
[null,null,null,null,null,null,null,null,null,null,null,null,null,null,"RESIDENCIAL ESPLANADA DO SOL"]
[null,null,null,null,null,null,null,null,null,null,null,null,null,null,"RESIDENCIAL FREI GALVAO"]
[null,null,null,null,null,null,null,null,null,null,null,null,null,null,"RESIDENCIAL GAZZO"]
[null,null,null,null,null,null,null,null,null,null,null,null,null,null,"RESIDENCIAL JAGUARY"]
[null,null,null,null,null,null,null,null,null,null,null,null,null,null,"RESIDENCIAL JARDIM RODOLFO"]
[null,null,null,null,null,null,null,null,null,null,null,null,null,null,"RESIDENCIAL JARDINS"]
[null,null,null,null,null,null,null,null,null,null,null,null,null,null,"RESIDENCIAL JATOBA"]
[null,null,null,null,null,null,null,null,null,null,null,null,null,null,"RESIDENCIAL JURITIS"]
[null,null,null,null,null,null,null,null,null,null,null,null,null,null,"RESIDENCIAL MANTIQUEIRA"]
[null,null,null,null,null,null,null,null,null,null,null,null,null,null,"RESIDENCIAL MARTINS PEREIRA"]
[null,null,null,null,null,null,null,null,null,null,null,null,null,null,"RESIDENCIAL MONTSERRAT"]
[null,null,null,null,null,null,null,null,null,null,null,null,null,null,"RESIDENCIAL PARQUE SANTO ANTONIO"]
[null,null,null,null,null,null,null,null,null,null,null,null,null,null,"RESIDENCIAL RIBEIRA (EUGENIO DE MELO)"]
[null,null,null,null,null,null,null,null,null,null,null,null,null,null,"RESIDENCIAL RIGHI ARMANDO"]
[null,null,null,null,null,null,null,null,null,null,null,null,null,null,"RESIDENCIAL SAO FRANCISCO XAVIER"]
[null,null,null,null,null,null,null,null,null,null,null,null,null,null,"RESIDENCIAL SOL NASCENTE"]
[null,null,null,null,null,null,null,null,null,null,null,null,null,null,"RESIDENCIAL VERANAS"]
[null,null,null,null,null,null,null,null,null,null,null,null,null,null,"RESIDENCIAL VISTA LINDA"]
[null,null,null,null,null,null,null,null,null,null,null,null,null,null,"ROYAL PARK"]
[null,null,null,null,null,null,null,null,null,null,null,null,null,null,"SANTA MARIA "]
[null,null,null,null,null,null,null,null,null,null,null,null,null,null,"SANTO AGOSTINHO DE BAIXO"]
[null,null,null,null,null,null,null,null,null,null,null,null,null,null,"SANTO AGOSTINHO DE CIMA"]
[null,null,null,null,null,null,null,null,null,null,null,null,null,null,"SANTOS DUMONT"]
[null,null,null,null,null,null,null,null,null,null,null,null,null,null,"SAO JOAO"]
[null,null,null,null,null,null,null,null,null,null,null,null,null,null,"SAPE"]
[null,null,null,null,null,null,null,null,null,null,null,null,null,null,"SERROTE"]
[null,null,null,null,null,null,null,null,null,null,null,null,null,null,"SERTAOZINHO"]
[null,null,null,null,null,null,null,null,null,null,null,null,null,null,"SETVILLE ALTOS DE SAO JOSE"]
[null,null,null,null,null,null,null,null,null,null,null,null,null,null,"SFX - AGUA PRETA"]
[null,null,null,null,null,null,null,null,null,null,null,null,null,null,"SFX - ARGENTINO ROSA"]
[null,null,null,null,null,null,null,null,null,null,null,null,null,null,"SFX - BAMBU"]
[null,null,null,null,null,null,null,null,null,null,null,null,null,null,"SFX - BARREIRA"]
[null,null,null,null,null,null,null,null,null,null,null,null,null,null,"SFX - BUGRE"]
[null,null,null,null,null,null,null,null,null,null,null,null,null,null,"SFX - CACHOEIRA DO RONCADOR"]
[null,null,null,null,null,null,null,null,null,null,null,null,null,null,"SFX - CAFUNDO"]
[null,null,null,null,null,null,null,null,null,null,null,null,null,null,"SFX - CANELAR"]
[null,null,null,null,null,null,null,null,null,null,null,null,null,null,"SFX - CATETO"]
[null,null,null,null,null,null,null,null,null,null,null,null,null,null,"SFX - CENTRO"]
[null,null,null,null,null,null,null,null,null,null,null,null,null,null,"SFX - ESTRADA ACLECIA MARCONDES"]
[null,null,null,null,null,null,null,null,null,null,null,null,null,null,"SFX - ESTRACA CAPELA SANTA LUZIA"]
[null,null,null,null,null,null,null,null,null,null,null,null,null,null,"SFX - ESTRADA DA CACHOEIRA PEDRO DAVID"]
[null,null,null,null,null,null,null,null,null,null,null,null,null,null,"SFX - ESTRADA DO ARNALDO"]
[null,null,null,null,null,null,null,null,null,null,null,null,null,null,"SFX - ESTRADA EZEQUIEL ALVES GRACIANO"]
[null,null,null,null,null,null,null,null,null,null,null,null,null,null,"SFX - ESTRADA PEREIRA LIMA"]
[null,null,null,null,null,null,null,null,null,null,null,null,null,null,"SFX - FARTURA"]
[null,null,null,null,null,null,null,null,null,null,null,null,null,null,"SFX - FAZENDINHA"]
[null,null,null,null,null,null,null,null,null,null,null,null,null,null,"SFX - FERREIRA"]
[null,null,null,null,null,null,null,null,null,null,null,null,null,null,"SFX - GRAMINHA"]
[null,null,null,null,null,null,null,null,null,null,null,null,null,null,"SFX - GUAXINDIBA"]
[null,null,null,null,null,null,null,null,null,null,null,null,null,null,"SFX - GUIRRA"]
[null,null,null,null,null,null,null,null,null,null,null,null,null,null,"SFX - LARANJAL"]
[null,null,null,null,null,null,null,null,null,null,null,null,null,null,"SFX - LAVRAS"]
[null,null,null,null,null,null,null,null,null,null,null,null,null,null,"SFX - MACHADO"]
[null,null,null,null,null,null,null,null,null,null,null,null,null,null,"SFX - MARIA BASTIÃO"]
[null,null,null,null,null,null,null,null,null,null,null,null,null,null,"SFX - MARTINS"]
[null,null,null,null,null,null,null,null,null,null,null,null,null,null,"SFX - MORRO DOS VENTO UIVANTES"]
[null,null,null,null,null,null,null,null,null,null,null,null,null,null,"SFX - OLEO PARDO"]
[null,null,null,null,null,null,null,null,null,null,null,null,null,null,"SFX - PALMITAL"]
[null,null,null,null,null,null,null,null,null,null,null,null,null,null,"SFX - PEDRA DO CAPIM AZUL"]
[null,null,null,null,null,null,null,null,null,null,null,null,null,null,"SFX - PEDRA VERMELHA"]
[null,null,null,null,null,null,null,null,null,null,null,null,null,null,"SFX - POCINHO"]
[null,null,null,null,null,null,null,null,null,null,null,null,null,null,"SFX - PONCIANOS"]
[null,null,null,null,null,null,null,null,null,null,null,null,null,null,"SFX - PORTAL DO EQUILIBRIUM"]
[null,null,null,null,null,null,null,null,null,null,null,null,null,null,"SFX - POUSO FRIO"]
[null,null,null,null,null,null,null,null,null,null,null,null,null,null,"SFX - QUEIXO D'ANTA"]
[null,null,null,null,null,null,null,null,null,null,null,null,null,null,"SFX - REMEDIO"]
[null,null,null,null,null,null,null,null,null,null,null,null,null,null,"SFX - RIO DAS COBRAS"]
[null,null,null,null,null,null,null,null,null,null,null,null,null,null,"SFX - RIO DO PEIXE"]
[null,null,null,null,null,null,null,null,null,null,null,null,null,null,"SFX - RIO MANSO"]
[null,null,null,null,null,null,null,null,null,null,null,null,null,null,"SFX - SABOYA"]
[null,null,null,null,null,null,null,null,null,null,null,null,null,null,"SFX - SANTA BARBARA DE BAIXO"]
[null,null,null,null,null,null,null,null,null,null,null,null,null,null,"SFX - SANTA BARBARA DE CIMA"]
[null,null,null,null,null,null,null,null,null,null,null,null,null,null,"SFX - SANTA CRUZ"]
[null,null,null,null,null,null,null,null,null,null,null,null,null,null,"SFX - SANTA TEREZINHA"]
[null,null,null,null,null,null,null,null,null,null,null,null,null,null,"SFX - SÃO PEDRO"]
[null,null,null,null,null,null,null,null,null,null,null,null,null,null,"SFX - TRAVESSA CIRIEMAS"]
[null,null,null,null,null,null,null,null,null,null,null,null,null,null,"SFX - TRAVESSA DA MATA"]
[null,null,null,null,null,null,null,null,null,null,null,null,null,null,"SFX - TRAVESSA DITA JUCA"]
[null,null,null,null,null,null,null,null,null,null,null,null,null,null,"SFX - UHF"]
[null,null,null,null,null,null,null,null,null,null,null,null,null,null,"SFX - VARJÃO"]
[null,null,null,null,null,null,null,null,null,null,null,null,null,null,"SFX - VENGALAR"]
[null,null,null,null,null,null,null,null,null,null,null,null,null,null,"SFX - VILA NOSSA SENHORA DE FATIMA"]
[null,null,null,null,null,null,null,null,null,null,null,null,null,null,"SITIO BOM JESUS"]
[null,null,null,null,null,null,null,null,null,null,null,null,null,null,"SOBRADO"]
[null,null,null,null,null,null,null,null,null,null,null,null,null,null,"SUNSET PARK"]
[null,null,null,null,null,null,null,null,null,null,null,null,null,null,"TAQUARI "]
[null,null,null,null,null,null,null,null,null,null,null,null,null,null,"TERRA BRASILIS"]
[null,null,null,null,null,null,null,null,null,null,null,null,null,null,"TERRA NOVA (EUGENIO DE MELO)"]
[null,null,null,null,null,null,null,null,null,null,null,null,null,null,"TOM JOBIM"]
[null,null,null,null,null,null,null,null,null,null,null,null,null,null,"TORRAO DE OURO (PARQUE INTERLAGOS)"]
[null,null,null,null,null,null,null,null,null,null,null,null,null,null,"TRINTA E UM DE MARCO"]
[null,null,null,null,null,null,null,null,null,null,null,null,null,null,"TURVO"]
[null,null,null,null,null,null,null,null,null,null,null,null,null,null,"URBANOVA I"]
[null,null,null,null,null,null,null,null,null,null,null,null,null,null,"URBANOVA II"]
[null,null,null,null,null,null,null,null,null,null,null,null,null,null,"URBANOVA III"]
[null,null,null,null,null,null,null,null,null,null,null,null,null,null,"URBANOVA IV"]
[null,null,null,null,null,null,null,null,null,null,null,null,null,null,"URBANOVA V"]
[null,null,null,null,null,null,null,null,null,null,null,null,null,null,"URBANOVA VI"]
[null,null,null,null,null,null,null,null,null,null,null,null,null,null,"URBANOVA VII"]
[null,null,null,null,null,null,null,null,null,null,null,null,null,null,"VARGEM GRANDE"]
[null,null,null,null,null,null,null,null,null,null,null,null,null,null,"VERANEIO TORRAO DE OURO"]
[null,null,null,null,null,null,null,null,null,null,null,null,null,null,"VERTENTES DO JAGUARI"]
[null,null,null,null,null,null,null,null,null,null,null,null,null,null,"VILA ABEL"]
[null,null,null,null,null,null,null,null,null,null,null,null,null,null,"VILA ADRIANA"]
[null,null,null,null,null,null,null,null,null,null,null,null,null,null,"VILA ADY ANNA"]
[null,null,null,null,null,null,null,null,null,null,null,null,null,null,"VILA ALEXANDRINA"]
[null,null,null,null,null,null,null,null,null,null,null,null,null,null,"VILA BANDEIRANTE"]
[null,null,null,null,null,null,null,null,null,null,null,null,null,null,"VILA BETANIA"]
[null,null,null,null,null,null,null,null,null,null,null,null,null,null,"VILA CANDIDA"]
[null,null,null,null,null,null,null,null,null,null,null,null,null,null,"VILA CARDOSO"]
[null,null,null,null,null,null,null,null,null,null,null,null,null,null,"VILA CESAR"]
[null,null,null,null,null,null,null,null,null,null,null,null,null,null,"VILA CHIQUINHA"]
[null,null,null,null,null,null,null,null,null,null,null,null,null,null,"VILA CORINTHIANS"]
[null,null,null,null,null,null,null,null,null,null,null,null,null,null,"VILA CRISTINA"]
[null,null,null,null,null,null,null,null,null,null,null,null,null,null,"VILA DAS ACACIAS"]
[null,null,null,null,null,null,null,null,null,null,null,null,null,null,"VILA DAS FLORES"]
[null,null,null,null,null,null,null,null,null,null,null,null,null,null,"VILA DIRCE"]
[null,null,null,null,null,null,null,null,null,null,null,null,null,null,"VILA DO CARMO"]
[null,null,null,null,null,null,null,null,null,null,null,null,null,null,"VILA DO CARMO - 2ª GLEBA"]
[null,null,null,null,null,null,null,null,null,null,null,null,null,null,"VILA DONA"]
[null,null,null,null,null,null,null,null,null,null,null,null,null,null,"VILA EMA"]
[null,null,null,null,null,null,null,null,null,null,null,null,null,null,"VILA ESMERALDA"]
[null,null,null,null,null,null,null,null,null,null,null,null,null,null,"VILA ESTER"]
[null,null,null,null,null,null,null,null,null,null,null,null,null,null,"VILA GUAIANAZES"]
[null,null,null,null,null,null,null,null,null,null,null,null,null,null,"VILA GUARANI"]
[null,null,null,null,null,null,null,null,null,null,null,null,null,null,"VILA HIGIENOPOLIS"]
[null,null,null,null,null,null,null,null,null,null,null,null,null,null,"VILA ICARAI"]
[null,null,null,null,null,null,null,null,null,null,null,null,null,null,"VILA IGUALDADE"]
[null,null,null,null,null,null,null,null,null,null,null,null,null,null,"VILA INDUSTRIAL"]
[null,null,null,null,null,null,null,null,null,null,null,null,null,null,"VILA IPIRANGA"]
[null,null,null,null,null,null,null,null,null,null,null,null,null,null,"VILA JACY"]
[null,null,null,null,null,null,null,null,null,null,null,null,null,null,"VILA LEILA I "]
[null,null,null,null,null,null,null,null,null,null,null,null,null,null,"VILA LEILA II"]
[null,null,null,null,null,null,null,null,null,null,null,null,null,null,"VILA LEONIDIA"]
[null,null,null,null,null,null,null,null,null,null,null,null,null,null,"VILA LETONIA"]
[null,null,null,null,null,null,null,null,null,null,null,null,null,null,"VILA LUCHETTI"]
[null,null,null,null,null,null,null,null,null,null,null,null,null,null,"VILA LUCIA"]
[null,null,null,null,null,null,null,null,null,null,null,null,null,null,"VILA LUIZA"]
[null,null,null,null,null,null,null,null,null,null,null,null,null,null,"VILA MACHADO"]
[null,null,null,null,null,null,null,null,null,null,null,null,null,null,"VILA MARIA"]
[null,null,null,null,null,null,null,null,null,null,null,null,null,null,"VILA MASCARENHAZ FERRAZ"]
[null,null,null,null,null,null,null,null,null,null,null,null,null,null,"VILA MATILDE I"]
[null,null,null,null,null,null,null,null,null,null,null,null,null,null,"VILA MATILDE II"]
[null,null,null,null,null,null,null,null,null,null,null,null,null,null,"VILA MONTE ALEGRE"]
[null,null,null,null,null,null,null,null,null,null,null,null,null,null,"VILA MONTEREY"]
[null,null,null,null,null,null,null,null,null,null,null,null,null,null,"VILA NAIR"]
[null,null,null,null,null,null,null,null,null,null,null,null,null,null,"VILA NOSSA SENHORA DAS GRACAS"]
[null,null,null,null,null,null,null,null,null,null,null,null,null,null,"VILA NOVA CONCEICAO"]
[null,null,null,null,null,null,null,null,null,null,null,null,null,null,"VILA NOVA CRISTINA"]
[null,null,null,null,null,null,null,null,null,null,null,null,null,null,"VILA NOVA GUARANI"]
[null,null,null,null,null,null,null,null,null,null,null,null,null,null,"VILA NOVA PAULICEIA"]
[null,null,null,null,null,null,null,null,null,null,null,null,null,null,"VILA NOVA SAO JOSE"]
[null,null,null,null,null,null,null,null,null,null,null,null,null,null,"VILA NOVE DE JULHO"]
[null,null,null,null,null,null,null,null,null,null,null,null,null,null,"VILA PAGANINI"]
[null,null,null,null,null,null,null,null,null,null,null,null,null,null,"VILA PAIVA"]
[null,null,null,null,null,null,null,null,null,null,null,null,null,null,"VILA PATRICIA"]
[null,null,null,null,null,null,null,null,null,null,null,null,null,null,"VILA PAULO SETUBAL"]
[null,null,null,null,null,null,null,null,null,null,null,null,null,null,"VILA PIRATININGA"]
[null,null,null,null,null,null,null,null,null,null,null,null,null,null,"VILA PROGRESSO "]
[null,null,null,null,null,null,null,null,null,null,null,null,null,null,"VILA RANGEL"]
[null,null,null,null,null,null,null,null,null,null,null,null,null,null,"VILA RHODIA"]
[null,null,null,null,null,null,null,null,null,null,null,null,null,null,"VILA RICA"]
[null,null,null,null,null,null,null,null,null,null,null,null,null,null,"VILA ROSSI"]
[null,null,null,null,null,null,null,null,null,null,null,null,null,null,"VILA RUBY"]
[null,null,null,null,null,null,null,null,null,null,null,null,null,null,"VILA SANCHES"]
[null,null,null,null,null,null,null,null,null,null,null,null,null,null,"VILA SANTA HELENA"]
[null,null,null,null,null,null,null,null,null,null,null,null,null,null,"VILA SANTA LUZIA"]
[null,null,null,null,null,null,null,null,null,null,null,null,null,null,"VILA SANTA MATILDE"]
[null,null,null,null,null,null,null,null,null,null,null,null,null,null,"VILA SANTA RITA"]
[null,null,null,null,null,null,null,null,null,null,null,null,null,null,"VILA SANTOS"]
[null,null,null,null,null,null,null,null,null,null,null,null,null,null,"VILA SAO BENEDITO"]
[null,null,null,null,null,null,null,null,null,null,null,null,null,null,"VILA SAO BENTO"]
[null,null,null,null,null,null,null,null,null,null,null,null,null,null,"VILA SAO GERALDO"]
[null,null,null,null,null,null,null,null,null,null,null,null,null,null,"VILA SAO PAULO"]
[null,null,null,null,null,null,null,null,null,null,null,null,null,null,"VILA SAO PEDRO"]
[null,null,null,null,null,null,null,null,null,null,null,null,null,null,"VILA SIMONE"]
[null,null,null,null,null,null,null,null,null,null,null,null,null,null,"VILA SINHA"]
[null,null,null,null,null,null,null,null,null,null,null,null,null,null,"VILA STRAUSS"]
[null,null,null,null,null,null,null,null,null,null,null,null,null,null,"VILA TATETUBA"]
[null,null,null,null,null,null,null,null,null,null,null,null,null,null,"VILA TEREZINHA"]
[null,null,null,null,null,null,null,null,null,null,null,null,null,null,"VILA TESOURO"]
[null,null,null,null,null,null,null,null,null,null,null,null,null,null,"VILA TUPI"]
[null,null,null,null,null,null,null,null,null,null,null,null,null,null,"VILA UNIDOS"]
[null,null,null,null,null,null,null,null,null,null,null,null,null,null,"VILA VENEZIANI"]
[null,null,null,null,null,null,null,null,null,null,null,null,null,null,"VILA VIADUTO"]
[null,null,null,null,null,null,null,null,null,null,null,null,null,null,"VILA ZELFA"]
[null,null,null,null,null,null,null,null,null,null,null,null,null,null,"VILA ZIZINHA"]
[null,null,null,null,null,null,null,null,null,null,null,null,null,null,"VILLAGE ALPINO"]

{"sheet":"BAIRROS CADASTRADOS","index":3,"n_rows":474,"n_cols":1,"rows_kept":474,"cut":false,"hidden":false,"merged":[]}
["BAIRROS CADASTRADOS"]
["AGUA SOCA"]
["AGUAS DA PRATA"]
["AGUAS DE CANINDU I"]
["AGUAS DE CANINDU II"]
["ALPHAVILLE"]
["ALTOS DA VILA PAIVA"]
["ALTOS DE SAO JOSE"]
["ALTOS DO BOSQUE"]
["ALTOS DO CAETE"]
["BAIRRINHO"]
["BEIRA RIO"]
["BENGALAR"]
["BICA D'AGUA"]
["BOM RETIRO"]
["BOM SUCESSO"]
["BOSQUE DOS EUCALIPTOS"]
["BOSQUE DOS IPES"]
["BOSQUE IMPERIAL"]
["BRASALPES"]
["BUQUIRINHA I"]
["BUQUIRINHA II"]
["CACHOEIRA DO RONCADOR"]
["CAJURU"]
["CAMBUCA"]
["CAMPO DOS ALEMAES"]
["CAMPOS DE SAO JOSE"]
["CAPAO GROSSO I"]
["CAPAO GROSSO II"]
["CAPUAVA"]
["CENTRO"]
["CENTRO INDUSTRIAL ELDORADO"]
["CHACARAS ARAUJO I"]
["CHACARAS ARAUJO II"]
["CHACARAS BOA ESPERANCA"]
["CHACARAS BOA VISTA"]
["CHACARAS DOS EUCALIPTOS"]
["CHACARAS HAWAI"]
["CHACARAS JARDIM SERIMBURA (SATELITE)"]
["CHACARAS REUNIDAS"]
["CHACARAS SANTA HELENA"]
["CHACARAS SAO BENEDITO"]
["CHACARAS SAO JOSE"]
["CHACARAS TAKITANI"]
["CIDADE MORUMBI"]
["CIDADE VISTA VERDE"]
["COLINAS DO PARATEHY"]
["COLINAS DO PARAYBA"]
["COMUNIDADE SANTA CRUZ"]
["CONDOMINIO CHACARAS DOS EUCALIPTOS"]
["CONDOMINIO RESIDENCIAL ELDORADO"]
["CONDOMINIO RESIDENCIAL JK"]
["CONDOMINIO RESIDENCIAL TERRINHA"]
["CONDOMINIO RESIDENCIAL VILLAGIO FAZENDAO"]
["CONJUNTO HABILTACIONAL RONDA"]
["CONJUNTO HABITACIONAL DOM PEDRO I"]
["CONJUNTO HABITACIONAL DOM PEDRO II"]
["CONJUNTO HABITACIONAL ELMANO FERREIRA VELOSO"]
["CONJUNTO HABITACIONAL INTERVALE"]
["CONJUNTO HABITACIONAL NOSSO TETO"]
["CONJUNTO HABITACIONAL PAPA JOAO PAULO II"]
["CONJUNTO HABITACIONAL PM SAO JUDAS TADEU "]
["CONJUNTO HABITACIONAL SAO JUDAS TADEU "]
["CONJUNTO HABITACIONAL TRINTA E UM DE MARCO"]
["CONJUNTO INTEGRACAO"]
["CONJUNTO RESIDENCIA PLANALTO"]
["CONJUNTO RESIDENCIAL CAJURU I"]
["CONJUNTO RESIDENCIAL CAJURU III"]
["CONJUNTO RESIDENCIAL CIDADE JARDIM"]
["CONJUNTO RESIDENCIAL JARDIM SATELITE"]
["CONJUNTO RESIDENCIAL MONTE CASTELO"]
["CONJUNTO RESIDENCIAL MORADA DO SOL"]
["CONJUNTO RESIDENCIAL VALE DOS PINHEIROS"]
["CONUNTO HABITACIONAL VALE DOS PINHEIROS"]
["COSTINHA"]
["DESEMBARGADOR MARTINS PEREIRA"]
["EUGENIO DE MELO"]
["FAZENDA BOM RETIRO"]
["FAZENDA HONDA"]
["FAZENDA JANUARIA (REGIAO)"]
["FAZENDA MARSON"]
["FAZENDA TAIRA"]
["FAZENDA TAKANASHI"]
["FAZENDA TONINHO FERREIRA"]
["FAZENDA VILA FRANCA"]
["FLORESTA"]
["FREITAS"]
["GALO BRANCO"]
["GUIRRA"]
["JAGUARI"]
["JARDIM AEROPORTO"]
["JARDIM ALTOS DE SANTANA"]
["JARDIM ALTOS DO ESPLANADA"]
["JARDIM ALVORADA"]
["JARDIM AMERICA"]
["JARDIM AMERICANO"]
["JARDIM ANCHIETA"]
["JARDIM ANHEMBI"]
["JARDIM APARECIDA"]
["JARDIM APOLO"]
["JARDIM AQUARIUS"]
["JARDIM AUGUSTA"]
["JARDIM AZEVEDO"]
["JARDIM BELA VISTA"]
["JARDIM BOA VISTA"]
["JARDIM BRASILIA"]
["JARDIM CASSIANO RICARDO"]
["JARDIM CASTANHEIRAS"]
["JARDIM CEREJEIRAS"]
["JARDIM COLINAS"]
["JARDIM COLONIAL"]
["JARDIM COLORADO"]
["JARDIM COPACABANA"]
["JARDIM CRUZEIRO DO SUL"]
["JARDIM DA GRANJA"]
["JARDIM DAS AZALEIAS"]
["JARDIM DAS FLORES"]
["JARDIM DAS INDUSTRIAS"]
["JARDIM DAS PAINEIRAS I "]
["JARDIM DAS PAINEIRAS II"]
["JARDIM DEL REY"]
["JARDIM DIAMANTE"]
["JARDIM DO CEU"]
["JARDIM DO GOLFE"]
["JARDIM DO LAGO"]
["JARDIM DOS BANDEIRANTES"]
["JARDIM DOS COQUEIROS"]
["JARDIM EBENEZER"]
["JARDIM ESPLANADA I"]
["JARDIM ESPLANADA II"]
["JARDIM ESTORIL"]
["JARDIM FATIMA"]
["JARDIM FLORADAS DE SAO JOSE"]
["JARDIM FREI LEOPOLDO"]
["JARDIM GUIMARAES"]
["JARDIM HELENA"]
["JARDIM IMPERIAL"]
["JARDIM IPE"]
["JARDIM IRACEMA"]
["JARDIM ISMENIA"]
["JARDIM ITAPUA"]
["JARDIM JACI"]
["JARDIM JULIANA"]
["JARDIM JUSSARA"]
["JARDIM LIMOEIRO"]
["JARDIM MADUREIRA"]
["JARDIM MAJESTIC"]
["JARDIM MARACANA"]
["JARDIM MARGARETH"]
["JARDIM MARIANA I "]
["JARDIM MARIANA II"]
["JARDIM MARINGA"]
["JARDIM MARITEIA"]
["JARDIM MATARAZZO"]
["JARDIM MESQUITA"]
["JARDIM MINAS GERAIS"]
["JARDIM MOTORAMA"]
["JARDIM NOVA AMERICA"]
["JARDIM NOVA DETROIT"]
["JARDIM NOVA ESPERANCA (BANHADO)"]
["JARDIM NOVA EUROPA"]
["JARDIM NOVA FLORIDA"]
["JARDIM NOVA MICHIGAN I"]
["JARDIM NOVA MICHIGAN II"]
["JARDIM NOVA REPUBLICA"]
["JARDIM OLIMPIA"]
["JARDIM ORIENTAL"]
["JARDIM ORIENTE"]
["JARDIM OSWALDO CRUZ"]
["JARDIM OURO PRETO"]
["JARDIM PALMEIRAS DE SAO JOSE"]
["JARDIM PARAISO DO SOL"]
["JARDIM PARARANGABA"]
["JARDIM PAULISTA"]
["JARDIM PETROPOLIS"]
["JARDIM PORTUGAL"]
["JARDIM PRIMAVERA I "]
["JARDIM PRIMAVERA II"]
["JARDIM RENATA"]
["JARDIM REPUBLICA"]
["JARDIM REPUBLICA NOVA"]
["JARDIM SAN MARINO"]
["JARDIM SAN RAFAEL"]
["JARDIM SANTA ALICE"]
["JARDIM SANTA CECILIA I "]
["JARDIM SANTA CECILIA II"]
["JARDIM SANTA EDWIGES"]
["JARDIM SANTA FE"]
["JARDIM SANTA HERMINIA"]
["JARDIM SANTA INES I"]
["JARDIM SANTA INES II"]
["JARDIM SANTA INES III"]
["JARDIM SANTA JULIA"]
["JARDIM SANTA LUCIA"]
["JARDIM SANTA LUZIA"]
["JARDIM SANTA MATILDE"]
["JARDIM SANTA RITA"]
["JARDIM SANTA ROSA"]
["JARDIM SANTA SOFIA"]
["JARDIM SANTAREM"]
["JARDIM SANTO ONOFRE"]
["JARDIM SAO DIMAS"]
["JARDIM SAO JORGE"]
["JARDIM SAO JOSE (CENTRO)"]
["JARDIM SAO JOSE I"]
["JARDIM SAO JOSE II"]
["JARDIM SAO JUDAS TADEU"]
["JARDIM SAO VICENTE"]
["JARDIM SATELITE"]
["JARDIM SOUTO"]
["JARDIM TELESPARK"]
["JARDIM TERRAS DO SUL "]
["JARDIM TOPAZIO"]
["JARDIM TRES JOSE"]
["JARDIM UIRA"]
["JARDIM UNIVERSO"]
["JARDIM VALE DO SOL"]
["JARDIM VALE PARAISO"]
["JARDIM VALPARAIBA"]
["JARDIM VENEZA"]
["JARDM PARAISO"]
["JARDM ROSARIO"]
["JARDM SANTA MADALENA"]
["JARDM SAO LEOPOLDO"]
["JARIDM SUL"]
["JOQUEI CLUBE (URBANOVA)"]
["LAVAPES"]
["LOTEAMENTO ESPELHO D'AGUA"]
["LOTEAMENTO RESERVA DA BARRA"]
["LOTEAMENTO RESERVA DA FIGUEIRA"]
["LOTEAMENTO SANTA RITA (BOM RETIRO)"]
["MARTINS GUIMARAES"]
["MATO DENTRO"]
["MIRANTE DO BUQUIRINHA"]
["MIRANTE DO VALE"]
["MONTE CASTELO"]
["MORADA DO FENIX"]
["NOVE DE JULHO"]
["PARQUE DOS IPES"]
["PARQUE DOS YPES"]
["PARQUE INDEPENDENCIA"]
["PARQUE INDUSTRIAL"]
["PARQUE INTERLAGOS"]
["PARQUE MARTIM CERERE"]
["PARQUE NOVA ESPERANCA"]
["PARQUE NOVO HORIZONTE"]
["PARQUE RESIDENCIAL AQUARIUS"]
["PARQUE RESIDENCIAL FLAMBOYANT"]
["PARQUE RESIDENCIAL SANTO ANTONIO"]
["PARQUE RESIDENCIAL UNIAO"]
["PARQUE SANTA RITA"]
["PARQUE SANTOS DUMONT"]
["PAU DE SAIA"]
["PEDRA D' AGUA"]
["PERNAMBUCANA DE BAIXO"]
["PERNAMBUCANA DE CIMA"]
["PINHEIRINHO (URBANOVA)"]
["PINHEIRINHO DOS PALMARES II"]
["PORTAL DE MINAS"]
["PORTAL DO CEU "]
["PORTAL DOS PASSAROS"]
["PORTAL SANTA INES"]
["POUSADA DO VALE "]
["QUARTO CENTENARIO"]
["QUINTA DAS FLORES"]
["RECANTO DA BARONESA"]
["RECANTO DAS JABUTICABEIRAS"]
["RECANTO DO CAETE"]
["RECANTO DO VALE"]
["RECANTO DOS EUCALIPTOS"]
["RECANTO DOS PINHEIROS"]
["RECANTO DOS TAMOIOS"]
["RECREIO BOA VISTA"]
["RESERVA DO PARATEHY"]
["RESIDENCIAL ALTOS DA QUINTA"]
["RESIDENCIAL ALTOS DOS YPES"]
["RESIDENCIAL ANA MARIA"]
["RESIDENCIAL ARMANDO RIGHI"]
["RESIDENCIAL BELL PARK"]
["RESIDENCIAL BOSQUE DOS IPES"]
["RESIDENCIAL CAMBUI"]
["RESIDENCIAL CAMINHO DAS MONTANHAS"]
["RESIDENCIAL CAMPO BELO"]
["RESIDENCIAL DEVILLE"]
["RESIDENCIAL DOM BOSCO"]
["RESIDENCIAL DUNAMIS"]
["RESIDENCIAL ESPLANADA DO SOL"]
["RESIDENCIAL FREI GALVAO"]
["RESIDENCIAL GAZZO"]
["RESIDENCIAL JAGUARY"]
["RESIDENCIAL JARDIM RODOLFO"]
["RESIDENCIAL JARDINS"]
["RESIDENCIAL JATOBA"]
["RESIDENCIAL JURITIS"]
["RESIDENCIAL MANTIQUEIRA"]
["RESIDENCIAL MARTINS PEREIRA"]
["RESIDENCIAL MONTSERRAT"]
["RESIDENCIAL PARQUE SANTO ANTONIO"]
["RESIDENCIAL RIBEIRA (EUGENIO DE MELO)"]
["RESIDENCIAL RIGHI ARMANDO"]
["RESIDENCIAL SAO FRANCISCO XAVIER"]
["RESIDENCIAL SOL NASCENTE"]
["RESIDENCIAL VERANAS"]
["RESIDENCIAL VISTA LINDA"]
["ROYAL PARK"]
["SANTA MARIA "]
["SANTO AGOSTINHO DE BAIXO"]
["SANTO AGOSTINHO DE CIMA"]
["SANTOS DUMONT"]
["SAO JOAO"]
["SAPE"]
["SERROTE"]
["SERTAOZINHO"]
["SETVILLE ALTOS DE SAO JOSE"]
["SFX - AGUA PRETA"]
["SFX - ARGENTINO ROSA"]
["SFX - BAMBU"]
["SFX - BARREIRA"]
["SFX - BUGRE"]
["SFX - CACHOEIRA DO RONCADOR"]
["SFX - CAFUNDO"]
["SFX - CANELAR"]
["SFX - CATETO"]
["SFX - CENTRO"]
["SFX - ESTRADA ACLECIA MARCONDES"]
["SFX - ESTRACA CAPELA SANTA LUZIA"]
["SFX - ESTRADA DA CACHOEIRA PEDRO DAVID"]
["SFX - ESTRADA DO ARNALDO"]
["SFX - ESTRADA EZEQUIEL ALVES GRACIANO"]
["SFX - ESTRADA PEREIRA LIMA"]
["SFX - FARTURA"]
["SFX - FAZENDINHA"]
["SFX - FERREIRA"]
["SFX - GRAMINHA"]
["SFX - GUAXINDIBA"]
["SFX - GUIRRA"]
["SFX - LARANJAL"]
["SFX - LAVRAS"]
["SFX - MACHADO"]
["SFX - MARIA BASTIÃO"]
["SFX - MARTINS"]
["SFX - MORRO DOS VENTO UIVANTES"]
["SFX - OLEO PARDO"]
["SFX - PALMITAL"]
["SFX - PEDRA DO CAPIM AZUL"]
["SFX - PEDRA VERMELHA"]
["SFX - POCINHO"]
["SFX - PONCIANOS"]
["SFX - PORTAL DO EQUILIBRIUM"]
["SFX - POUSO FRIO"]
["SFX - QUEIXO D'ANTA"]
["SFX - REMEDIO"]
["SFX - RIO DAS COBRAS"]
["SFX - RIO DO PEIXE"]
["SFX - RIO MANSO"]
["SFX - SABOYA"]
["SFX - SANTA BARBARA DE BAIXO"]
["SFX - SANTA BARBARA DE CIMA"]
["SFX - SANTA CRUZ"]
["SFX - SANTA TEREZINHA"]
["SFX - SÃO PEDRO"]
["SFX - TRAVESSA CIRIEMAS"]
["SFX - TRAVESSA DA MATA"]
["SFX - TRAVESSA DITA JUCA"]
["SFX - UHF"]
["SFX - VARJÃO"]
["SFX - VENGALAR"]
["SFX - VILA NOSSA SENHORA DE FATIMA"]
["SITIO BOM JESUS"]
["SOBRADO"]
["SUNSET PARK"]
["TAQUARI "]
["TERRA BRASILIS"]
["TERRA NOVA (EUGENIO DE MELO)"]
["TOM JOBIM"]
["TORRAO DE OURO (PARQUE INTERLAGOS)"]
["TRINTA E UM DE MARCO"]
["TURVO"]
["URBANOVA I"]
["URBANOVA II"]
["URBANOVA III"]
["URBANOVA IV"]
["URBANOVA V"]
["URBANOVA VI"]
["URBANOVA VII"]
["VARGEM GRANDE"]
["VERANEIO TORRAO DE OURO"]
["VERTENTES DO JAGUARI"]
["VILA ABEL"]
["VILA ADRIANA"]
["VILA ADY ANNA"]
["VILA ALEXANDRINA"]
["VILA BANDEIRANTE"]
["VILA BETANIA"]
["VILA CANDIDA"]
["VILA CARDOSO"]
["VILA CESAR"]
["VILA CHIQUINHA"]
["VILA CORINTHIANS"]
["VILA CRISTINA"]
["VILA DAS ACACIAS"]
["VILA DAS FLORES"]
["VILA DIRCE"]
["VILA DO CARMO"]
["VILA DO CARMO - 2ª GLEBA"]
["VILA DONA"]
["VILA EMA"]
["VILA ESMERALDA"]
["VILA ESTER"]
["VILA GUAIANAZES"]
["VILA GUARANI"]
["VILA HIGIENOPOLIS"]
["VILA ICARAI"]
["VILA IGUALDADE"]
["VILA INDUSTRIAL"]
["VILA IPIRANGA"]
["VILA JACY"]
["VILA LEILA I "]
["VILA LEILA II"]
["VILA LEONIDIA"]
["VILA LETONIA"]
["VILA LUCHETTI"]
["VILA LUCIA"]
["VILA LUIZA"]
["VILA MACHADO"]
["VILA MARIA"]
["VILA MASCARENHAZ FERRAZ"]
["VILA MATILDE I"]
["VILA MATILDE II"]
["VILA MONTE ALEGRE"]
["VILA MONTEREY"]
["VILA NAIR"]
["VILA NOSSA SENHORA DAS GRACAS"]
["VILA NOVA CONCEICAO"]
["VILA NOVA CRISTINA"]
["VILA NOVA GUARANI"]
["VILA NOVA PAULICEIA"]
["VILA NOVA SAO JOSE"]
["VILA NOVE DE JULHO"]
["VILA PAGANINI"]
["VILA PAIVA"]
["VILA PATRICIA"]
["VILA PAULO SETUBAL"]
["VILA PIRATININGA"]
["VILA PROGRESSO "]
["VILA RANGEL"]
["VILA RHODIA"]
["VILA RICA"]
["VILA ROSSI"]
["VILA RUBY"]
["VILA SANCHES"]
["VILA SANTA HELENA"]
["VILA SANTA LUZIA"]
["VILA SANTA MATILDE"]
["VILA SANTA RITA"]
["VILA SANTOS"]
["VILA SAO BENEDITO"]
["VILA SAO BENTO"]
["VILA SAO GERALDO"]
["VILA SAO PAULO"]
["VILA SAO PEDRO"]
["VILA SIMONE"]
["VILA SINHA"]
["VILA STRAUSS"]
["VILA TATETUBA"]
["VILA TEREZINHA"]
["VILA TESOURO"]
["VILA TUPI"]
["VILA UNIDOS"]
["VILA VENEZIANI"]
["VILA VIADUTO"]
["VILA ZELFA"]
["VILA ZIZINHA"]
["VILLAGE ALPINO"]